Local authority department which incurred the expenditure,Service Division,Cost Centre,Summary of the Purpose of Expenditure,Expense Type,Expense Code,Detailed Expense Type,Date of Transaction,Transaction Number,Beneficiary,Merchant Category Number,Merchant Category,Gross Amount,VAT,Net Amount
Children and Young Peoples Services,Head of Education and Skills,071801,Selby Cottage Childcare Centre,Supplies and Services,304259,Equipment and Materials,01-Jul-2019,000006447667918,ITUNES.COM/BILL,5735,Equipment-purchase and rental,0.79,0.00,0.79
Children and Young Peoples Services,Head of Education and Skills,054640,Durham Learning Resources 054640,Supplies and Services,304245,Equipment and Materials,01-Jul-2019,000006455449722,AMZNMKTPLACE AMAZON.CO,5999,Materials,6.77,1.13,5.64
Resources BK0010,Digital and Customer Services,065481,Technical Services 065481,Supplies and Services,304335,Equipment and Materials,01-Jul-2019,000006455449740,AMZNMktplace,5999,ICT supplies etc,125.00,20.83,104.17
Regeneration and Local Services,Development and Housing,030773,CLLD North,Supplies and Services,340001,Postages E340,01-Jul-2019,000006455449826,POST OFFICE COUNTER,9402,Postages,220.00,0.00,220.00
Children and Young Peoples Services,Head of Education and Skills,075021,Youth Employment Initiative,Supplies and Services,384999,Miscellaneous Expenses,01-Jul-2019,000006455449848,ASDA GEORGE COM LEEDS,5411,Other expenses,42.00,0.00,42.00
Adult and Health Services,Head of Adults,055302,Durham Pathways,Supplies and Services,324117,Provisions E324,01-Jul-2019,000006455449870,ASDA SUPERSTORE,5411,Catering costs - provisions,4.00,0.00,4.00
Adult and Health Services,Head of Adults,055302,Durham Pathways,Supplies and Services,324117,Provisions E324,01-Jul-2019,000006455449878,ASDA SUPERSTORE,5411,Catering costs - provisions,2.28,0.00,2.28
Children and Young Peoples Services,Head of Childrens Social Care,085332,Middlestone Moor CU,Supplies and Services,324117,Provisions E324,01-Jul-2019,000006455449928,ALDI 59 774,5411,Catering costs - provisions,37.79,0.00,37.79
Children and Young Peoples Services,Head of Childrens Social Care,085332,Middlestone Moor CU,Supplies and Services,304259,Equipment and Materials,01-Jul-2019,000006455449932,WILKO RETAIL LIMIT,5722,Equipment-purchase and rental,6.50,0.00,6.50
Regeneration and Local Services,Culture Sport and Tourism,011263,Louisa Centre 011263,Supplies and Services,324117,Provisions E324,01-Jul-2019,000006455449966,JR HOLLAND FOODSERVICE,5499,Catering costs - provisions,27.50,0.00,27.50
Regeneration and Local Services,Culture Sport and Tourism,011263,Louisa Centre 011263,Supplies and Services,324117,Provisions E324,01-Jul-2019,000006455449974,JR HOLLAND FOODSERVICE,5499,Catering costs - provisions,30.41,0.00,30.41
Regeneration and Local Services,Environmental Services,010367,C&G - South Grounds Maintenance,Supplies and Services,304221,Equipment and Materials,01-Jul-2019,000006455450060,SCREWFIX PETERLEE,5211,Direct materials,12.28,2.05,10.23
Regeneration and Local Services,Corporate Property and Land,021242,Catering - County Hall,Supplies and Services,324117,Provisions E324,01-Jul-2019,000006455450206,JR HOLLAND FOODSERVICE,5499,Catering costs - provisions,6.90,0.00,6.90
Regeneration and Local Services,Corporate Property and Land,021242,Catering - County Hall,Supplies and Services,324117,Provisions E324,01-Jul-2019,000006455450214,JR HOLLAND FOODSERVICE,5499,Catering costs - provisions,112.48,0.00,112.48
Regeneration and Local Services,Corporate Property and Land,021242,Catering - County Hall,Supplies and Services,324117,Provisions E324,01-Jul-2019,000006455450220,WWW.ADELIEFOODS.CO.UK,5499,Catering costs - provisions,41.52,0.00,41.52
Regeneration and Local Services,Corporate Property and Land,021242,Catering - County Hall,Supplies and Services,324117,Provisions E324,01-Jul-2019,000006455450224,WWW.ADELIEFOODS.CO.UK,5499,Catering costs - provisions,155.20,0.00,155.20
Regeneration and Local Services,Corporate Property and Land,021242,Catering - County Hall,Supplies and Services,324117,Provisions E324,01-Jul-2019,000006455450230,WWW.ADELIEFOODS.CO.UK,5499,Catering costs - provisions,41.28,0.00,41.28
Regeneration and Local Services,Corporate Property and Land,021242,Catering - County Hall,Supplies and Services,324117,Provisions E324,01-Jul-2019,000006455450240,WWW.ADELIEFOODS.CO.UK,5499,Catering costs - provisions,111.32,0.00,111.32
Regeneration and Local Services,Culture Sport and Tourism,054812,Gala Theatre - Catering etc,Supplies and Services,324117,Provisions E324,01-Jul-2019,000006455450316,JR HOLLAND FOODSERVICE,5499,Catering costs - provisions,47.93,0.00,47.93
Regeneration and Local Services,Development and Housing,031576,B& B - Temp Accom,Supplies and Services,364320,Grants to Voluntary Organisations,01-Jul-2019,000006455450330,HAYAT HOTEL,7011,Accommodation assistance,89.00,14.83,74.17
Children and Young Peoples Services,Head of Education and Skills,071732,Dean Bank Childcare,Supplies and Services,324117,Provisions E324,01-Jul-2019,000006455450636,ASDA GROCERIES ONLINE,5411,Catering costs - provisions,48.42,0.00,48.42
Children and Young Peoples Services,Head of Education and Skills,071732,Dean Bank Childcare,Supplies and Services,328041,Clothing uniforms and laundry E328,01-Jul-2019,000006455450642,B&M RETAIL LTD,5310,Clothing uniforms and laundry,34.37,0.00,34.37
Children and Young Peoples Services,Head of Education and Skills,071732,Dean Bank Childcare,Supplies and Services,324117,Provisions E324,01-Jul-2019,000006455450650,ASDA GROCERIES ONLINE,5411,Catering costs - provisions,-0.13,0.00,-0.13
Regeneration and Local Services,Culture Sport and Tourism,011263,Louisa Centre 011263,Supplies and Services,304259,Equipment and Materials,01-Jul-2019,000006455450668,AMZNMktplace,5999,Equipment-purchase and rental,4.98,0.00,4.98
Regeneration and Local Services,Culture Sport and Tourism,010601,Spennymoor Leisure Cr - General,Supplies and Services,304259,Equipment and Materials,01-Jul-2019,000006455450674,AMZNMktplace,5999,Equipment-purchase and rental,65.89,0.00,65.89
Regeneration and Local Services,Development and Housing,031500,Housing Solutions - Core Team,Supplies and Services,352001,Conference Expenses,01-Jul-2019,000006455450830,HAYAT HOTEL,7011,Conferencesseminars fees etc,100.00,16.67,83.33
Regeneration and Local Services,Development and Housing,030771,Durham Advance Flexible Fund,Supplies and Services,348037,Subsistence E348,01-Jul-2019,000006455450888,GREGGS,5812,Subsistence,2.90,0.00,2.90
Regeneration and Local Services,Environmental Services,011060,C&G - Hardwick Park Catering,Supplies and Services,324117,Provisions E324,01-Jul-2019,000006455451042,JR HOLLAND FOODSERVICE,5499,Catering costs - provisions,63.06,0.00,63.06
Regeneration and Local Services,Environmental Services,011060,C&G - Hardwick Park Catering,Supplies and Services,324117,Provisions E324,01-Jul-2019,000006455451050,JR HOLLAND FOODSERVICE,5499,Catering costs - provisions,137.26,0.00,137.26
Regeneration and Local Services,Development and Housing,030764,Work & Health Programme (Reed),Supplies and Services,304259,Equipment and Materials,01-Jul-2019,000006455451170,GEN REGISTER OFFICE,9399,Equipment-purchase and rental,28.00,0.00,28.00
Regeneration and Local Services,Corporate Property and Land,021234,Catering - Locomotion,Supplies and Services,324117,Provisions E324,01-Jul-2019,000006455451204,JR HOLLAND FOODSERVICE,5499,Catering costs - provisions,99.16,0.00,99.16
Regeneration and Local Services,Corporate Property and Land,021234,Catering - Locomotion,Supplies and Services,324117,Provisions E324,01-Jul-2019,000006455451210,WWW.ADELIEFOODS.CO.UK,5499,Catering costs - provisions,66.86,0.00,66.86
Regeneration and Local Services,Corporate Property and Land,021234,Catering - Locomotion,Supplies and Services,324117,Provisions E324,01-Jul-2019,000006455451216,WWW.ADELIEFOODS.CO.UK,5499,Catering costs - provisions,30.19,0.00,30.19
Regeneration and Local Services,Corporate Property and Land,021234,Catering - Locomotion,Supplies and Services,324117,Provisions E324,01-Jul-2019,000006455451222,JR HOLLAND FOODSERVICE,5499,Catering costs - provisions,-3.22,0.00,-3.22
Regeneration and Local Services,Corporate Property and Land,010525,Catering - Green Lane,Premises,145009,Cleaning and Domestic Supplies,01-Jul-2019,000006455451324,ALLIANCE DISPOSABLES L,2842,Other cleaning and domestic costs,183.62,30.60,153.02
Regeneration and Local Services,Corporate Property and Land,010525,Catering - Green Lane,Supplies and Services,324117,Provisions E324,01-Jul-2019,000006455451334,WWW.ADELIEFOODS.CO.UK,5499,Catering costs - provisions,84.70,0.00,84.70
Children and Young Peoples Services,Head of Childrens Social Care,085352,Tow Law CU,Supplies and Services,324117,Provisions E324,01-Jul-2019,000006455452004,ASDA SUPERSTORE 4987,5411,Catering costs - provisions,34.40,0.00,34.40
Regeneration and Local Services,Corporate Property and Land,030691,Catering - Durham Dales Centre,Supplies and Services,324117,Provisions E324,01-Jul-2019,000006455452032,JR HOLLAND FOODSERVICE,5499,Catering costs - provisions,252.58,0.00,252.58
Adult and Health Services,Head of Adults,055643,Hawthorn House LD Respite Unit,Supplies and Services,324117,Provisions E324,01-Jul-2019,000006455452228,JR HOLLAND FOODSERVICE,5499,Catering costs - provisions,18.62,0.00,18.62
Adult and Health Services,Head of Adults,055643,Hawthorn House LD Respite Unit,Supplies and Services,324117,Provisions E324,01-Jul-2019,000006455452230,JR HOLLAND FOODSERVICE,5499,Catering costs - provisions,20.28,0.00,20.28
Adult and Health Services,Head of Adults,055643,Hawthorn House LD Respite Unit,Supplies and Services,324117,Provisions E324,01-Jul-2019,000006455452236,JR HOLLAND FOODSERVICE,5499,Catering costs - provisions,3.94,0.00,3.94
Adult and Health Services,Head of Adults,055643,Hawthorn House LD Respite Unit,Supplies and Services,324117,Provisions E324,01-Jul-2019,000006455452240,JR HOLLAND FOODSERVICE,5499,Catering costs - provisions,6.55,0.00,6.55
Regeneration and Local Services,Environmental Services,010301,C&G - North Grounds Maintenance,Supplies and Services,324117,Provisions E324,01-Jul-2019,000006455452312,J VAN VLIET GATESHEAD,5399,Catering costs - provisions,127.74,21.29,106.45
Resources BK0010,Legal & Democratic Services,067801,Registrars,Supplies and Services,384199,Miscellaneous Expenses,01-Jul-2019,000006455452470,ANGEL SPRINGS LTD,5811,Other hired and contracted services,81.48,0.00,81.48
Regeneration and Local Services,Environmental Services,011060,C&G - Hardwick Park Catering,Supplies and Services,304083,Equipment and Materials,01-Jul-2019,000006455452544,WWW.NISBETS.COM,5964,Catering equipment,365.98,61.00,304.98
Regeneration and Local Services,Corporate Property and Land,021324,Catering - Meadowfield,Supplies and Services,324117,Provisions E324,01-Jul-2019,000006455452586,WWW.ADELIEFOODS.CO.UK,5499,Catering costs - provisions,37.02,0.00,37.02
Regeneration and Local Services,Corporate Property and Land,021324,Catering - Meadowfield,Supplies and Services,324117,Provisions E324,01-Jul-2019,000006455452598,WWW.ADELIEFOODS.CO.UK,5499,Catering costs - provisions,41.67,0.00,41.67
Children and Young Peoples Services,Head of Childrens Social Care,085333,Coxhoe Satelite Home,Supplies and Services,324117,Provisions E324,01-Jul-2019,000006455452626,ASDA STORES LTD,5411,Catering costs - provisions,27.00,0.00,27.00
Regeneration and Local Services,Culture Sport and Tourism,011269,Louisa Centre Nursery,Supplies and Services,324117,Provisions E324,01-Jul-2019,000006455452760,ASDA SUPERSTORE,5411,Catering costs - provisions,47.23,0.00,47.23
Children and Young Peoples Services,Head of Education and Skills,070169,Durham SSP,Supplies and Services,384199,Miscellaneous Expenses,01-Jul-2019,000006455452798,Herd Hire,7512,Other hired and contracted services,75.00,12.50,62.50
Regeneration and Local Services,Culture Sport and Tourism,054820,Gala Theatre - Overheads,Supplies and Services,384999,Miscellaneous Expenses,01-Jul-2019,000006455452924,WWW.HOBBYCRAFT.CO.UK,5970,Other expenses,30.50,0.00,30.50
Children and Young Peoples Services,Head of Childrens Social Care,085332,Middlestone Moor CU,Supplies and Services,384871,Miscellaneous Expenses,01-Jul-2019,000006455452936,EXPEDIA 7449139864913,4722,Training-other activities,72.00,0.00,72.00
Regeneration and Local Services,Culture Sport and Tourism,011263,Louisa Centre 011263,Supplies and Services,328041,Clothing uniforms and laundry E328,01-Jul-2019,000006455452948,THOMAS OWEN & SONS /N/,5611,Clothing uniforms and laundry,28.56,0.00,28.56
Children and Young Peoples Services,Head of Childrens Social Care,085380,Operations Manager LAC Resources,Supplies and Services,324117,Provisions E324,01-Jul-2019,000006455452956,ASDA STORES,5411,Catering costs - provisions,10.68,0.00,10.68
Adult and Health Services,Head of Adults,055807,Newton Aycliffe Pathways,Supplies and Services,312011,Newspapers books and periodicals E312,01-Jul-2019,000006455453082,AMZ Amazon.co.uk,5969,Books-school library,-13.71,0.00,-13.71
Children and Young Peoples Services,Head of Childrens Social Care,085501,Child Care Cases Legal Expenses,Supplies and Services,332048,Printing Stationery and Gen Off Exps,01-Jul-2019,000006455453094,STOCKTON BOROUGH COUNC,9399,Administrative stationery etc,11.00,0.00,11.00
Adult and Health Services,Head of Adults,055310,Positive Journeys (Tudhoe),Supplies and Services,324117,Provisions E324,01-Jul-2019,000006455453116,ASDA SUPERSTORE 4987,5411,Catering costs - provisions,1.64,0.00,1.64
Regeneration and Local Services,Corporate Property and Land,021235,Catering - Wharton Park,Supplies and Services,324117,Provisions E324,01-Jul-2019,000006455453132,JR HOLLAND FOODSERVICE,5499,Catering costs - provisions,32.99,0.00,32.99
Regeneration and Local Services,Corporate Property and Land,021235,Catering - Wharton Park,Supplies and Services,324117,Provisions E324,01-Jul-2019,000006455453140,WWW.ADELIEFOODS.CO.UK,5499,Catering costs - provisions,20.76,0.00,20.76
Regeneration and Local Services,Corporate Property and Land,021235,Catering - Wharton Park,Supplies and Services,324117,Provisions E324,01-Jul-2019,000006455453146,WWW.ADELIEFOODS.CO.UK,5499,Catering costs - provisions,31.14,0.00,31.14
Children and Young Peoples Services,Head of Education and Skills,054640,Durham Learning Resources 054640,Supplies and Services,304245,Equipment and Materials,01-Jul-2019,000006459271314,AMZNMKTPLACE AMAZON.CO,5999,Materials,2.08,0.00,2.08
Regeneration and Local Services,Culture Sport and Tourism,011207,Physical Activity 011207,Third Party Payments 4THIRD,430100,Rendered by Private Contractors,01-Jul-2019,000006459271944,CAMPAIGNMONITOR,7399,Payments to sub-contractors,5.65,0.00,5.65
Regeneration and Local Services,Culture Sport and Tourism,011207,Physical Activity 011207,Third Party Payments 4THIRD,430100,Rendered by Private Contractors,01-Jul-2019,000006459271950,CAMPAIGNMONITOR,7399,Payments to sub-contractors,4.08,0.00,4.08
Regeneration and Local Services,Culture Sport and Tourism,011207,Physical Activity 011207,Third Party Payments 4THIRD,430100,Rendered by Private Contractors,01-Jul-2019,000006459271956,CAMPAIGNMONITOR,7399,Payments to sub-contractors,4.03,0.00,4.03
Regeneration and Local Services,Culture Sport and Tourism,011207,Physical Activity 011207,Third Party Payments 4THIRD,430100,Rendered by Private Contractors,01-Jul-2019,000006459271958,CAMPAIGNMONITOR,7399,Payments to sub-contractors,5.09,0.00,5.09
Regeneration and Local Services,Culture Sport and Tourism,011207,Physical Activity 011207,Third Party Payments 4THIRD,430100,Rendered by Private Contractors,01-Jul-2019,000006459271964,CAMPAIGNMONITOR,7399,Payments to sub-contractors,4.28,0.00,4.28
Regeneration and Local Services,Culture Sport and Tourism,011207,Physical Activity 011207,Third Party Payments 4THIRD,430100,Rendered by Private Contractors,01-Jul-2019,000006459271972,CAMPAIGNMONITOR,7399,Payments to sub-contractors,4.24,0.00,4.24
Regeneration and Local Services,Corporate Property and Land,021235,Catering - Wharton Park,Supplies and Services,324117,Provisions E324,01-Jul-2019,000006459273324,BATLEYS PERTH,5300,Catering costs - provisions,210.48,35.08,175.40
Regeneration and Local Services,Corporate Property and Land,021235,Catering - Wharton Park,Supplies and Services,324117,Provisions E324,01-Jul-2019,000006459273324 - 1,BATLEYS PERTH,5300,Catering costs - provisions,3.09,,3.09
Children and Young Peoples Services,Head of Education and Skills,070169,Durham SSP,Supplies and Services,384199,Miscellaneous Expenses,01-Jul-2019,000006463998128,GLASSFIBRE FLAGPOLES L,5999,Other hired and contracted services,201.60,0.00,201.60
Regeneration and Local Services,Corporate Property and Land,030691,Catering - Durham Dales Centre,Supplies and Services,324117,Provisions E324,01-Jul-2019,000006578076344,BATLEYS PERTH,5300,Catering costs - provisions,80.94,13.49,67.45
Regeneration and Local Services,Corporate Property and Land,030691,Catering - Durham Dales Centre,Supplies and Services,324117,Provisions E324,01-Jul-2019,000006578076344 - 1,BATLEYS PERTH,5300,Catering costs - provisions,171.85,,171.85
Children and Young Peoples Services,Head of Childrens Social Care,085341,High Etherley Satelite Home,Supplies and Services,324117,Provisions E324,02-Jul-2019,000006459271260,TESCO STORES 6329,5411,Catering costs - provisions,37.99,0.00,37.99
Children and Young Peoples Services,Head of Education and Skills,071801,Selby Cottage Childcare Centre,Supplies and Services,324117,Provisions E324,02-Jul-2019,000006459271304,TESCO STORES 2278,5411,Catering costs - provisions,13.23,0.00,13.23
Children and Young Peoples Services,Head of Education and Skills,054640,Durham Learning Resources 054640,Supplies and Services,304245,Equipment and Materials,02-Jul-2019,000006459271322,AMZNMktplace,5999,Materials,45.61,0.00,45.61
Children and Young Peoples Services,Head of Education and Skills,054640,Durham Learning Resources 054640,Supplies and Services,304245,Equipment and Materials,02-Jul-2019,000006459271328,AMZNMKTPLACE AMAZON.CO,5999,Materials,7.73,1.29,6.44
Regeneration and Local Services,Development and Housing,030773,CLLD North,Employees,040149,Recruitment Instruction and Training,02-Jul-2019,000006459271396,TYNE & WEAR LGV DRIVER,8299,Training-all costs,306.00,0.00,306.00
Children and Young Peoples Services,Head of Education and Skills,075021,Youth Employment Initiative,Supplies and Services,384999,Miscellaneous Expenses,02-Jul-2019,000006459271438,Amazon.co.uk M63SV9SV4,5969,Other expenses,13.26,2.21,11.05
Adult and Health Services,Head of Adults,055302,Durham Pathways,Supplies and Services,328041,Clothing uniforms and laundry E328,02-Jul-2019,000006459271454,POUNDSTRETCHER 354,5331,Clothing uniforms and laundry,1.29,0.00,1.29
Adult and Health Services,Head of Adults,055302,Durham Pathways,Supplies and Services,312011,Newspapers books and periodicals E312,02-Jul-2019,000006459271458,HOME BARGAINS,5251,Books-school library,7.56,1.26,6.30
Adult and Health Services,Head of Adults,055302,Durham Pathways,Supplies and Services,312011,Newspapers books and periodicals E312,02-Jul-2019,000006459271458 - 1,HOME BARGAINS,5251,Books-school library,8.00,,8.00
Adult and Health Services,Head of Adults,055302,Durham Pathways,Supplies and Services,304403,Equipment and Materials,02-Jul-2019,000006459271462,CARD FACTORY,5947,Other consumables,5.99,0.00,5.99
Regeneration and Local Services,Culture Sport and Tourism,030708,VCD - Marketing & Information,Supplies and Services,336005,Advertising E336,02-Jul-2019,000006459271498,FACEBK 675WTLEVC2,7311,Advertising other than for staff,327.83,0.00,327.83
Regeneration and Local Services,Culture Sport and Tourism,030708,VCD - Marketing & Information,Supplies and Services,336005,Advertising E336,02-Jul-2019,000006459271504,GOOGLE ADS1872075479,5968,Advertising other than for staff,500.00,0.00,500.00
Regeneration and Local Services,Culture Sport and Tourism,030708,VCD - Marketing & Information,Supplies and Services,384199,Miscellaneous Expenses,02-Jul-2019,000006459271512,MAILCHIMP MONTHLY,5968,Other hired and contracted services,239.32,0.00,239.32
Children and Young Peoples Services,Head of Childrens Social Care,085332,Middlestone Moor CU,Supplies and Services,304999,Equipment and Materials,02-Jul-2019,000006459271520,www.groupon.co.uk,7278,Misc equipment tools and materials,36.98,0.00,36.98
Children and Young Peoples Services,Head of Childrens Social Care,085332,Middlestone Moor CU,Supplies and Services,324117,Provisions E324,02-Jul-2019,000006459271532,TESCO STORES 2916,5411,Catering costs - provisions,21.65,0.00,21.65
Regeneration and Local Services,Business Durham CL0850,030699,Business Growth and Innovation General,Supplies and Services,304403,Equipment and Materials,02-Jul-2019,000006459271538,ADOBE CREATIVE CLOUD,5734,Other consumables,49.94,8.32,41.62
Regeneration and Local Services,Business Durham CL0850,030699,Business Growth and Innovation General,Supplies and Services,312011,Newspapers books and periodicals E312,02-Jul-2019,000006459271546,FASTHOSTS INTERNET,4816,Books-school library,72.66,12.11,60.55
Regeneration and Local Services,Business Durham CL0850,030699,Business Growth and Innovation General,Supplies and Services,312011,Newspapers books and periodicals E312,02-Jul-2019,000006459271552,FASTHOSTS INTERNET,4816,Books-school library,66.30,11.05,55.25
Regeneration and Local Services,Culture Sport and Tourism,011263,Louisa Centre 011263,Supplies and Services,324117,Provisions E324,02-Jul-2019,000006459271580,JR HOLLAND FOODSERVICE,5499,Catering costs - provisions,15.44,0.00,15.44
Children and Young Peoples Services,Head of Early Help Inclusion & Vulnerable Children.,088105,BA/BC/Crook 0-19 Community Family Hub,Supplies and Services,308013,Furniture,02-Jul-2019,000006459271672,ARGOS RETAIL GROUP,5310,Curtains and carpets,15.98,0.00,15.98
Regeneration and Local Services,Corporate Property and Land,021242,Catering - County Hall,Supplies and Services,324117,Provisions E324,02-Jul-2019,000006459271702,FREEMAN CATERING BUTCH,5422,Catering costs - provisions,69.12,0.00,69.12
Regeneration and Local Services,Corporate Property and Land,021242,Catering - County Hall,Supplies and Services,324117,Provisions E324,02-Jul-2019,000006459271712,FREEMAN CATERING BUTCH,5422,Catering costs - provisions,300.67,0.00,300.67
Regeneration and Local Services,Corporate Property and Land,021242,Catering - County Hall,Supplies and Services,324117,Provisions E324,02-Jul-2019,000006459271722,FREEMAN CATERING BUTCH,5422,Catering costs - provisions,301.36,0.00,301.36
Regeneration and Local Services,Corporate Property and Land,021242,Catering - County Hall,Supplies and Services,324117,Provisions E324,02-Jul-2019,000006459271728,JR HOLLAND FOODSERVICE,5499,Catering costs - provisions,169.29,0.00,169.29
Regeneration and Local Services,Corporate Property and Land,021242,Catering - County Hall,Supplies and Services,324117,Provisions E324,02-Jul-2019,000006459271738,JR HOLLAND FOODSERVICE,5499,Catering costs - provisions,155.00,0.00,155.00
Regeneration and Local Services,Corporate Property and Land,021242,Catering - County Hall,Supplies and Services,324117,Provisions E324,02-Jul-2019,000006459271744,JR HOLLAND FOODSERVICE,5499,Catering costs - provisions,125.40,0.00,125.40
Regeneration and Local Services,Corporate Property and Land,021242,Catering - County Hall,Supplies and Services,324117,Provisions E324,02-Jul-2019,000006459271750,JR HOLLAND FOODSERVICE,5499,Catering costs - provisions,13.80,0.00,13.80
Regeneration and Local Services,Corporate Property and Land,021242,Catering - County Hall,Supplies and Services,324117,Provisions E324,02-Jul-2019,000006459271758,JR HOLLAND FOODSERVICE,5499,Catering costs - provisions,31.51,0.00,31.51
Regeneration and Local Services,Culture Sport and Tourism,054233,Bishop Auckland Town Hall Library,Supplies and Services,312011,Newspapers books and periodicals E312,02-Jul-2019,000006459271780,Amazon.co.uk M60J19SM4,5969,Books-school library,15.48,2.58,12.90
Regeneration and Local Services,Culture Sport and Tourism,054233,Bishop Auckland Town Hall Library,Supplies and Services,304221,Equipment and Materials,02-Jul-2019,000006459271788,CITY ELECTRICAL FA,5211,Direct materials,17.94,2.99,14.95
Regeneration and Local Services,Culture Sport and Tourism,054233,Bishop Auckland Town Hall Library,Supplies and Services,304403,Equipment and Materials,02-Jul-2019,000006459271798,AMZNMKTPLACE AMAZON.CO,5999,Other consumables,2.29,0.38,1.91
Regeneration and Local Services,Environmental Services,010367,C&G - South Grounds Maintenance,Supplies and Services,312011,Newspapers books and periodicals E312,02-Jul-2019,000006459271816,Snowballs,5251,Books-school library,38.28,6.38,31.90
Regeneration and Local Services,Culture Sport and Tourism,054812,Gala Theatre - Catering etc,Supplies and Services,324117,Provisions E324,02-Jul-2019,000006459271830,FREEMAN CATERING BUTCH,5422,Catering costs - provisions,16.20,0.00,16.20
Regeneration and Local Services,Culture Sport and Tourism,054812,Gala Theatre - Catering etc,Supplies and Services,324117,Provisions E324,02-Jul-2019,000006459271838,JR HOLLAND FOODSERVICE,5499,Catering costs - provisions,25.02,0.00,25.02
Regeneration and Local Services,Development and Housing,031576,B& B - Temp Accom,Supplies and Services,364320,Grants to Voluntary Organisations,02-Jul-2019,000006459271850,HAYAT HOTEL,7011,Accommodation assistance,178.00,29.67,148.33
Children and Young Peoples Services,Head of Childrens Social Care,085333,Coxhoe Satelite Home,Supplies and Services,324117,Provisions E324,02-Jul-2019,000006459271934,CO-OP GROUP 310016,5411,Catering costs - provisions,3.00,0.00,3.00
Regeneration and Local Services,Culture Sport and Tourism,011207,Physical Activity 011207,Third Party Payments 4THIRD,430100,Rendered by Private Contractors,02-Jul-2019,000006459271974,CAMPAIGNMONITOR,7399,Payments to sub-contractors,397.30,0.00,397.30
Transformation and Partnerships,Business Support,052986,CYPS - Locality and Operational Support,Supplies and Services,324117,Provisions E324,02-Jul-2019,000006459272068,TESCO STORES 6329,5411,Catering costs - provisions,8.35,0.00,8.35
Children and Young Peoples Services,Head of Education and Skills,071732,Dean Bank Childcare,Supplies and Services,324117,Provisions E324,02-Jul-2019,000006459272094,ASDA GROCERIES ONLINE,5411,Catering costs - provisions,74.19,0.00,74.19
Regeneration and Local Services,Culture Sport and Tourism,011263,Louisa Centre 011263,Supplies and Services,304259,Equipment and Materials,02-Jul-2019,000006459272108,Amazon.co.uk M66XF0SM4,5969,Equipment-purchase and rental,46.82,0.00,46.82
Children and Young Peoples Services,Head of Childrens Social Care,085334,West Rainton Satelite Home,Supplies and Services,324117,Provisions E324,02-Jul-2019,000006459272128,SAINSBURYS SACAT 0776,5411,Catering costs - provisions,16.00,0.00,16.00
Children and Young Peoples Services,Head of Childrens Social Care,085334,West Rainton Satelite Home,Supplies and Services,304259,Equipment and Materials,02-Jul-2019,000006459272136,J D SPORTS,5941,Equipment-purchase and rental,12.00,0.00,12.00
Regeneration and Local Services,Development and Housing,030771,Durham Advance Flexible Fund,Transport,235057,Public Transport,02-Jul-2019,000006459272268,ARRIVA NORTH EAST,4131,Staff travelling,4.50,0.00,4.50
Children and Young Peoples Services,Head of Early Help Inclusion & Vulnerable Children.,085965,Barnard,Supplies and Services,328041,Clothing uniforms and laundry E328,02-Jul-2019,000006459272316,FOOTASYLUM PLC,5691,Clothing uniforms and laundry,143.95,0.00,143.95
Children and Young Peoples Services,Head of Early Help Inclusion & Vulnerable Children.,085954,Walworth,Supplies and Services,328041,Clothing uniforms and laundry E328,02-Jul-2019,000006459272324,FOOTASYLUM PLC,5691,Clothing uniforms and laundry,89.98,0.00,89.98
Children and Young Peoples Services,Head of Early Help Inclusion & Vulnerable Children.,085965,Barnard,Supplies and Services,328041,Clothing uniforms and laundry E328,02-Jul-2019,000006459272330,FOOTASYLUM PLC,5691,Clothing uniforms and laundry,29.99,0.00,29.99
Children and Young Peoples Services,Head of Early Help Inclusion & Vulnerable Children.,085956,Lumley,Supplies and Services,328041,Clothing uniforms and laundry E328,02-Jul-2019,000006459272338,BOOHOO.COM,5691,Clothing uniforms and laundry,4.00,0.00,4.00
Children and Young Peoples Services,Head of Early Help Inclusion & Vulnerable Children.,085965,Barnard,Supplies and Services,328041,Clothing uniforms and laundry E328,02-Jul-2019,000006459272348,VERY,5964,Clothing uniforms and laundry,48.99,0.00,48.99
Children and Young Peoples Services,Head of Early Help Inclusion & Vulnerable Children.,085965,Barnard,Supplies and Services,328041,Clothing uniforms and laundry E328,02-Jul-2019,000006459272362,WWW.FOOTLOCKER.EU,5661,Clothing uniforms and laundry,74.99,0.00,74.99
Children and Young Peoples Services,Head of Early Help Inclusion & Vulnerable Children.,085956,Lumley,Supplies and Services,328041,Clothing uniforms and laundry E328,02-Jul-2019,000006459272370,WWW.FOOTLOCKER.EU,5661,Clothing uniforms and laundry,24.99,0.00,24.99
Regeneration and Local Services,Environmental Services,026591,C&G - Hardwick Park,Supplies and Services,304259,Equipment and Materials,02-Jul-2019,000006459272396,SCREWFIX BISHOP AUCKLA,5211,Equipment-purchase and rental,3.99,0.67,3.32
Regeneration and Local Services,Environmental Services,011060,C&G - Hardwick Park Catering,Supplies and Services,324117,Provisions E324,02-Jul-2019,000006459272404,FREEMAN CATERING BUTCH,5422,Catering costs - provisions,35.86,0.00,35.86
Regeneration and Local Services,Environmental Services,011060,C&G - Hardwick Park Catering,Supplies and Services,324117,Provisions E324,02-Jul-2019,000006459272408,FREEMAN CATERING BUTCH,5422,Catering costs - provisions,36.40,0.00,36.40
Regeneration and Local Services,Environmental Services,011060,C&G - Hardwick Park Catering,Supplies and Services,324117,Provisions E324,02-Jul-2019,000006459272414,FREEMAN CATERING BUTCH,5422,Catering costs - provisions,43.21,0.00,43.21
Regeneration and Local Services,Environmental Services,011060,C&G - Hardwick Park Catering,Supplies and Services,324117,Provisions E324,02-Jul-2019,000006459272420,FREEMAN CATERING BUTCH,5422,Catering costs - provisions,53.98,0.00,53.98
Regeneration and Local Services,Environmental Services,011060,C&G - Hardwick Park Catering,Supplies and Services,324117,Provisions E324,02-Jul-2019,000006459272426,FREEMAN CATERING BUTCH,5422,Catering costs - provisions,40.80,0.00,40.80
Regeneration and Local Services,Environmental Services,011060,C&G - Hardwick Park Catering,Supplies and Services,324117,Provisions E324,02-Jul-2019,000006459272432,JR HOLLAND FOODSERVICE,5499,Catering costs - provisions,19.21,0.00,19.21
Regeneration and Local Services,Environmental Services,011060,C&G - Hardwick Park Catering,Supplies and Services,324117,Provisions E324,02-Jul-2019,000006459272436,JR HOLLAND FOODSERVICE,5499,Catering costs - provisions,11.85,0.00,11.85
Regeneration and Local Services,Culture Sport and Tourism,054815,Gala Theatre Stage School,Supplies and Services,384999,Miscellaneous Expenses,02-Jul-2019,000006459272492,DAINTY SUPPLIES LT,5949,Other expenses,26.78,0.00,26.78
Regeneration and Local Services,Corporate Property and Land,021234,Catering - Locomotion,Supplies and Services,324117,Provisions E324,02-Jul-2019,000006459272500,FREEMAN CATERING BUTCH,5422,Catering costs - provisions,15.10,0.00,15.10
Regeneration and Local Services,Corporate Property and Land,021234,Catering - Locomotion,Supplies and Services,324117,Provisions E324,02-Jul-2019,000006459272506,FREEMAN CATERING BUTCH,5422,Catering costs - provisions,67.92,0.00,67.92
Regeneration and Local Services,Corporate Property and Land,021234,Catering - Locomotion,Supplies and Services,324117,Provisions E324,02-Jul-2019,000006459272514,FREEMAN CATERING BUTCH,5422,Catering costs - provisions,81.98,0.00,81.98
Regeneration and Local Services,Corporate Property and Land,021234,Catering - Locomotion,Supplies and Services,324117,Provisions E324,02-Jul-2019,000006459272518,JR HOLLAND FOODSERVICE,5499,Catering costs - provisions,25.24,4.21,21.03
Regeneration and Local Services,Corporate Property and Land,010525,Catering - Green Lane,Supplies and Services,324117,Provisions E324,02-Jul-2019,000006459272582,FREEMAN CATERING BUTCH,5422,Catering costs - provisions,58.32,0.00,58.32
Regeneration and Local Services,Corporate Property and Land,010525,Catering - Green Lane,Supplies and Services,324117,Provisions E324,02-Jul-2019,000006459272590,FREEMAN CATERING BUTCH,5422,Catering costs - provisions,79.19,0.00,79.19
Regeneration and Local Services,Corporate Property and Land,010525,Catering - Green Lane,Supplies and Services,324117,Provisions E324,02-Jul-2019,000006459272600,JR HOLLAND FOODSERVICE,5499,Catering costs - provisions,17.43,0.00,17.43
Regeneration and Local Services,Corporate Property and Land,010525,Catering - Green Lane,Supplies and Services,324117,Provisions E324,02-Jul-2019,000006459272608,JR HOLLAND FOODSERVICE,5499,Catering costs - provisions,56.93,0.00,56.93
Regeneration and Local Services,Corporate Property and Land,010525,Catering - Green Lane,Supplies and Services,324117,Provisions E324,02-Jul-2019,000006459272616,JR HOLLAND FOODSERVICE,5499,Catering costs - provisions,65.36,0.00,65.36
Regeneration and Local Services,Development and Housing,030771,Durham Advance Flexible Fund,Transport,235057,Public Transport,02-Jul-2019,000006459272630,AUCKLAND CASTLE,7523,Staff travelling,0.60,0.10,0.50
Children and Young Peoples Services,Head of Early Help Inclusion & Vulnerable Children.,071443,Stanley One Point Hub,Supplies and Services,304403,Equipment and Materials,02-Jul-2019,000006459272724,AMZNMktplace,5999,Other consumables,36.38,0.00,36.38
Regeneration and Local Services,Corporate Property and Land,010913,Bldg Serv - Construction General,Supplies and Services,312009,Newspapers books and periodicals E312,02-Jul-2019,000006459272802,Amazon.co.uk M66IG2S04,5969,Newspapers books and periodicals,57.48,9.58,47.90
Regeneration and Local Services,Corporate Property and Land,010913,Bldg Serv - Construction General,Supplies and Services,312009,Newspapers books and periodicals E312,02-Jul-2019,000006459272802 - 1,Amazon.co.uk M66IG2S04,5969,Newspapers books and periodicals,71.85,,71.85
Regeneration and Local Services,Corporate Property and Land,020073,Bldg Serv - R&M Div 73 - Gas Servicing,Supplies and Services,304221,Equipment and Materials,02-Jul-2019,000006459272810,SP STOVE STICKERS,5734,Direct materials,14.40,0.00,14.40
Regeneration and Local Services,Corporate Property and Land,030691,Catering - Durham Dales Centre,Supplies and Services,324117,Provisions E324,02-Jul-2019,000006459272866,FREEMAN CATERING BUTCH,5422,Catering costs - provisions,108.20,0.00,108.20
Regeneration and Local Services,Corporate Property and Land,030691,Catering - Durham Dales Centre,Supplies and Services,324117,Provisions E324,02-Jul-2019,000006459272874,FREEMAN CATERING BUTCH,5422,Catering costs - provisions,135.29,0.00,135.29
Regeneration and Local Services,Corporate Property and Land,030691,Catering - Durham Dales Centre,Supplies and Services,324117,Provisions E324,02-Jul-2019,000006459272884,FREEMAN CATERING BUTCH,5422,Catering costs - provisions,8.50,0.00,8.50
Regeneration and Local Services,Corporate Property and Land,030691,Catering - Durham Dales Centre,Supplies and Services,324117,Provisions E324,02-Jul-2019,000006459272892,FREEMAN CATERING BUTCH,5422,Catering costs - provisions,80.03,0.00,80.03
Regeneration and Local Services,Corporate Property and Land,030691,Catering - Durham Dales Centre,Supplies and Services,324117,Provisions E324,02-Jul-2019,000006459272902,FREEMAN CATERING BUTCH,5422,Catering costs - provisions,96.34,0.00,96.34
Regeneration and Local Services,Corporate Property and Land,030691,Catering - Durham Dales Centre,Premises,145009,Cleaning and Domestic Supplies,02-Jul-2019,000006459272912,ALLIANCE DISPOSABLES L,2842,Other cleaning and domestic costs,153.18,25.53,127.65
Regeneration and Local Services,Corporate Property and Land,030691,Catering - Durham Dales Centre,Premises,145009,Cleaning and Domestic Supplies,02-Jul-2019,000006459272912 - 1,ALLIANCE DISPOSABLES L,2842,Other cleaning and domestic costs,38.14,,38.14
Regeneration and Local Services,Corporate Property and Land,030691,Catering - Durham Dales Centre,Supplies and Services,324117,Provisions E324,02-Jul-2019,000006459272922,FREEMAN CATERING BUTCH,5422,Catering costs - provisions,-26.52,0.00,-26.52
Adult and Health Services,Head of Adults,055643,Hawthorn House LD Respite Unit,Supplies and Services,324117,Provisions E324,02-Jul-2019,000006459272970,FREEMAN CATERING BUTCH,5422,Catering costs - provisions,40.29,0.00,40.29
Adult and Health Services,Head of Adults,055643,Hawthorn House LD Respite Unit,Supplies and Services,324117,Provisions E324,02-Jul-2019,000006459272982,FREEMAN CATERING BUTCH,5422,Catering costs - provisions,33.98,0.00,33.98
Adult and Health Services,Head of Adults,055643,Hawthorn House LD Respite Unit,Supplies and Services,324117,Provisions E324,02-Jul-2019,000006459272992,JR HOLLAND FOODSERVICE,5499,Catering costs - provisions,17.38,0.00,17.38
Adult and Health Services,Head of Adults,055643,Hawthorn House LD Respite Unit,Supplies and Services,324117,Provisions E324,02-Jul-2019,000006459273000,JR HOLLAND FOODSERVICE,5499,Catering costs - provisions,6.48,0.00,6.48
Regeneration and Local Services,Environmental Services,010301,C&G - North Grounds Maintenance,Supplies and Services,304999,Equipment and Materials,02-Jul-2019,000006459273034,HEXHAM MACHINERY CENTR,780,Misc equipment tools and materials,246.02,41.00,205.02
Resources BK0010,Legal & Democratic Services,067953,Coroner County Durham & Darlington,Supplies and Services,352001,Conference Expenses,02-Jul-2019,000006459273066,HOTEL MERCURE,3579,Conferencesseminars fees etc,127.00,0.00,127.00
Regeneration and Local Services,Culture Sport and Tourism,054235,Bishop Auckland Town Hall Cafe,Supplies and Services,324117,Provisions E324,02-Jul-2019,000006459273100,JR HOLLAND FOODSERVICE,5499,Catering costs - provisions,84.99,0.00,84.99
Regeneration and Local Services,Corporate Property and Land,021324,Catering - Meadowfield,Supplies and Services,324117,Provisions E324,02-Jul-2019,000006459273122,FREEMAN CATERING BUTCH,5422,Catering costs - provisions,83.15,0.00,83.15
Regeneration and Local Services,Corporate Property and Land,021324,Catering - Meadowfield,Supplies and Services,324117,Provisions E324,02-Jul-2019,000006459273132,FREEMAN CATERING BUTCH,5422,Catering costs - provisions,95.76,0.00,95.76
Regeneration and Local Services,Corporate Property and Land,021324,Catering - Meadowfield,Supplies and Services,324117,Provisions E324,02-Jul-2019,000006459273138,FREEMAN CATERING BUTCH,5422,Catering costs - provisions,44.21,0.00,44.21
Regeneration and Local Services,Corporate Property and Land,021324,Catering - Meadowfield,Supplies and Services,324117,Provisions E324,02-Jul-2019,000006459273144,JR HOLLAND FOODSERVICE,5499,Catering costs - provisions,45.13,0.00,45.13
Regeneration and Local Services,Corporate Property and Land,021324,Catering - Meadowfield,Supplies and Services,324117,Provisions E324,02-Jul-2019,000006459273150,JR HOLLAND FOODSERVICE,5499,Catering costs - provisions,14.19,0.00,14.19
Children and Young Peoples Services,Head of Childrens Social Care,085333,Coxhoe Satelite Home,Supplies and Services,324117,Provisions E324,02-Jul-2019,000006459273162,TESCO STORES 2916,5411,Catering costs - provisions,66.14,0.00,66.14
Children and Young Peoples Services,Head of Childrens Social Care,085333,Coxhoe Satelite Home,Supplies and Services,324117,Provisions E324,02-Jul-2019,000006459273168,TESCO STORES 2916,5411,Catering costs - provisions,59.50,0.00,59.50
Regeneration and Local Services,Culture Sport and Tourism,011269,Louisa Centre Nursery,Supplies and Services,324117,Provisions E324,02-Jul-2019,000006459273174,ASDA SUPERSTORE,5411,Catering costs - provisions,4.40,0.00,4.40
Regeneration and Local Services,Culture Sport and Tourism,054820,Gala Theatre - Overheads,Supplies and Services,312011,Newspapers books and periodicals E312,02-Jul-2019,000006459273216,Amazon.co.uk M65GL4SG4,5969,Books-school library,24.99,0.00,24.99
Adult and Health Services,Head of Adults,055807,Newton Aycliffe Pathways,Supplies and Services,304403,Equipment and Materials,02-Jul-2019,000006459273300,FANCY THAT,5310,Other consumables,37.80,0.00,37.80
Adult and Health Services,Head of Adults,055807,Newton Aycliffe Pathways,Supplies and Services,324117,Provisions E324,02-Jul-2019,000006459273306,ASDA STORES,5411,Catering costs - provisions,12.39,0.00,12.39
Adult and Health Services,Head of Adults,055807,Newton Aycliffe Pathways,Supplies and Services,324117,Provisions E324,02-Jul-2019,000006459273310,ALDI 74 774,5411,Catering costs - provisions,8.97,0.00,8.97
Regeneration and Local Services,Corporate Property and Land,021235,Catering - Wharton Park,Supplies and Services,324117,Provisions E324,02-Jul-2019,000006459273346,JR HOLLAND FOODSERVICE,5499,Catering costs - provisions,36.42,0.00,36.42
Children and Young Peoples Services,Head of Education and Skills,054640,Durham Learning Resources 054640,Supplies and Services,304245,Equipment and Materials,02-Jul-2019,000006463997202,AMZNMKTPLACE AMAZON.CO,5999,Materials,5.19,0.00,5.19
Resources BK0010,Digital and Customer Services,070110,School Services - Man Info System (MIS) Support Team,Supplies and Services,342053,Computers and Communications,02-Jul-2019,000006463997212,FSPRG.NL,5734,Computer software,11.52,0.00,11.52
Regeneration and Local Services,Corporate Property and Land,021242,Catering - County Hall,Supplies and Services,324117,Provisions E324,02-Jul-2019,000006463997394,BATLEYS PERTH,5300,Catering costs - provisions,441.18,73.53,367.65
Regeneration and Local Services,Corporate Property and Land,021242,Catering - County Hall,Supplies and Services,324117,Provisions E324,02-Jul-2019,000006463997394 - 1,BATLEYS PERTH,5300,Catering costs - provisions,117.86,,117.86
Regeneration and Local Services,Culture Sport and Tourism,054233,Bishop Auckland Town Hall Library,Supplies and Services,312011,Newspapers books and periodicals E312,02-Jul-2019,000006463997406,AMZN MKTP UK M61T87SD4,5942,Books-school library,9.28,0.00,9.28
Children and Young Peoples Services,Head of Early Help Inclusion & Vulnerable Children.,085956,Lumley,Supplies and Services,304403,Equipment and Materials,02-Jul-2019,000006463997624,AMZNMKTPLACE AMAZON.CO,5999,Other consumables,135.92,0.00,135.92
Regeneration and Local Services,Environmental Services,011060,C&G - Hardwick Park Catering,Supplies and Services,324117,Provisions E324,02-Jul-2019,000006463997670,BATLEYS PERTH,5300,Catering costs - provisions,94.08,15.68,78.40
Regeneration and Local Services,Environmental Services,011060,C&G - Hardwick Park Catering,Supplies and Services,324117,Provisions E324,02-Jul-2019,000006463997670 - 1,BATLEYS PERTH,5300,Catering costs - provisions,67.58,,67.58
Regeneration and Local Services,Environmental Services,011060,C&G - Hardwick Park Catering,Supplies and Services,324117,Provisions E324,02-Jul-2019,000006463997678,BATLEYS PERTH,5300,Catering costs - provisions,32.22,5.37,26.85
Regeneration and Local Services,Corporate Property and Land,021234,Catering - Locomotion,Supplies and Services,324117,Provisions E324,02-Jul-2019,000006463997704,BATLEYS PERTH,5300,Catering costs - provisions,293.46,48.91,244.55
Regeneration and Local Services,Corporate Property and Land,021234,Catering - Locomotion,Supplies and Services,324117,Provisions E324,02-Jul-2019,000006463997704 - 1,BATLEYS PERTH,5300,Catering costs - provisions,89.13,,89.13
Regeneration and Local Services,Culture Sport and Tourism,054235,Bishop Auckland Town Hall Cafe,Supplies and Services,324117,Provisions E324,02-Jul-2019,000006463998032,BATLEYS PERTH,5300,Catering costs - provisions,39.90,6.65,33.25
Regeneration and Local Services,Culture Sport and Tourism,054235,Bishop Auckland Town Hall Cafe,Supplies and Services,324117,Provisions E324,02-Jul-2019,000006463998032 - 1,BATLEYS PERTH,5300,Catering costs - provisions,52.63,,52.63
Regeneration and Local Services,Corporate Property and Land,021324,Catering - Meadowfield,Supplies and Services,324117,Provisions E324,02-Jul-2019,000006463998054,BATLEYS PERTH,5300,Catering costs - provisions,110.52,18.42,92.10
Regeneration and Local Services,Corporate Property and Land,021324,Catering - Meadowfield,Supplies and Services,324117,Provisions E324,02-Jul-2019,000006463998054 - 1,BATLEYS PERTH,5300,Catering costs - provisions,106.11,,106.11
Transformation and Partnerships,Business Support,052986,CYPS - Locality and Operational Support,Supplies and Services,304403,Equipment and Materials,02-Jul-2019,000006468043688,DRI Nuance,5734,Other consumables,31.45,0.00,31.45
Regeneration and Local Services,Culture Sport and Tourism,011207,Physical Activity 011207,Third Party Payments 4THIRD,430100,Rendered by Private Contractors,03-Jul-2019,000006459271980,CAMPAIGNMONITOR,7399,Payments to sub-contractors,0.16,0.00,0.16
Regeneration and Local Services,Culture Sport and Tourism,011207,Physical Activity 011207,Third Party Payments 4THIRD,430100,Rendered by Private Contractors,03-Jul-2019,000006459271986,CAMPAIGNMONITOR,7399,Payments to sub-contractors,0.11,0.00,0.11
Regeneration and Local Services,Culture Sport and Tourism,011207,Physical Activity 011207,Third Party Payments 4THIRD,430100,Rendered by Private Contractors,03-Jul-2019,000006459271988,CAMPAIGNMONITOR,7399,Payments to sub-contractors,0.11,0.00,0.11
Regeneration and Local Services,Culture Sport and Tourism,011207,Physical Activity 011207,Third Party Payments 4THIRD,430100,Rendered by Private Contractors,03-Jul-2019,000006459271994,CAMPAIGNMONITOR,7399,Payments to sub-contractors,0.14,0.00,0.14
Regeneration and Local Services,Culture Sport and Tourism,011207,Physical Activity 011207,Third Party Payments 4THIRD,430100,Rendered by Private Contractors,03-Jul-2019,000006459271996,CAMPAIGNMONITOR,7399,Payments to sub-contractors,0.12,0.00,0.12
Regeneration and Local Services,Culture Sport and Tourism,011207,Physical Activity 011207,Third Party Payments 4THIRD,430100,Rendered by Private Contractors,03-Jul-2019,000006459271998,CAMPAIGNMONITOR,7399,Payments to sub-contractors,0.12,0.00,0.12
Regeneration and Local Services,Culture Sport and Tourism,011207,Physical Activity 011207,Third Party Payments 4THIRD,430100,Rendered by Private Contractors,03-Jul-2019,000006459272002,CAMPAIGNMONITOR,7399,Payments to sub-contractors,10.93,0.00,10.93
Children and Young Peoples Services,Head of Education and Skills,054640,Durham Learning Resources 054640,Supplies and Services,304245,Equipment and Materials,03-Jul-2019,000006463997198,AMZNMKTPLACE AMAZON.CO,5999,Materials,10.78,1.80,8.98
Children and Young Peoples Services,Head of Education and Skills,054640,Durham Learning Resources 054640,Supplies and Services,312011,Newspapers books and periodicals E312,03-Jul-2019,000006463997204,Amazon.co.uk M62AF42N4,5969,Books-school library,18.23,0.00,18.23
Regeneration and Local Services,Development and Housing,031576,B& B - Temp Accom,Supplies and Services,352001,Conference Expenses,03-Jul-2019,000006463997208,HAYAT HOTEL,7011,Conferencesseminars fees etc,89.00,0.00,89.00
Resources BK0010,Digital and Customer Services,065463,Office Print,Supplies and Services,304335,Equipment and Materials,03-Jul-2019,000006463997216,THE BARCODE WAREHOUSE,5045,ICT supplies etc,30.12,5.02,25.10
Regeneration and Local Services,Development and Housing,030773,CLLD North,Third Party Payments 4THIRD,430100,Rendered by Private Contractors,03-Jul-2019,000006463997246,RSM SAFETY SOLUTIONS,7399,Payments to sub-contractors,41.00,0.00,41.00
Regeneration and Local Services,Culture Sport and Tourism,054775,Durham Town Hall 054775,Supplies and Services,304403,Equipment and Materials,03-Jul-2019,000006463997272,WWW.FLYINGCOLOURS.ORG,5999,Other consumables,106.14,0.00,106.14
Dedicated Schools Grant BG0015,DSG High Needs Block,079050,SENSS-Sensory,Supplies and Services,304403,Equipment and Materials,03-Jul-2019,000006463997282,AMZNMKTPLACE AMAZON.CO,5999,Other consumables,32.29,0.00,32.29
Regeneration and Local Services,Corporate Property and Land,021242,Catering - County Hall,Supplies and Services,324117,Provisions E324,03-Jul-2019,000006463997404,WWW.ADELIEFOODS.CO.UK,5499,Catering costs - provisions,131.12,0.00,131.12
Regeneration and Local Services,Culture Sport and Tourism,054233,Bishop Auckland Town Hall Library,Supplies and Services,328041,Clothing uniforms and laundry E328,03-Jul-2019,000006463997410,B&M RETAIL LTD,5310,Clothing uniforms and laundry,7.84,0.00,7.84
Regeneration and Local Services,Environmental Services,010367,C&G - South Grounds Maintenance,Supplies and Services,304221,Equipment and Materials,03-Jul-2019,000006463997422,SCREWFIX DIRECT LT,5211,Direct materials,9.47,1.58,7.89
Regeneration and Local Services,Development and Housing,031576,B& B - Temp Accom,Supplies and Services,364320,Grants to Voluntary Organisations,03-Jul-2019,000006463997434,HAYAT HOTEL,7011,Accommodation assistance,178.00,29.67,148.33
Regeneration and Local Services,Corporate Property and Land,021242,Catering - County Hall,Supplies and Services,328041,Clothing uniforms and laundry E328,03-Jul-2019,000006463997456,ARGOS LTD,5310,Clothing uniforms and laundry,15.00,0.00,15.00
Regeneration and Local Services,Culture Sport and Tourism,010601,Spennymoor Leisure Cr - General,Supplies and Services,304259,Equipment and Materials,03-Jul-2019,000006463997510,AMZNMktplace,5999,Equipment-purchase and rental,79.80,0.00,79.80
Regeneration and Local Services,Culture Sport and Tourism,010593,Shildon Leisure Centre - General,Supplies and Services,304259,Equipment and Materials,03-Jul-2019,000006463997516,Amazon.co.uk M63SX92G4,5969,Equipment-purchase and rental,7.31,0.00,7.31
Regeneration and Local Services,Culture Sport and Tourism,010601,Spennymoor Leisure Cr - General,Supplies and Services,304259,Equipment and Materials,03-Jul-2019,000006463997520,SJASUPLIES,8398,Equipment-purchase and rental,160.00,26.67,133.33
Children and Young Peoples Services,Head of Childrens Social Care,085334,West Rainton Satelite Home,Supplies and Services,324117,Provisions E324,03-Jul-2019,000006463997534,ALDI 59 774,5411,Catering costs - provisions,16.86,2.81,14.05
Children and Young Peoples Services,Head of Childrens Social Care,085334,West Rainton Satelite Home,Supplies and Services,324117,Provisions E324,03-Jul-2019,000006463997534 - 1,ALDI 59 774,5411,Catering costs - provisions,87.89,,87.89
Regeneration and Local Services,Development and Housing,030771,Durham Advance Flexible Fund,Supplies and Services,348037,Subsistence E348,03-Jul-2019,000006463997578,STARBUCKS,5814,Subsistence,5.20,0.00,5.20
Regeneration and Local Services,Development and Housing,030771,Durham Advance Flexible Fund,Supplies and Services,304259,Equipment and Materials,03-Jul-2019,000006463997614,DISCLOSURE & BARRING,9399,Equipment-purchase and rental,13.00,0.00,13.00
Children and Young Peoples Services,Head of Early Help Inclusion & Vulnerable Children.,085965,Barnard,Supplies and Services,304403,Equipment and Materials,03-Jul-2019,000006463997620,AMZNMktplace,5999,Other consumables,135.92,0.00,135.92
Children and Young Peoples Services,Head of Early Help Inclusion & Vulnerable Children.,085965,Barnard,Supplies and Services,304649,Equipment and Materials,03-Jul-2019,000006463997626,AMZNMktplace,5999,Toys,35.00,5.83,29.17
Children and Young Peoples Services,Head of Early Help Inclusion & Vulnerable Children.,085965,Barnard,Supplies and Services,304649,Equipment and Materials,03-Jul-2019,000006463997630,AMZNMktplace,5999,Toys,38.40,6.40,32.00
Children and Young Peoples Services,Head of Early Help Inclusion & Vulnerable Children.,085965,Barnard,Supplies and Services,304649,Equipment and Materials,03-Jul-2019,000006463997630 - 1,AMZNMktplace,5999,Toys,0.08,,0.08
Children and Young Peoples Services,Head of Early Help Inclusion & Vulnerable Children.,085965,Barnard,Supplies and Services,328041,Clothing uniforms and laundry E328,03-Jul-2019,000006463997636,VERY,5964,Clothing uniforms and laundry,17.99,0.00,17.99
Children and Young Peoples Services,Head of Early Help Inclusion & Vulnerable Children.,085956,Lumley,Supplies and Services,328041,Clothing uniforms and laundry E328,03-Jul-2019,000006463997640,JD SPORTS INTERNET,5941,Clothing uniforms and laundry,28.99,0.00,28.99
Regeneration and Local Services,Culture Sport and Tourism,054813,Gala Theatre - Technical,Supplies and Services,304403,Equipment and Materials,03-Jul-2019,000006463997642,AMZNMktplace,5999,Other consumables,48.99,0.00,48.99
Regeneration and Local Services,Culture Sport and Tourism,054813,Gala Theatre - Technical,Supplies and Services,304403,Equipment and Materials,03-Jul-2019,000006463997646,AMZNMktplace,5999,Other consumables,297.93,0.00,297.93
Regeneration and Local Services,Culture Sport and Tourism,054813,Gala Theatre - Technical,Supplies and Services,304403,Equipment and Materials,03-Jul-2019,000006463997650,AMZNMktplace,5999,Other consumables,14.99,0.00,14.99
Transformation and Partnerships,Business Support,052986,CYPS - Locality and Operational Support,Supplies and Services,312011,Newspapers books and periodicals E312,03-Jul-2019,000006463997656,Amazon.co.uk M693Q0274,5969,Books-school library,37.49,0.00,37.49
Regeneration and Local Services,Environmental Services,031200,North Pennines Core,Transport,235057,Public Transport,03-Jul-2019,000006463997660,LNE RAILWAY DAR SST,4112,Staff travelling,26.20,0.00,26.20
Regeneration and Local Services,Culture Sport and Tourism,054815,Gala Theatre Stage School,Supplies and Services,328041,Clothing uniforms and laundry E328,03-Jul-2019,000006463997688,jjshouse.com,5621,Clothing uniforms and laundry,66.00,0.00,66.00
Regeneration and Local Services,Development and Housing,030755,Durham Employment & Skills - Other Training,Employees,040149,Recruitment Instruction and Training,03-Jul-2019,000006463997692,WWW.CSKILLS.ORG,8249,Training-all costs,36.00,6.00,30.00
Regeneration and Local Services,Development and Housing,030755,Durham Employment & Skills - Other Training,Employees,040149,Recruitment Instruction and Training,03-Jul-2019,000006463997696,WWW.CSKILLS.ORG,8249,Training-all costs,36.00,6.00,30.00
Regeneration and Local Services,Corporate Property and Land,021234,Catering - Locomotion,Supplies and Services,324117,Provisions E324,03-Jul-2019,000006463997710,WWW.ADELIEFOODS.CO.UK,5499,Catering costs - provisions,25.90,0.00,25.90
Regeneration and Local Services,Corporate Property and Land,021234,Catering - Locomotion,Supplies and Services,324117,Provisions E324,03-Jul-2019,000006463997714,WWW.ADELIEFOODS.CO.UK,5499,Catering costs - provisions,252.07,0.00,252.07
Regeneration and Local Services,Environmental Services,010367,C&G - South Grounds Maintenance,Supplies and Services,304221,Equipment and Materials,03-Jul-2019,000006463997820,TUDOR ENVIRONMENTAL,5261,Direct materials,318.24,53.04,265.20
Regeneration and Local Services,Corporate Property and Land,011003,County Hall Durham,Supplies and Services,304221,Equipment and Materials,03-Jul-2019,000006463997858,WWW.IBHS.CO.UK,5085,Direct materials,310.94,51.82,259.12
Adult and Health Services,Head of Adults,055301,Stanley Pathways,Supplies and Services,324117,Provisions E324,03-Jul-2019,000006463997872,SAINSBURYS SACAT 0776,5411,Catering costs - provisions,7.65,0.00,7.65
Children and Young Peoples Services,Head of Early Help Inclusion & Vulnerable Children.,071616,Seaham Childrens Centre,Supplies and Services,312011,Newspapers books and periodicals E312,03-Jul-2019,000006463997880,Amazon.co.uk M67QE3274,5969,Books-school library,34.48,0.00,34.48
Children and Young Peoples Services,Head of Early Help Inclusion & Vulnerable Children.,071616,Seaham Childrens Centre,Supplies and Services,304403,Equipment and Materials,03-Jul-2019,000006463997884,AMZNMktplace,5999,Other consumables,15.69,0.00,15.69
Children and Young Peoples Services,Head of Childrens Social Care,085352,Tow Law CU,Supplies and Services,328041,Clothing uniforms and laundry E328,03-Jul-2019,000006463997908,WWW.ARGOS.CO.UK,5310,Clothing uniforms and laundry,53.95,0.00,53.95
Children and Young Peoples Services,Head of Childrens Social Care,085352,Tow Law CU,Supplies and Services,328041,Clothing uniforms and laundry E328,03-Jul-2019,000006463997910,WWW.ARGOS.CO.UK,5310,Clothing uniforms and laundry,15.95,0.00,15.95
Children and Young Peoples Services,Head of Early Help Inclusion & Vulnerable Children.,074000,TTF-Attachment and Results,Transfer Payments,525033,Other,03-Jul-2019,000006463997970,MAGUIRE TA LTD,5713,Grants to individuals,150.00,0.00,150.00
Resources BK0010,Digital and Customer Services,065335,School Services - Implementations,Supplies and Services,304639,Equipment and Materials,03-Jul-2019,000006463997976,AMZNMktplace,5999,Technicians-supplies,5.97,0.00,5.97
Resources BK0010,Digital and Customer Services,065335,School Services - Implementations,Supplies and Services,304639,Equipment and Materials,03-Jul-2019,000006463997986,REPLACEBASE,5732,Technicians-supplies,149.85,24.98,124.87
Resources BK0010,Digital and Customer Services,065335,School Services - Implementations,Supplies and Services,304639,Equipment and Materials,03-Jul-2019,000006463997990,WWW.AVPARTMASTER.NET,7622,Technicians-supplies,140.40,23.40,117.00
Resources BK0010,Digital and Customer Services,065335,School Services - Implementations,Supplies and Services,304303,Equipment and Materials,03-Jul-2019,000006463997994,CABLES DIRECT LTD,8999,Network for resale,213.60,0.00,213.60
Children and Young Peoples Services,Head of Childrens Social Care,085342,9 Cedar Drive Aycliffe,Supplies and Services,348037,Subsistence E348,03-Jul-2019,000006463997998,MCDONALDS,5812,Subsistence,6.97,0.00,6.97
Regeneration and Local Services,Development and Housing,030771,Durham Advance Flexible Fund,Supplies and Services,348037,Subsistence E348,03-Jul-2019,000006463998002,COSTA COFFEE,5814,Subsistence,3.90,0.65,3.25
Regeneration and Local Services,Development and Housing,030771,Durham Advance Flexible Fund,Supplies and Services,348037,Subsistence E348,03-Jul-2019,000006463998008,COSTA COFFEE,5814,Subsistence,3.80,0.63,3.17
Adult and Health Services,Head of Adults,051622,OP/PD Dales 051622,Supplies and Services,340001,Postages E340,03-Jul-2019,000006463998018,ROYAL MAIL ONLINE SHOP,9402,Postages,122.00,0.00,122.00
Regeneration and Local Services,Culture Sport and Tourism,011204,Festival and Events,Supplies and Services,304403,Equipment and Materials,03-Jul-2019,000006463998042,AMZNMktplace,5999,Other consumables,18.90,0.00,18.90
Children and Young Peoples Services,Head of Childrens Social Care,085333,Coxhoe Satelite Home,Supplies and Services,324117,Provisions E324,03-Jul-2019,000006463998062,TESCO STORES 2371,5411,Catering costs - provisions,139.90,0.00,139.90
Children and Young Peoples Services,Head of Childrens Social Care,085333,Coxhoe Satelite Home,Supplies and Services,324117,Provisions E324,03-Jul-2019,000006463998066,TESCO STORES 2371,5411,Catering costs - provisions,40.87,0.00,40.87
Children and Young Peoples Services,Head of Childrens Social Care,085333,Coxhoe Satelite Home,Transport,235057,Public Transport,03-Jul-2019,000006463998070,Arriva Durham County,4111,Staff travelling,9.20,0.00,9.20
Children and Young Peoples Services,Head of Childrens Social Care,085333,Coxhoe Satelite Home,Supplies and Services,348037,Subsistence E348,03-Jul-2019,000006463998074,BISHOPS` MILL,5812,Subsistence,12.65,0.00,12.65
Children and Young Peoples Services,Head of Childrens Social Care,085333,Coxhoe Satelite Home,Supplies and Services,324117,Provisions E324,03-Jul-2019,000006463998108,TESCO STORES 2916,5411,Catering costs - provisions,34.70,0.00,34.70
Children and Young Peoples Services,Head of Childrens Social Care,085333,Coxhoe Satelite Home,Supplies and Services,324117,Provisions E324,03-Jul-2019,000006463998112,WALKERS BUTCHERS & BAK,5499,Catering costs - provisions,21.39,0.00,21.39
Children and Young Peoples Services,Head of Childrens Social Care,085333,Coxhoe Satelite Home,Supplies and Services,324117,Provisions E324,03-Jul-2019,000006463998114,TESCO STORES 2916,5411,Catering costs - provisions,-15.00,0.00,-15.00
Children and Young Peoples Services,Head of Education and Skills,070169,Durham SSP,Supplies and Services,384199,Miscellaneous Expenses,03-Jul-2019,000006463998132,TYNE AND WEAR SPORT,8299,Other hired and contracted services,21.00,0.00,21.00
Children and Young Peoples Services,Head of Childrens Social Care,085332,Middlestone Moor CU,Supplies and Services,384871,Miscellaneous Expenses,03-Jul-2019,000006463998172,SAINSBURYS SACAT 2199,5411,Training-other activities,45.00,0.00,45.00
Children and Young Peoples Services,Head of Childrens Social Care,085332,Middlestone Moor CU,Supplies and Services,324117,Provisions E324,03-Jul-2019,000006463998176,SAINSBURYS SACAT 2199,5411,Catering costs - provisions,12.27,0.00,12.27
Children and Young Peoples Services,Head of Childrens Social Care,085332,Middlestone Moor CU,Supplies and Services,384871,Miscellaneous Expenses,03-Jul-2019,000006463998180,SumUp If looks could,7230,Training-other activities,45.00,0.00,45.00
Adult and Health Services,Head of Adults,055807,Newton Aycliffe Pathways,Supplies and Services,324117,Provisions E324,03-Jul-2019,000006463998224,IZ Thames fruit and v,5499,Catering costs - provisions,10.00,0.00,10.00
Adult and Health Services,Head of Adults,055310,Positive Journeys (Tudhoe),Supplies and Services,324117,Provisions E324,03-Jul-2019,000006463998228,ASDA SUPERSTORE 4987,5411,Catering costs - provisions,4.78,0.00,4.78
Regeneration and Local Services,Corporate Property and Land,021235,Catering - Wharton Park,Supplies and Services,324117,Provisions E324,03-Jul-2019,000006463998244,WWW.ADELIEFOODS.CO.UK,5499,Catering costs - provisions,34.60,0.00,34.60
Adult and Health Services,Head of Adults,055309,Peterlee Pathways,Supplies and Services,304259,Equipment and Materials,03-Jul-2019,000006463998254,WILKO RETAIL LIMIT,5722,Equipment-purchase and rental,15.00,0.00,15.00
Adult and Health Services,Head of Adults,055309,Peterlee Pathways,Supplies and Services,304259,Equipment and Materials,03-Jul-2019,000006463998256,WILKO RETAIL LIMIT,5722,Equipment-purchase and rental,15.00,0.00,15.00
Children and Young Peoples Services,Head of Childrens Social Care,085363,LAC & Permanence Team 3,Supplies and Services,304259,Equipment and Materials,03-Jul-2019,000006463998268,HM PASSPORT OFFICE,9399,Equipment-purchase and rental,49.00,0.00,49.00
Regeneration and Local Services,Development and Housing,030771,Durham Advance Flexible Fund,Transport,235057,Public Transport,03-Jul-2019,000006463998314,GO NORTH EAST LIMITED,4131,Staff travelling,16.40,0.00,16.40
Regeneration and Local Services,Business Durham CL0850,030694,Plexus 2,Supplies and Services,304403,Equipment and Materials,03-Jul-2019,000006463998318,AMZNMktplace,5999,Other consumables,4.98,0.00,4.98
Regeneration and Local Services,Corporate Property and Land,030691,Catering - Durham Dales Centre,Supplies and Services,384999,Miscellaneous Expenses,03-Jul-2019,000006463998328,WWW.CAFFEVINCI.COM,5046,Other expenses,412.10,0.00,412.10
Regeneration and Local Services,Corporate Property and Land,021242,Catering - County Hall,Supplies and Services,324117,Provisions E324,03-Jul-2019,000006468043052,BATLEYS PERTH,5300,Catering costs - provisions,-0.31,0.00,-0.31
Children and Young Peoples Services,Head of Early Help Inclusion & Vulnerable Children.,085962,Aycliffe Secure - Durham,Supplies and Services,324117,Provisions E324,03-Jul-2019,000006468043324,TESCO STORES 6329,5411,Catering costs - provisions,68.72,0.00,68.72
Regeneration and Local Services,Environmental Services,011060,C&G - Hardwick Park Catering,Supplies and Services,324117,Provisions E324,03-Jul-2019,000006468043360,BATLEYS PERTH,5300,Catering costs - provisions,-5.26,0.00,-5.26
Adult and Health Services,Head of Adults,055643,Hawthorn House LD Respite Unit,Supplies and Services,324117,Provisions E324,03-Jul-2019,000006468043594,BATLEYS PERTH,5300,Catering costs - provisions,-0.15,0.00,-0.15
Resources BK0010,Digital and Customer Services,065335,School Services - Implementations,Supplies and Services,304639,Equipment and Materials,03-Jul-2019,000006468043638,AMZNMKTPLACE AMAZON.CO,5999,Technicians-supplies,16.47,2.75,13.72
Children and Young Peoples Services,Head of Childrens Social Care,085342,9 Cedar Drive Aycliffe,Supplies and Services,348037,Subsistence E348,03-Jul-2019,000006468043642,KFC THINFORD DURHAM PR,5814,Subsistence,6.79,0.00,6.79
Resources BK0010,Digital and Customer Services,065321,Operations - Digital & Customer Services,Supplies and Services,342033,Computers and Communications,04-Jul-2019,000006463997982,AMZNMktplace,5999,Computer hardware,133.28,0.00,133.28
Children and Young Peoples Services,Head of Education and Skills,071801,Selby Cottage Childcare Centre,Supplies and Services,304259,Equipment and Materials,04-Jul-2019,000006468042756,WILKO RETAIL LIMIT,5722,Equipment-purchase and rental,11.00,0.00,11.00
Children and Young Peoples Services,Head of Education and Skills,054640,Durham Learning Resources 054640,Supplies and Services,304245,Equipment and Materials,04-Jul-2019,000006468042782,AMZNMktplace,5999,Materials,22.00,0.00,22.00
Children and Young Peoples Services,Head of Education and Skills,054640,Durham Learning Resources 054640,Supplies and Services,312011,Newspapers books and periodicals E312,04-Jul-2019,000006468042784,Amazon.co.uk M66LB9704,5969,Books-school library,16.48,0.00,16.48
Children and Young Peoples Services,Head of Education and Skills,054640,Durham Learning Resources 054640,Supplies and Services,304245,Equipment and Materials,04-Jul-2019,000006468042788,Amazon.co.uk M67FD7KO4,5969,Materials,13.96,0.00,13.96
Children and Young Peoples Services,Head of Education and Skills,054640,Durham Learning Resources 054640,Supplies and Services,304245,Equipment and Materials,04-Jul-2019,000006468042792,Amazon.co.uk M69FH9KV4,5969,Materials,18.23,0.00,18.23
Children and Young Peoples Services,Head of Education and Skills,054640,Durham Learning Resources 054640,Supplies and Services,304245,Equipment and Materials,04-Jul-2019,000006468042796,AMZNMktplace,5999,Materials,17.10,0.00,17.10
Children and Young Peoples Services,Head of Education and Skills,054640,Durham Learning Resources 054640,Supplies and Services,304245,Equipment and Materials,04-Jul-2019,000006468042800,Amazon.co.uk M68N22K14,5969,Materials,6.00,1.00,5.00
Transformation and Partnerships,Business Support,065461,Business Support 065461,Supplies and Services,342053,Computers and Communications,04-Jul-2019,000006468042802,BITEABLE PTY LTD,7392,Computer software,23.09,0.00,23.09
Transformation and Partnerships,Communications Management,060270,Communications and Marketing,Supplies and Services,304335,Equipment and Materials,04-Jul-2019,000006468042808,AMZNMktplace,5999,ICT supplies etc,379.00,63.17,315.83
Resources BK0010,Corporate Finance & Commercial Services,069800,Corporate Procurement 069800,Supplies and Services,342053,Computers and Communications,04-Jul-2019,000006468042812,SP INFOGRAPIA.COM,5734,Computer software,54.90,0.00,54.90
Children and Young Peoples Services,Head of Education and Skills,070264,EDC Premises,Supplies and Services,324117,Provisions E324,04-Jul-2019,000006468042834,FREEMAN CATERING BUTCH,5422,Catering costs - provisions,59.34,0.00,59.34
Children and Young Peoples Services,Head of Education and Skills,070264,EDC Premises,Supplies and Services,324117,Provisions E324,04-Jul-2019,000006468042838,FREEMAN CATERING BUTCH,5422,Catering costs - provisions,99.24,0.00,99.24
Children and Young Peoples Services,Head of Education and Skills,070264,EDC Premises,Supplies and Services,324117,Provisions E324,04-Jul-2019,000006468042840,FREEMAN CATERING BUTCH,5422,Catering costs - provisions,28.94,0.00,28.94
Children and Young Peoples Services,Head of Education and Skills,070264,EDC Premises,Supplies and Services,324117,Provisions E324,04-Jul-2019,000006468042846,FREEMAN CATERING BUTCH,5422,Catering costs - provisions,14.90,0.00,14.90
Children and Young Peoples Services,Head of Education and Skills,070264,EDC Premises,Supplies and Services,324117,Provisions E324,04-Jul-2019,000006468042850,FREEMAN CATERING BUTCH,5422,Catering costs - provisions,114.62,0.00,114.62
Children and Young Peoples Services,Head of Education and Skills,070264,EDC Premises,Supplies and Services,324117,Provisions E324,04-Jul-2019,000006468042854,FREEMAN CATERING BUTCH,5422,Catering costs - provisions,77.24,0.00,77.24
Children and Young Peoples Services,Head of Education and Skills,070264,EDC Premises,Supplies and Services,324117,Provisions E324,04-Jul-2019,000006468042858,FREEMAN CATERING BUTCH,5422,Catering costs - provisions,-12.80,0.00,-12.80
Children and Young Peoples Services,Head of Education and Skills,070264,EDC Premises,Supplies and Services,324117,Provisions E324,04-Jul-2019,000006468042860,FREEMAN CATERING BUTCH,5422,Catering costs - provisions,-10.94,0.00,-10.94
Children and Young Peoples Services,Head of Education and Skills,070264,EDC Premises,Supplies and Services,324117,Provisions E324,04-Jul-2019,000006468042862,FREEMAN CATERING BUTCH,5422,Catering costs - provisions,-14.90,0.00,-14.90
Children and Young Peoples Services,Head of Education and Skills,070264,EDC Premises,Supplies and Services,324117,Provisions E324,04-Jul-2019,000006468042866,FREEMAN CATERING BUTCH,5422,Catering costs - provisions,-14.74,0.00,-14.74
Regeneration and Local Services,Development and Housing,030773,CLLD North,Transport,235057,Public Transport,04-Jul-2019,000006468042890,BLUE LINE TAXIS,4121,Staff travelling,8.20,0.00,8.20
Regeneration and Local Services,Environmental Services,010383,C&G - South Street Cleansing,Supplies and Services,304221,Equipment and Materials,04-Jul-2019,000006468042942,S&A BUILDERS MERCHANTS,5211,Direct materials,26.51,4.42,22.09
Regeneration and Local Services,Environmental Services,010383,C&G - South Street Cleansing,Supplies and Services,312011,Newspapers books and periodicals E312,04-Jul-2019,000006468042946,WWW.LSC-UK.COM,5251,Books-school library,227.14,37.86,189.28
Dedicated Schools Grant BG0015,DSG High Needs Block,079050,SENSS-Sensory,Supplies and Services,304403,Equipment and Materials,04-Jul-2019,000006468042962,AMZNMKTPLACE AMAZON.CO,5999,Other consumables,15.03,0.00,15.03
Dedicated Schools Grant BG0015,DSG High Needs Block,079050,SENSS-Sensory,Supplies and Services,304403,Equipment and Materials,04-Jul-2019,000006468042966,AMZNMKTPLACE AMAZON.CO,5999,Other consumables,15.03,0.00,15.03
Children and Young Peoples Services,Head of Childrens Social Care,085332,Middlestone Moor CU,Supplies and Services,328041,Clothing uniforms and laundry E328,04-Jul-2019,000006468042974,B&M RETAIL LTD,5310,Clothing uniforms and laundry,38.06,0.00,38.06
Children and Young Peoples Services,Head of Childrens Social Care,085332,Middlestone Moor CU,Supplies and Services,324117,Provisions E324,04-Jul-2019,000006468042976,WM MORRISONS STORE,5411,Catering costs - provisions,17.88,0.00,17.88
Regeneration and Local Services,Business Durham CL0850,030699,Business Growth and Innovation General,Supplies and Services,342033,Computers and Communications,04-Jul-2019,000006468042978,STK Shutterstock,7333,Computer hardware,19.00,0.00,19.00
Regeneration and Local Services,Business Durham CL0850,030699,Business Growth and Innovation General,Supplies and Services,304403,Equipment and Materials,04-Jul-2019,000006468042980,MEETEDGAR MONTHLY,5734,Other consumables,38.98,0.00,38.98
Regeneration and Local Services,Business Durham CL0850,030699,Business Growth and Innovation General,Supplies and Services,312011,Newspapers books and periodicals E312,04-Jul-2019,000006468042984,FASTHOSTS INTERNET,4816,Books-school library,6.34,0.00,6.34
Regeneration and Local Services,Culture Sport and Tourism,011263,Louisa Centre 011263,Supplies and Services,324117,Provisions E324,04-Jul-2019,000006468042988,JR HOLLAND FOODSERVICE,5499,Catering costs - provisions,27.50,0.00,27.50
Regeneration and Local Services,Environmental Services,010367,C&G - South Grounds Maintenance,Supplies and Services,304221,Equipment and Materials,04-Jul-2019,000006468043026,MKM PETERLEE,5211,Direct materials,25.08,4.18,20.90
Regeneration and Local Services,Corporate Property and Land,021242,Catering - County Hall,Premises,145009,Cleaning and Domestic Supplies,04-Jul-2019,000006468043042,ALLIANCE DISPOSABLES L,2842,Other cleaning and domestic costs,387.04,64.51,322.53
Regeneration and Local Services,Corporate Property and Land,021242,Catering - County Hall,Supplies and Services,324117,Provisions E324,04-Jul-2019,000006468043044,JR HOLLAND FOODSERVICE,5499,Catering costs - provisions,6.00,0.00,6.00
Regeneration and Local Services,Corporate Property and Land,021242,Catering - County Hall,Supplies and Services,324117,Provisions E324,04-Jul-2019,000006468043048,JR HOLLAND FOODSERVICE,5499,Catering costs - provisions,115.00,0.00,115.00
Regeneration and Local Services,Culture Sport and Tourism,054233,Bishop Auckland Town Hall Library,Supplies and Services,328041,Clothing uniforms and laundry E328,04-Jul-2019,000006468043054,POUNDLAND LTD 1390,5310,Clothing uniforms and laundry,13.00,0.00,13.00
Transformation and Partnerships,Business Support,052986,CYPS - Locality and Operational Support,Supplies and Services,324117,Provisions E324,04-Jul-2019,000006468043166,TESCO STORES 2916,5411,Catering costs - provisions,8.99,0.00,8.99
Transformation and Partnerships,Business Support,052986,CYPS - Locality and Operational Support,Supplies and Services,312011,Newspapers books and periodicals E312,04-Jul-2019,000006468043172,HOME BARGAINS SPENNYMO,5251,Books-school library,73.23,0.00,73.23
Transformation and Partnerships,Business Support,052986,CYPS - Locality and Operational Support,Supplies and Services,304259,Equipment and Materials,04-Jul-2019,000006468043174,WILKO RETAIL LIMIT,5722,Equipment-purchase and rental,15.00,0.00,15.00
Regeneration and Local Services,Culture Sport and Tourism,010593,Shildon Leisure Centre - General,Supplies and Services,304259,Equipment and Materials,04-Jul-2019,000006468043206,Amazon.co.uk M65GO1KE4,5969,Equipment-purchase and rental,21.93,0.00,21.93
Regeneration and Local Services,Culture Sport and Tourism,010601,Spennymoor Leisure Cr - General,Supplies and Services,304259,Equipment and Materials,04-Jul-2019,000006468043210,Amazon.co.uk M65LL3734,5969,Equipment-purchase and rental,26.49,0.00,26.49
Regeneration and Local Services,Development and Housing,030771,Durham Advance Flexible Fund,Supplies and Services,304259,Equipment and Materials,04-Jul-2019,000006468043214,GEN REGISTER OFFICE,9399,Equipment-purchase and rental,14.00,0.00,14.00
Children and Young Peoples Services,Head of Childrens Social Care,085334,West Rainton Satelite Home,Supplies and Services,384999,Miscellaneous Expenses,04-Jul-2019,000006468043218,SMYTHS TOYS DURHAM,5945,Other expenses,14.99,2.50,12.49
Children and Young Peoples Services,Head of Childrens Social Care,085334,West Rainton Satelite Home,Supplies and Services,328041,Clothing uniforms and laundry E328,04-Jul-2019,000006468043222,MICHAEL SEHGAL & SONS,5137,Clothing uniforms and laundry,63.95,0.00,63.95
Regeneration and Local Services,Development and Housing,030771,Durham Advance Flexible Fund,Transport,235057,Public Transport,04-Jul-2019,000006468043296,WALKERGATE CAR PAR,7523,Staff travelling,3.00,0.00,3.00
Children and Young Peoples Services,Head of Early Help Inclusion & Vulnerable Children.,085957,Secure Management,Supplies and Services,304649,Equipment and Materials,04-Jul-2019,000006468043328,WEBUY.COM,5065,Toys,83.00,0.00,83.00
Children and Young Peoples Services,Head of Early Help Inclusion & Vulnerable Children.,085962,Aycliffe Secure - Durham,Supplies and Services,384999,Miscellaneous Expenses,04-Jul-2019,000006468043330,WWW.ARGOS.CO.UK,5310,Other expenses,15.95,0.00,15.95
Children and Young Peoples Services,Head of Early Help Inclusion & Vulnerable Children.,085957,Secure Management,Supplies and Services,384999,Miscellaneous Expenses,04-Jul-2019,000006468043334,WWW.ARGOS.CO.UK,5310,Other expenses,35.44,0.00,35.44
Children and Young Peoples Services,Head of Early Help Inclusion & Vulnerable Children.,085955,Auckland,Supplies and Services,324117,Provisions E324,04-Jul-2019,000006468043336,TESCO STORES 6329,5411,Catering costs - provisions,82.87,0.00,82.87
Regeneration and Local Services,Culture Sport and Tourism,054813,Gala Theatre - Technical,Supplies and Services,304999,Equipment and Materials,04-Jul-2019,000006468043340,Prime Video,5968,Misc equipment tools and materials,7.99,0.00,7.99
Regeneration and Local Services,Culture Sport and Tourism,054813,Gala Theatre - Technical,Supplies and Services,304221,Equipment and Materials,04-Jul-2019,000006468043344,SCREWFIX STOCKTON ON T,5211,Direct materials,154.98,0.00,154.98
Transformation and Partnerships,Business Support,052986,CYPS - Locality and Operational Support,Supplies and Services,304403,Equipment and Materials,04-Jul-2019,000006468043348,AMZNMKTPLACE AMAZON.CO,5999,Other consumables,86.40,0.00,86.40
Regeneration and Local Services,Environmental Services,011060,C&G - Hardwick Park Catering,Supplies and Services,324117,Provisions E324,04-Jul-2019,000006468043356,JR HOLLAND FOODSERVICE,5499,Catering costs - provisions,46.58,0.00,46.58
Regeneration and Local Services,Culture Sport and Tourism,010991,County-wide FISCH,Supplies and Services,312011,Newspapers books and periodicals E312,04-Jul-2019,000006468043378,MAIN BROTHERS DIY,5251,Books-school library,1.20,0.00,1.20
Regeneration and Local Services,Corporate Property and Land,010525,Catering - Green Lane,Premises,145009,Cleaning and Domestic Supplies,04-Jul-2019,000006468043402,ALLIANCE DISPOSABLES L,2842,Other cleaning and domestic costs,11.48,1.91,9.57
Regeneration and Local Services,Corporate Property and Land,010525,Catering - Green Lane,Supplies and Services,324117,Provisions E324,04-Jul-2019,000006468043406,JR HOLLAND FOODSERVICE,5499,Catering costs - provisions,59.63,0.00,59.63
Regeneration and Local Services,Development and Housing,030771,Durham Advance Flexible Fund,Supplies and Services,348037,Subsistence E348,04-Jul-2019,000006468043410,ROUTE 68 CAFE,5812,Subsistence,3.40,0.00,3.40
Resources BK0010,Finance & Transactional Services,065180,Collections,Supplies and Services,338045,Services,04-Jul-2019,000006468043464,HMCOURTS-SERVICE.G,9222,Legal expenses 338045,"1,377.00",0.00,1377.00
Children and Young Peoples Services,Head of Childrens Social Care,085333,Coxhoe Satelite Home,Supplies and Services,324117,Provisions E324,04-Jul-2019,000006468043486,TESCO STORES 2371,5411,Catering costs - provisions,24.46,0.00,24.46
Children and Young Peoples Services,Head of Childrens Social Care,085333,Coxhoe Satelite Home,Supplies and Services,324117,Provisions E324,04-Jul-2019,000006468043490,TESCO STORES 2371,5411,Catering costs - provisions,20.20,0.00,20.20
Children and Young Peoples Services,Head of Childrens Social Care,085352,Tow Law CU,Supplies and Services,324117,Provisions E324,04-Jul-2019,000006468043522,TESCO STORES 2371,5411,Catering costs - provisions,157.78,0.00,157.78
Children and Young Peoples Services,Head of Childrens Social Care,085352,Tow Law CU,Supplies and Services,324117,Provisions E324,04-Jul-2019,000006468043526,WILKO.COM,5399,Catering costs - provisions,53.50,0.00,53.50
Children and Young Peoples Services,Head of Childrens Social Care,085352,Tow Law CU,Supplies and Services,328041,Clothing uniforms and laundry E328,04-Jul-2019,000006468043530,ARGOS RETAIL GROUP,5310,Clothing uniforms and laundry,50.00,0.00,50.00
Children and Young Peoples Services,Head of Childrens Social Care,085352,Tow Law CU,Supplies and Services,328041,Clothing uniforms and laundry E328,04-Jul-2019,000006468043532,WWW.ARGOS.CO.UK,5310,Clothing uniforms and laundry,53.95,0.00,53.95
Children and Young Peoples Services,Head of Childrens Social Care,085352,Tow Law CU,Supplies and Services,328041,Clothing uniforms and laundry E328,04-Jul-2019,000006468043536,WWW.ARGOS.CO.UK,5310,Clothing uniforms and laundry,174.94,0.00,174.94
Regeneration and Local Services,Corporate Property and Land,030691,Catering - Durham Dales Centre,Supplies and Services,324117,Provisions E324,04-Jul-2019,000006468043540,JR HOLLAND FOODSERVICE,5499,Catering costs - provisions,178.74,0.00,178.74
Regeneration and Local Services,Corporate Property and Land,030691,Catering - Durham Dales Centre,Supplies and Services,324117,Provisions E324,04-Jul-2019,000006468043546,JR HOLLAND FOODSERVICE,5499,Catering costs - provisions,-4.00,0.00,-4.00
Regeneration and Local Services,Corporate Property and Land,030691,Catering - Durham Dales Centre,Supplies and Services,324117,Provisions E324,04-Jul-2019,000006468043550,JR HOLLAND FOODSERVICE,5499,Catering costs - provisions,-7.54,0.00,-7.54
Adult and Health Services,Head of Adults,055643,Hawthorn House LD Respite Unit,Supplies and Services,324117,Provisions E324,04-Jul-2019,000006468043580,JR HOLLAND FOODSERVICE,5499,Catering costs - provisions,75.74,0.00,75.74
Adult and Health Services,Head of Adults,055643,Hawthorn House LD Respite Unit,Supplies and Services,324117,Provisions E324,04-Jul-2019,000006468043582,JR HOLLAND FOODSERVICE,5499,Catering costs - provisions,11.16,0.00,11.16
Adult and Health Services,Head of Adults,055643,Hawthorn House LD Respite Unit,Supplies and Services,324117,Provisions E324,04-Jul-2019,000006468043584,JR HOLLAND FOODSERVICE,5499,Catering costs - provisions,2.76,0.00,2.76
Adult and Health Services,Head of Adults,055643,Hawthorn House LD Respite Unit,Supplies and Services,324117,Provisions E324,04-Jul-2019,000006468043588,JR HOLLAND FOODSERVICE,5499,Catering costs - provisions,4.55,0.00,4.55
Adult and Health Services,Head of Adults,055643,Hawthorn House LD Respite Unit,Supplies and Services,324117,Provisions E324,04-Jul-2019,000006468043598,JR HOLLAND FOODSERVICE,5499,Catering costs - provisions,-75.74,0.00,-75.74
Regeneration and Local Services,Environmental Services,010301,C&G - North Grounds Maintenance,Supplies and Services,304403,Equipment and Materials,04-Jul-2019,000006468043628,BESCOL,5231,Other consumables,38.99,6.50,32.49
Children and Young Peoples Services,Head of Early Help Inclusion & Vulnerable Children.,088100,Durham West & CLS 0-19 Targeted Family Support,Supplies and Services,328041,Clothing uniforms and laundry E328,04-Jul-2019,000006468043634,ASDA GEORGE COM LEEDS,5411,Clothing uniforms and laundry,22.00,0.00,22.00
Children and Young Peoples Services,Head of Childrens Social Care,085501,Child Care Cases Legal Expenses,Supplies and Services,384199,Miscellaneous Expenses,04-Jul-2019,000006468043680,GEN REGISTER OFFICE,9399,Other hired and contracted services,112.00,0.00,112.00
Regeneration and Local Services,Corporate Property and Land,021324,Catering - Meadowfield,Supplies and Services,324117,Provisions E324,04-Jul-2019,000006468043720,JR HOLLAND FOODSERVICE,5499,Catering costs - provisions,10.35,0.00,10.35
Regeneration and Local Services,Corporate Property and Land,021324,Catering - Meadowfield,Supplies and Services,324117,Provisions E324,04-Jul-2019,000006468043724,JR HOLLAND FOODSERVICE,5499,Catering costs - provisions,51.98,0.00,51.98
Regeneration and Local Services,Culture Sport and Tourism,011269,Louisa Centre Nursery,Supplies and Services,324117,Provisions E324,04-Jul-2019,000006468043748,ASDA SUPERSTORE,5411,Catering costs - provisions,138.98,0.00,138.98
Children and Young Peoples Services,Head of Education and Skills,070169,Durham SSP,Supplies and Services,384199,Miscellaneous Expenses,04-Jul-2019,000006468043786,PARTICIPANT UK LIMITED,5734,Other hired and contracted services,25.00,0.00,25.00
Children and Young Peoples Services,Head of Education and Skills,070169,Durham SSP,Supplies and Services,384199,Miscellaneous Expenses,04-Jul-2019,000006468043790,TYNE AND WEAR SPORT,8299,Other hired and contracted services,36.00,0.00,36.00
Children and Young Peoples Services,Head of Education and Skills,070169,Durham SSP,Supplies and Services,384199,Miscellaneous Expenses,04-Jul-2019,000006468043794,ARGOS RETAIL GROUP,5310,Other hired and contracted services,30.00,0.00,30.00
Resources BK0010,Corporate Finance & Commercial Services,069800,Corporate Procurement 069800,Employees,040149,Recruitment Instruction and Training,04-Jul-2019,000006468043806,WWW.CIPS.ORG,8699,Training-all costs,45.50,0.00,45.50
Regeneration and Local Services,Culture Sport and Tourism,054820,Gala Theatre - Overheads,Supplies and Services,304403,Equipment and Materials,04-Jul-2019,000006468043810,PAYPAL STOREFREDLT,5999,Other consumables,163.00,0.00,163.00
Regeneration and Local Services,Culture Sport and Tourism,054820,Gala Theatre - Overheads,Supplies and Services,312011,Newspapers books and periodicals E312,04-Jul-2019,000006468043814,Amazon.co.uk M64XZ8KK4,5969,Books-school library,24.97,0.00,24.97
Adult and Health Services,Head of Adults,055306,Spennymoor Pathways,Supplies and Services,384999,Miscellaneous Expenses,04-Jul-2019,000006468043908,PIONEERING CARE PARTNE,8050,Other expenses,48.00,0.00,48.00
Adult and Health Services,Head of Adults,055807,Newton Aycliffe Pathways,Supplies and Services,324117,Provisions E324,04-Jul-2019,000006468043912,ALDI 74 774,5411,Catering costs - provisions,4.25,0.00,4.25
Children and Young Peoples Services,Head of Childrens Social Care,085363,LAC & Permanence Team 3,Supplies and Services,304259,Equipment and Materials,04-Jul-2019,000006468043970,DARLINGTON BC INTERNET,9399,Equipment-purchase and rental,11.00,0.00,11.00
Children and Young Peoples Services,Head of Early Help Inclusion & Vulnerable Children.,085810,CDYJS - Interventions Team,Supplies and Services,324117,Provisions E324,04-Jul-2019,000006468044008,WILKO.COM,5399,Catering costs - provisions,8.00,1.33,6.67
Regeneration and Local Services,Corporate Property and Land,021242,Catering - County Hall,Supplies and Services,324117,Provisions E324,04-Jul-2019,000006472574254,BATLEYS PERTH,5300,Catering costs - provisions,384.12,64.02,320.10
Regeneration and Local Services,Corporate Property and Land,021242,Catering - County Hall,Supplies and Services,324117,Provisions E324,04-Jul-2019,000006472574254 - 1,BATLEYS PERTH,5300,Catering costs - provisions,105.12,,105.12
Regeneration and Local Services,Culture Sport and Tourism,054812,Gala Theatre - Catering etc,Supplies and Services,324117,Provisions E324,04-Jul-2019,000006472574318,BATLEYS PERTH,5300,Catering costs - provisions,127.20,0.00,127.20
Regeneration and Local Services,Environmental Services,011060,C&G - Hardwick Park Catering,Supplies and Services,324117,Provisions E324,04-Jul-2019,000006472574848,BATLEYS PERTH,5300,Catering costs - provisions,525.96,87.66,438.30
Regeneration and Local Services,Environmental Services,011060,C&G - Hardwick Park Catering,Supplies and Services,324117,Provisions E324,04-Jul-2019,000006472574848 - 1,BATLEYS PERTH,5300,Catering costs - provisions,527.82,,527.82
Children and Young Peoples Services,Head of Childrens Social Care,085633,Families First Chester-Le-Street,Supplies and Services,364320,Grants to Voluntary Organisations,04-Jul-2019,000006472575466,HOLLYCROFT,7011,Accommodation assistance,290.00,0.00,290.00
Regeneration and Local Services,Corporate Property and Land,021235,Catering - Wharton Park,Supplies and Services,324117,Provisions E324,04-Jul-2019,000006472575978,BATLEYS PERTH,5300,Catering costs - provisions,75.18,12.53,62.65
Regeneration and Local Services,Corporate Property and Land,021235,Catering - Wharton Park,Supplies and Services,324117,Provisions E324,04-Jul-2019,000006472575978 - 1,BATLEYS PERTH,5300,Catering costs - provisions,22.01,,22.01
Children and Young Peoples Services,Head of Childrens Social Care,085501,Child Care Cases Legal Expenses,Supplies and Services,384199,Miscellaneous Expenses,04-Jul-2019,000006535512604,GEN REGISTER OFFICE,9399,Other hired and contracted services,-7.50,0.00,-7.50
Transformation and Partnerships,Business Support,065461,Business Support 065461,Supplies and Services,342053,Computers and Communications,05-Jul-2019,000006468042814,BITEABLE PTY LTD,7392,Computer software,0.63,0.00,0.63
Resources BK0010,Corporate Finance & Commercial Services,069800,Corporate Procurement 069800,Supplies and Services,342053,Computers and Communications,05-Jul-2019,000006468042816,SP INFOGRAPIA.COM,5734,Computer software,1.51,0.00,1.51
Regeneration and Local Services,Business Durham CL0850,030699,Business Growth and Innovation General,Supplies and Services,304403,Equipment and Materials,05-Jul-2019,000006468042986,MEETEDGAR MONTHLY,5734,Other consumables,1.07,0.00,1.07
Regeneration and Local Services,Development and Housing,031617,Project Beta Sustainability Fund,Supplies and Services,304259,Equipment and Materials,05-Jul-2019,000006472573900,CITIZENCARD,9399,Equipment-purchase and rental,10.00,0.00,10.00
Regeneration and Local Services,Development and Housing,031617,Project Beta Sustainability Fund,Supplies and Services,304259,Equipment and Materials,05-Jul-2019,000006472573904,CITIZENCARD,9399,Equipment-purchase and rental,10.00,0.00,10.00
Regeneration and Local Services,Development and Housing,031617,Project Beta Sustainability Fund,Supplies and Services,304259,Equipment and Materials,05-Jul-2019,000006472573910,CITIZENCARD,9399,Equipment-purchase and rental,10.00,0.00,10.00
Dedicated Schools Grant BG0015,DSG High Needs Block,079050,SENSS-Sensory,Supplies and Services,328041,Clothing uniforms and laundry E328,05-Jul-2019,000006472574074,B & M RETAIL,5310,Clothing uniforms and laundry,16.76,0.00,16.76
Children and Young Peoples Services,Head of Childrens Social Care,085332,Middlestone Moor CU,Supplies and Services,324117,Provisions E324,05-Jul-2019,000006472574096,TESCO STORES 2371,5411,Catering costs - provisions,101.75,0.00,101.75
Regeneration and Local Services,Culture Sport and Tourism,011263,Louisa Centre 011263,Supplies and Services,324117,Provisions E324,05-Jul-2019,000006472574102,HOPWELLS LTD,5811,Catering costs - provisions,44.87,0.00,44.87
Regeneration and Local Services,Environmental Services,010367,C&G - South Grounds Maintenance,Supplies and Services,304221,Equipment and Materials,05-Jul-2019,000006472574190,SCREWFIX PETERLEE,5211,Direct materials,10.49,1.75,8.74
Regeneration and Local Services,Culture Sport and Tourism,011272,Empire Theatre Programmes & Productions,Supplies and Services,324117,Provisions E324,05-Jul-2019,000006472574214,HOPWELLS LTD,5811,Catering costs - provisions,73.86,12.31,61.55
Regeneration and Local Services,Culture Sport and Tourism,011272,Empire Theatre Programmes & Productions,Supplies and Services,324117,Provisions E324,05-Jul-2019,000006472574214 - 1,HOPWELLS LTD,5811,Catering costs - provisions,0.05,,0.05
Children and Young Peoples Services,Head of Childrens Social Care,085352,Tow Law CU,Supplies and Services,312011,Newspapers books and periodicals E312,05-Jul-2019,000006472574224,HOME BARGAINS,5251,Books-school library,7.56,1.26,6.30
Children and Young Peoples Services,Head of Childrens Social Care,085352,Tow Law CU,Supplies and Services,304221,Equipment and Materials,05-Jul-2019,000006472574228,SCREWFIX BISHOP AUCKLA,5211,Direct materials,109.99,18.33,91.66
Regeneration and Local Services,Development and Housing,030544,Rural Employability - Client Engagement,Supplies and Services,384700,Miscellaneous Expenses,05-Jul-2019,000006472574248,ARRIVA NORTH EAST,4131,Miscellaneous grants,26.20,0.00,26.20
Regeneration and Local Services,Corporate Property and Land,021242,Catering - County Hall,Supplies and Services,324117,Provisions E324,05-Jul-2019,000006472574272,HOPWELLS LTD,5811,Catering costs - provisions,257.42,0.00,257.42
Regeneration and Local Services,Corporate Property and Land,021242,Catering - County Hall,Supplies and Services,324117,Provisions E324,05-Jul-2019,000006472574278,HOPWELLS LTD,5811,Catering costs - provisions,22.50,3.75,18.75
Regeneration and Local Services,Corporate Property and Land,021242,Catering - County Hall,Supplies and Services,324117,Provisions E324,05-Jul-2019,000006472574278 - 1,HOPWELLS LTD,5811,Catering costs - provisions,222.09,,222.09
Regeneration and Local Services,Corporate Property and Land,021242,Catering - County Hall,Supplies and Services,324117,Provisions E324,05-Jul-2019,000006472574282,JR HOLLAND FOODSERVICE,5499,Catering costs - provisions,13.84,0.00,13.84
Regeneration and Local Services,Corporate Property and Land,021242,Catering - County Hall,Supplies and Services,324117,Provisions E324,05-Jul-2019,000006472574288,JR HOLLAND FOODSERVICE,5499,Catering costs - provisions,58.79,0.00,58.79
Children and Young Peoples Services,Head of Childrens Social Care,085625,Families First Spennymoor,Supplies and Services,308011,Furniture,05-Jul-2019,000006472574296,FRANKS THE FLOORING ST,5713,Furniture repair and replacement,300.00,0.00,300.00
Regeneration and Local Services,Culture Sport and Tourism,054812,Gala Theatre - Catering etc,Supplies and Services,324117,Provisions E324,05-Jul-2019,000006472574326,HOPWELLS LTD,5811,Catering costs - provisions,20.68,0.00,20.68
Regeneration and Local Services,Development and Housing,031576,B& B - Temp Accom,Supplies and Services,364320,Grants to Voluntary Organisations,05-Jul-2019,000006472574334,HAYAT HOTEL,7011,Accommodation assistance,267.00,44.50,222.50
Regeneration and Local Services,Corporate Property and Land,021242,Catering - County Hall,Supplies and Services,312011,Newspapers books and periodicals E312,05-Jul-2019,000006472574388,HOME BARGAINS,5251,Books-school library,17.28,0.00,17.28
Regeneration and Local Services,Corporate Property and Land,021242,Catering - County Hall,Supplies and Services,324117,Provisions E324,05-Jul-2019,000006472574394,MAKRO SELF SERVICE WAS,5300,Catering costs - provisions,85.80,14.30,71.50
Regeneration and Local Services,Corporate Property and Land,021242,Catering - County Hall,Supplies and Services,324117,Provisions E324,05-Jul-2019,000006472574394 - 1,MAKRO SELF SERVICE WAS,5300,Catering costs - provisions,37.73,,37.73
Regeneration and Local Services,Development and Housing,030773,CLLD North,Supplies and Services,304259,Equipment and Materials,05-Jul-2019,000006472574482,Durham County CNCL,9399,Equipment-purchase and rental,11.00,0.00,11.00
Children and Young Peoples Services,Head of Childrens Social Care,085362,LAC & Permanence Team 2,Supplies and Services,384999,Miscellaneous Expenses,05-Jul-2019,000006472574486,HM PASSPORT OFFICE,9399,Other expenses,49.00,0.00,49.00
Children and Young Peoples Services,Head of Childrens Social Care,085361,LAC & Permanence Team 1,Supplies and Services,384999,Miscellaneous Expenses,05-Jul-2019,000006472574490,HM PASSPORT OFFICE,9399,Other expenses,49.00,0.00,49.00
Children and Young Peoples Services,Head of Childrens Social Care,085362,LAC & Permanence Team 2,Supplies and Services,384999,Miscellaneous Expenses,05-Jul-2019,000006472574496,HM PASSPORT OFFICE,9399,Other expenses,49.00,0.00,49.00
Children and Young Peoples Services,Head of Childrens Social Care,085361,LAC & Permanence Team 1,Supplies and Services,384999,Miscellaneous Expenses,05-Jul-2019,000006472574502,CITY OF NEWCASTLE INTE,9399,Other expenses,11.00,0.00,11.00
Regeneration and Local Services,Culture Sport and Tourism,054813,Gala Theatre - Technical,Supplies and Services,304221,Equipment and Materials,05-Jul-2019,000006472574568,PELIPRODUCT,5099,Direct materials,481.68,0.00,481.68
Regeneration and Local Services,Culture Sport and Tourism,010870,Chester-le-street Leisure Centre,Supplies and Services,304259,Equipment and Materials,05-Jul-2019,000006472574578,Amazon.co.uk M62K17K14,5969,Equipment-purchase and rental,58.48,0.00,58.48
Regeneration and Local Services,Culture Sport and Tourism,010599,Newton Aycliffe Leisure Ctr-General,Supplies and Services,304259,Equipment and Materials,05-Jul-2019,000006472574584,POWER TOOLS DIRECT,5072,Equipment-purchase and rental,113.70,18.95,94.75
Regeneration and Local Services,Culture Sport and Tourism,010599,Newton Aycliffe Leisure Ctr-General,Supplies and Services,304259,Equipment and Materials,05-Jul-2019,000006472574584 - 1,POWER TOOLS DIRECT,5072,Equipment-purchase and rental,4.48,,4.48
Regeneration and Local Services,Development and Housing,030771,Durham Advance Flexible Fund,Supplies and Services,348037,Subsistence E348,05-Jul-2019,000006472574688,COSTA COFFEE 43038640,5814,Subsistence,2.40,0.00,2.40
Children and Young Peoples Services,Head of Early Help Inclusion & Vulnerable Children.,085956,Lumley,Supplies and Services,308011,Furniture,05-Jul-2019,000006472574752,RUGSDIRECT.CO.UK,5713,Furniture repair and replacement,104.99,17.50,87.49
Children and Young Peoples Services,Head of Early Help Inclusion & Vulnerable Children.,085965,Barnard,Supplies and Services,324117,Provisions E324,05-Jul-2019,000006472574758,TESCO STORES 6329,5411,Catering costs - provisions,166.93,0.00,166.93
Regeneration and Local Services,Culture Sport and Tourism,054813,Gala Theatre - Technical,Supplies and Services,304403,Equipment and Materials,05-Jul-2019,000006472574804,AMZNMktplace,5999,Other consumables,14.99,0.00,14.99
Regeneration and Local Services,Culture Sport and Tourism,054813,Gala Theatre - Technical,Supplies and Services,304999,Equipment and Materials,05-Jul-2019,000006472574810,Amazon Prime M64JS47S4,5968,Misc equipment tools and materials,7.99,0.00,7.99
Regeneration and Local Services,Environmental Services,011060,C&G - Hardwick Park Catering,Supplies and Services,324117,Provisions E324,05-Jul-2019,000006472574864,HOPWELLS LTD,5811,Catering costs - provisions,254.28,42.38,211.90
Regeneration and Local Services,Environmental Services,011060,C&G - Hardwick Park Catering,Supplies and Services,324117,Provisions E324,05-Jul-2019,000006472574864 - 1,HOPWELLS LTD,5811,Catering costs - provisions,32.40,,32.40
Regeneration and Local Services,Environmental Services,011060,C&G - Hardwick Park Catering,Supplies and Services,324117,Provisions E324,05-Jul-2019,000006472574872,HOPWELLS LTD,5811,Catering costs - provisions,227.58,37.93,189.65
Regeneration and Local Services,Environmental Services,011060,C&G - Hardwick Park Catering,Supplies and Services,324117,Provisions E324,05-Jul-2019,000006472574872 - 1,HOPWELLS LTD,5811,Catering costs - provisions,22.19,,22.19
Regeneration and Local Services,Environmental Services,011060,C&G - Hardwick Park Catering,Supplies and Services,324117,Provisions E324,05-Jul-2019,000006472574878,HOPWELLS LTD,5811,Catering costs - provisions,742.92,123.82,619.10
Regeneration and Local Services,Environmental Services,011060,C&G - Hardwick Park Catering,Supplies and Services,324117,Provisions E324,05-Jul-2019,000006472574878 - 1,HOPWELLS LTD,5811,Catering costs - provisions,156.61,,156.61
Regeneration and Local Services,Environmental Services,011060,C&G - Hardwick Park Catering,Supplies and Services,324117,Provisions E324,05-Jul-2019,000006472574890,JR HOLLAND FOODSERVICE,5499,Catering costs - provisions,48.67,0.00,48.67
Regeneration and Local Services,Environmental Services,011060,C&G - Hardwick Park Catering,Supplies and Services,324117,Provisions E324,05-Jul-2019,000006472574898,HOPWELLS LTD,5811,Catering costs - provisions,-48.38,-8.06,-40.32
Regeneration and Local Services,Environmental Services,011060,C&G - Hardwick Park Catering,Supplies and Services,324117,Provisions E324,05-Jul-2019,000006472574904,HOPWELLS LTD,5811,Catering costs - provisions,-22.14,0.00,-22.14
Regeneration and Local Services,Environmental Services,011060,C&G - Hardwick Park Catering,Supplies and Services,324117,Provisions E324,05-Jul-2019,000006472574908,HOPWELLS LTD,5811,Catering costs - provisions,-36.91,-2.46,-34.45
Regeneration and Local Services,Environmental Services,011060,C&G - Hardwick Park Catering,Supplies and Services,324117,Provisions E324,05-Jul-2019,000006472574912,JR HOLLAND FOODSERVICE,5499,Catering costs - provisions,-1.55,0.00,-1.55
Regeneration and Local Services,Culture Sport and Tourism,054815,Gala Theatre Stage School,Supplies and Services,328041,Clothing uniforms and laundry E328,05-Jul-2019,000006472574930,BOOHOO.COM,5691,Clothing uniforms and laundry,36.59,0.00,36.59
Regeneration and Local Services,Culture Sport and Tourism,054815,Gala Theatre Stage School,Supplies and Services,328041,Clothing uniforms and laundry E328,05-Jul-2019,000006472574936,BOOHOO.COM,5691,Clothing uniforms and laundry,78.89,0.00,78.89
Regeneration and Local Services,Culture Sport and Tourism,054815,Gala Theatre Stage School,Supplies and Services,324117,Provisions E324,05-Jul-2019,000006472574940,SAINSBURYS SACAT (2303,5411,Catering costs - provisions,48.00,0.00,48.00
Regeneration and Local Services,Environmental Services,010919,C&G - Countryside Site Management,Supplies and Services,304403,Equipment and Materials,05-Jul-2019,000006472574950,AMZNMktplace,5999,Other consumables,14.48,0.00,14.48
Regeneration and Local Services,Corporate Property and Land,021234,Catering - Locomotion,Supplies and Services,324117,Provisions E324,05-Jul-2019,000006472574960,HOPWELLS LTD,5811,Catering costs - provisions,211.56,35.26,176.30
Regeneration and Local Services,Corporate Property and Land,021234,Catering - Locomotion,Supplies and Services,324117,Provisions E324,05-Jul-2019,000006472574960 - 1,HOPWELLS LTD,5811,Catering costs - provisions,198.26,,198.26
Regeneration and Local Services,Corporate Property and Land,021234,Catering - Locomotion,Supplies and Services,324117,Provisions E324,05-Jul-2019,000006472574968,HOPWELLS LTD,5811,Catering costs - provisions,-22.30,-3.72,-18.58
Regeneration and Local Services,Corporate Property and Land,010525,Catering - Green Lane,Supplies and Services,324117,Provisions E324,05-Jul-2019,000006472575030,HOPWELLS LTD,5811,Catering costs - provisions,51.85,0.00,51.85
Regeneration and Local Services,Corporate Property and Land,010525,Catering - Green Lane,Supplies and Services,324117,Provisions E324,05-Jul-2019,000006472575036,HOPWELLS LTD,5811,Catering costs - provisions,132.04,0.00,132.04
Regeneration and Local Services,Corporate Property and Land,010525,Catering - Green Lane,Supplies and Services,324117,Provisions E324,05-Jul-2019,000006472575042,HOPWELLS LTD,5811,Catering costs - provisions,-12.48,0.00,-12.48
Regeneration and Local Services,Development and Housing,030771,Durham Advance Flexible Fund,Supplies and Services,324117,Provisions E324,05-Jul-2019,000006472575046,MARTIN MCCOLL,5499,Catering costs - provisions,15.00,0.00,15.00
Regeneration and Local Services,Development and Housing,030771,Durham Advance Flexible Fund,Supplies and Services,304259,Equipment and Materials,05-Jul-2019,000006472575052,WWW.DURHAM.GOV.UK,9399,Equipment-purchase and rental,100.00,0.00,100.00
Regeneration and Local Services,Development and Housing,030771,Durham Advance Flexible Fund,Supplies and Services,304403,Equipment and Materials,05-Jul-2019,000006472575262,ECS : C/O CERTSURE LLP,5999,Other consumables,52.50,8.75,43.75
Children and Young Peoples Services,Head of Childrens Social Care,085333,Coxhoe Satelite Home,Supplies and Services,324117,Provisions E324,05-Jul-2019,000006472575304,ASDA SUPERSTORE 4987,5411,Catering costs - provisions,45.85,0.00,45.85
Regeneration and Local Services,Development and Housing,031500,Housing Solutions - Core Team,Supplies and Services,304259,Equipment and Materials,05-Jul-2019,000006472575310,DURHAM CITY HOMES,9399,Equipment-purchase and rental,73.67,0.00,73.67
Regeneration and Local Services,Development and Housing,031500,Housing Solutions - Core Team,Employees,040149,Recruitment Instruction and Training,05-Jul-2019,000006472575316,PREMIER INN,3811,Training-all costs,277.00,46.17,230.83
Children and Young Peoples Services,Head of Childrens Social Care,085342,9 Cedar Drive Aycliffe,Supplies and Services,324117,Provisions E324,05-Jul-2019,000006472575332,TESCO STORES 2916,5411,Catering costs - provisions,8.49,0.00,8.49
Children and Young Peoples Services,Head of Childrens Social Care,085352,Tow Law CU,Supplies and Services,304403,Equipment and Materials,05-Jul-2019,000006472575344,AMZNMktplace,5999,Other consumables,15.98,0.00,15.98
Children and Young Peoples Services,Head of Childrens Social Care,085352,Tow Law CU,Supplies and Services,308011,Furniture,05-Jul-2019,000006472575348,DUNELM ONLINE ORDER,5714,Furniture repair and replacement,108.00,0.00,108.00
Regeneration and Local Services,Corporate Property and Land,030691,Catering - Durham Dales Centre,Supplies and Services,324117,Provisions E324,05-Jul-2019,000006472575354,HOPWELLS LTD,5811,Catering costs - provisions,193.97,0.00,193.97
Regeneration and Local Services,Corporate Property and Land,030691,Catering - Durham Dales Centre,Supplies and Services,324117,Provisions E324,05-Jul-2019,000006472575362,HOPWELLS LTD,5811,Catering costs - provisions,27.94,0.00,27.94
Regeneration and Local Services,Corporate Property and Land,030691,Catering - Durham Dales Centre,Supplies and Services,324117,Provisions E324,05-Jul-2019,000006472575366,HOPWELLS LTD,5811,Catering costs - provisions,-13.86,0.00,-13.86
Children and Young Peoples Services,Head of Education and Skills,070264,EDC Premises,Third Party Payments 4THIRD,430100,Rendered by Private Contractors,05-Jul-2019,000006472575440,EB AOEA ANNUAL SUMMIT,7399,Payments to sub-contractors,75.00,0.00,75.00
Regeneration and Local Services,Environmental Services,010301,C&G - North Grounds Maintenance,Supplies and Services,304221,Equipment and Materials,05-Jul-2019,000006472575454,HARELAW SAWMILL,5211,Direct materials,18.00,3.00,15.00
Resources BK0010,Digital and Customer Services,065335,School Services - Implementations,Supplies and Services,304639,Equipment and Materials,05-Jul-2019,000006472575594,REPLACEBASE,5732,Technicians-supplies,148.95,24.83,124.12
Regeneration and Local Services,Development and Housing,030771,Durham Advance Flexible Fund,Transport,235057,Public Transport,05-Jul-2019,000006472575630,GO NORTH EAST LIMITED,4131,Staff travelling,17.00,0.00,17.00
Regeneration and Local Services,Development and Housing,030771,Durham Advance Flexible Fund,Supplies and Services,328041,Clothing uniforms and laundry E328,05-Jul-2019,000006472575632,OUTFIT,5691,Clothing uniforms and laundry,100.85,0.00,100.85
Dedicated Schools Grant BG0015,DSG High Needs Block,079040,SENSS-HQ,Supplies and Services,324117,Provisions E324,05-Jul-2019,000006472575642,TESCO STORES 2371,5411,Catering costs - provisions,11.48,0.00,11.48
Dedicated Schools Grant BG0015,DSG High Needs Block,079040,SENSS-HQ,Supplies and Services,352001,Conference Expenses,05-Jul-2019,000006472575646,NURTURE GROUP NETWORK,7392,Conferencesseminars fees etc,450.00,0.00,450.00
Children and Young Peoples Services,Head of Childrens Social Care,085513,Supporting Family Time Team,Supplies and Services,324117,Provisions E324,05-Jul-2019,000006472575650,ASDA STORES LTD 4313,5411,Catering costs - provisions,89.00,0.00,89.00
Children and Young Peoples Services,Head of Childrens Social Care,085513,Supporting Family Time Team,Supplies and Services,324117,Provisions E324,05-Jul-2019,000006472575654,ASDA STORES LTD 4313,5411,Catering costs - provisions,16.43,0.00,16.43
Regeneration and Local Services,Culture Sport and Tourism,054235,Bishop Auckland Town Hall Cafe,Supplies and Services,324117,Provisions E324,05-Jul-2019,000006472575698,HOPWELLS LTD,5811,Catering costs - provisions,48.90,0.00,48.90
Regeneration and Local Services,Culture Sport and Tourism,054235,Bishop Auckland Town Hall Cafe,Supplies and Services,324117,Provisions E324,05-Jul-2019,000006472575704,JR HOLLAND FOODSERVICE,5499,Catering costs - provisions,27.18,0.00,27.18
Regeneration and Local Services,Culture Sport and Tourism,011204,Festival and Events,Supplies and Services,304403,Equipment and Materials,05-Jul-2019,000006472575706,CARAVAN ACCESSORY SHOP,5561,Other consumables,57.94,0.00,57.94
Regeneration and Local Services,Corporate Property and Land,021324,Catering - Meadowfield,Supplies and Services,324117,Provisions E324,05-Jul-2019,000006472575714,HOPWELLS LTD,5811,Catering costs - provisions,78.65,0.00,78.65
Regeneration and Local Services,Technical Services CM0300,010984,Training and Development,Supplies and Services,384999,Miscellaneous Expenses,05-Jul-2019,000006472575792,WWW.LIFESAVERSDIRECT,5965,Other expenses,86.00,0.00,86.00
Regeneration and Local Services,Culture Sport and Tourism,054820,Gala Theatre - Overheads,Supplies and Services,304221,Equipment and Materials,05-Jul-2019,000006472575804,B & Q 1237,5200,Direct materials,29.00,0.00,29.00
Children and Young Peoples Services,Head of Childrens Social Care,085332,Middlestone Moor CU,Supplies and Services,348037,Subsistence E348,05-Jul-2019,000006472575820,INSHANGHAI,5812,Subsistence,33.20,0.00,33.20
Children and Young Peoples Services,Head of Childrens Social Care,085332,Middlestone Moor CU,Supplies and Services,384871,Miscellaneous Expenses,05-Jul-2019,000006472575824,ODEON/BOOKIT,7832,Training-other activities,23.50,0.00,23.50
Children and Young Peoples Services,Head of Childrens Social Care,085332,Middlestone Moor CU,Supplies and Services,384871,Miscellaneous Expenses,05-Jul-2019,000006472575828,ODEON/BOOKIT,7832,Training-other activities,19.50,0.00,19.50
Adult and Health Services,Head of Adults,055306,Spennymoor Pathways,Transport,235057,Public Transport,05-Jul-2019,000006472575896,ARRIVA PASSENGER S,7538,Staff travelling,90.00,0.00,90.00
Regeneration and Local Services,Corporate Property and Land,021235,Catering - Wharton Park,Supplies and Services,324117,Provisions E324,05-Jul-2019,000006472575984,HOPWELLS LTD,5811,Catering costs - provisions,106.16,0.00,106.16
Regeneration and Local Services,Corporate Property and Land,021235,Catering - Wharton Park,Supplies and Services,324117,Provisions E324,05-Jul-2019,000006472575990,HOPWELLS LTD,5811,Catering costs - provisions,337.92,56.32,281.60
Regeneration and Local Services,Corporate Property and Land,021235,Catering - Wharton Park,Supplies and Services,324117,Provisions E324,05-Jul-2019,000006472575990 - 1,HOPWELLS LTD,5811,Catering costs - provisions,123.55,,123.55
Regeneration and Local Services,Development and Housing,030552,ATLAS Regional Network,Supplies and Services,384926,Miscellaneous Expenses,05-Jul-2019,000006472576058,Jugendherberge Tuebing,7011,International visits,"1,407.85",0.00,1407.85
Children and Young Peoples Services,Head of Education and Skills,070264,EDC Premises,Supplies and Services,324117,Provisions E324,05-Jul-2019,000006477605072,BATLEYS PERTH,5300,Catering costs - provisions,22.46,0.00,22.46
Regeneration and Local Services,Environmental Services,011060,C&G - Hardwick Park Catering,Supplies and Services,324117,Provisions E324,05-Jul-2019,000006477605744,BATLEYS PERTH,5300,Catering costs - provisions,289.32,48.22,241.10
Regeneration and Local Services,Environmental Services,011060,C&G - Hardwick Park Catering,Supplies and Services,324117,Provisions E324,05-Jul-2019,000006477605744 - 1,BATLEYS PERTH,5300,Catering costs - provisions,191.24,,191.24
Regeneration and Local Services,Corporate Property and Land,010525,Catering - Green Lane,Supplies and Services,324117,Provisions E324,05-Jul-2019,000006477605916,BATLEYS PERTH,5300,Catering costs - provisions,163.68,27.28,136.40
Regeneration and Local Services,Corporate Property and Land,010525,Catering - Green Lane,Supplies and Services,324117,Provisions E324,05-Jul-2019,000006477605916 - 1,BATLEYS PERTH,5300,Catering costs - provisions,37.10,,37.10
Adult and Health Services,Head of Adults,055643,Hawthorn House LD Respite Unit,Supplies and Services,324117,Provisions E324,05-Jul-2019,000006477606344,BATLEYS PERTH,5300,Catering costs - provisions,7.50,1.25,6.25
Adult and Health Services,Head of Adults,055643,Hawthorn House LD Respite Unit,Supplies and Services,324117,Provisions E324,05-Jul-2019,000006477606344 - 1,BATLEYS PERTH,5300,Catering costs - provisions,45.48,,45.48
Children and Young Peoples Services,Head of Childrens Social Care,085342,9 Cedar Drive Aycliffe,Supplies and Services,348037,Subsistence E348,06-Jul-2019,000006472574558,THE OLIVE GARDEN,5812,Subsistence,25.50,0.00,25.50
Regeneration and Local Services,Culture Sport and Tourism,010601,Spennymoor Leisure Cr - General,Supplies and Services,304259,Equipment and Materials,06-Jul-2019,000006472574588,Amazon.co.uk M60YK09E4,5969,Equipment-purchase and rental,14.62,0.00,14.62
Regeneration and Local Services,Culture Sport and Tourism,010664,Freemans Quay Leisure Centre,Supplies and Services,304259,Equipment and Materials,06-Jul-2019,000006472574600,Amazon.co.uk M68PF79L4,5969,Equipment-purchase and rental,29.24,0.00,29.24
Regeneration and Local Services,Development and Housing,030771,Durham Advance Flexible Fund,Supplies and Services,324117,Provisions E324,06-Jul-2019,000006472574730,ASDA GEORGE COM LEEDS,5411,Catering costs - provisions,-89.00,0.00,-89.00
Children and Young Peoples Services,Head of Early Help Inclusion & Vulnerable Children.,085956,Lumley,Supplies and Services,324117,Provisions E324,06-Jul-2019,000006472574764,TESCO STORES 6329,5411,Catering costs - provisions,82.24,0.00,82.24
Regeneration and Local Services,Culture Sport and Tourism,054813,Gala Theatre - Technical,Supplies and Services,312009,Newspapers books and periodicals E312,06-Jul-2019,000006472574834,THE POST OFFICE,5994,Newspapers books and periodicals,15.76,0.00,15.76
Regeneration and Local Services,Culture Sport and Tourism,054813,Gala Theatre - Technical,Supplies and Services,324117,Provisions E324,06-Jul-2019,000006472574838,ASDA STORES LTD 5001,5411,Catering costs - provisions,88.67,0.00,88.67
Children and Young Peoples Services,Head of Childrens Social Care,085333,Coxhoe Satelite Home,Transport,235057,Public Transport,06-Jul-2019,000006472575280,DBC MSCP,7523,Staff travelling,3.00,0.00,3.00
Children and Young Peoples Services,Head of Childrens Social Care,085333,Coxhoe Satelite Home,Supplies and Services,324117,Provisions E324,06-Jul-2019,000006472575286,TESCO STORES 2371,5411,Catering costs - provisions,10.00,0.00,10.00
Children and Young Peoples Services,Head of Childrens Social Care,085333,Coxhoe Satelite Home,Supplies and Services,332047,Printing Stationery and Gen Off Exps,06-Jul-2019,000006472575290,VUE CINEMAS WWW,7832,Stationery,15.48,0.00,15.48
Children and Young Peoples Services,Head of Early Help Inclusion & Vulnerable Children.,088115,North Area - Teenage Parent Programme,Supplies and Services,304403,Equipment and Materials,06-Jul-2019,000006472575472,Amazon.co.uk M65MZ89Z4,5969,Other consumables,23.11,0.00,23.11
Resources BK0010,Digital and Customer Services,065335,School Services - Implementations,Supplies and Services,304639,Equipment and Materials,06-Jul-2019,000006472575602,AMZNMKTPLACE AMAZON.CO,5999,Technicians-supplies,39.99,6.67,33.32
Children and Young Peoples Services,Head of Early Help Inclusion & Vulnerable Children.,085957,Secure Management,Supplies and Services,304999,Equipment and Materials,06-Jul-2019,000006477605694,TESCO DELIVERY SAVER2,5968,Misc equipment tools and materials,6.99,0.00,6.99
Children and Young Peoples Services,Head of Childrens Social Care,085341,High Etherley Satelite Home,Supplies and Services,324117,Provisions E324,07-Jul-2019,000006472573884,HERON FOODS,5499,Catering costs - provisions,10.00,0.00,10.00
Children and Young Peoples Services,Head of Education and Skills,054640,Durham Learning Resources 054640,Supplies and Services,304245,Equipment and Materials,07-Jul-2019,000006472573926,AMZNMktplace,5999,Materials,79.96,0.00,79.96
Children and Young Peoples Services,Head of Childrens Social Care,085333,Coxhoe Satelite Home,Supplies and Services,348037,Subsistence E348,07-Jul-2019,000006472574172,GREEK GYROS,5812,Subsistence,15.20,0.00,15.20
Children and Young Peoples Services,Head of Childrens Social Care,085333,Coxhoe Satelite Home,Supplies and Services,304259,Equipment and Materials,07-Jul-2019,000006472574184,WILKO METRO CENTRE,5722,Equipment-purchase and rental,15.80,0.00,15.80
Regeneration and Local Services,Culture Sport and Tourism,010601,Spennymoor Leisure Cr - General,Supplies and Services,304259,Equipment and Materials,07-Jul-2019,000006472574592,Amazon.co.uk M65XZ4934,5969,Equipment-purchase and rental,46.75,0.00,46.75
Regeneration and Local Services,Culture Sport and Tourism,010599,Newton Aycliffe Leisure Ctr-General,Supplies and Services,304259,Equipment and Materials,07-Jul-2019,000006472574596,Amazon.co.uk M66SQ5974,5969,Equipment-purchase and rental,36.55,0.00,36.55
Regeneration and Local Services,Culture Sport and Tourism,010601,Spennymoor Leisure Cr - General,Supplies and Services,304259,Equipment and Materials,07-Jul-2019,000006472574604,Amazon.co.uk M61MH9UZ4,5969,Equipment-purchase and rental,85.64,0.00,85.64
Regeneration and Local Services,Culture Sport and Tourism,054813,Gala Theatre - Technical,Supplies and Services,312011,Newspapers books and periodicals E312,07-Jul-2019,000006472574818,Amazon.co.uk M61MX87P4,5969,Books-school library,55.76,0.00,55.76
Regeneration and Local Services,Culture Sport and Tourism,054813,Gala Theatre - Technical,Supplies and Services,312011,Newspapers books and periodicals E312,07-Jul-2019,000006472574824,Amazon.co.uk M676A5U64,5969,Books-school library,72.00,0.00,72.00
Regeneration and Local Services,Culture Sport and Tourism,054813,Gala Theatre - Technical,Supplies and Services,304403,Equipment and Materials,07-Jul-2019,000006472574828,AMZNMktplace,5999,Other consumables,6.99,0.00,6.99
Regeneration and Local Services,Culture Sport and Tourism,054813,Gala Theatre - Technical,Supplies and Services,304403,Equipment and Materials,07-Jul-2019,000006472574840,AMZNMktplace,5999,Other consumables,13.99,0.00,13.99
Regeneration and Local Services,Culture Sport and Tourism,054815,Gala Theatre Stage School,Supplies and Services,312011,Newspapers books and periodicals E312,07-Jul-2019,000006472574944,Amazon.co.uk M607P2994,5969,Books-school library,28.00,0.00,28.00
Regeneration and Local Services,Development and Housing,030554,International Relations 030554,Supplies and Services,348037,Subsistence E348,07-Jul-2019,000006472575090,FISCHERS BRAUHAUS,5812,Subsistence,81.84,0.00,81.84
Children and Young Peoples Services,Head of Childrens Social Care,085334,West Rainton Satelite Home,Supplies and Services,352001,Conference Expenses,07-Jul-2019,000006472575176,THE HOGS HEAD INN,7011,Conferencesseminars fees etc,41.05,6.84,34.21
Children and Young Peoples Services,Head of Childrens Social Care,085334,West Rainton Satelite Home,Supplies and Services,304999,Equipment and Materials,07-Jul-2019,000006472575180,GARDENS ADMISSIONS,7991,Misc equipment tools and materials,33.00,0.00,33.00
Children and Young Peoples Services,Head of Childrens Social Care,085334,West Rainton Satelite Home,Supplies and Services,324117,Provisions E324,07-Jul-2019,000006472575186,THE ALNWICK GARDEN TRU,5811,Catering costs - provisions,10.90,0.00,10.90
Children and Young Peoples Services,Head of Childrens Social Care,085334,West Rainton Satelite Home,Supplies and Services,324117,Provisions E324,07-Jul-2019,000006472575190,THE ALNWICK GARDEN TRU,5811,Catering costs - provisions,6.00,0.00,6.00
Children and Young Peoples Services,Head of Childrens Social Care,085334,West Rainton Satelite Home,Supplies and Services,324117,Provisions E324,07-Jul-2019,000006472575194,THE ALNWICK GARDEN TRU,5811,Catering costs - provisions,2.95,0.00,2.95
Children and Young Peoples Services,Head of Early Help Inclusion & Vulnerable Children.,074000,TTF-Attachment and Results,Transfer Payments,525033,Other,07-Jul-2019,000006472575484,Amazon.co.uk M60TT49H4,5969,Grants to individuals,23.00,3.83,19.17
Children and Young Peoples Services,Head of Early Help Inclusion & Vulnerable Children.,074000,TTF-Attachment and Results,Transfer Payments,525033,Other,07-Jul-2019,000006472575490,Amazon.co.uk M60TT9904,5969,Grants to individuals,23.00,3.83,19.17
Children and Young Peoples Services,Head of Early Help Inclusion & Vulnerable Children.,074000,TTF-Attachment and Results,Transfer Payments,525033,Other,07-Jul-2019,000006472575496,Amazon.co.uk M61UZ2944,5969,Grants to individuals,23.00,3.83,19.17
Children and Young Peoples Services,Head of Early Help Inclusion & Vulnerable Children.,074000,TTF-Attachment and Results,Transfer Payments,525033,Other,07-Jul-2019,000006472575502,Amazon.co.uk M62KQ79U4,5969,Grants to individuals,23.00,3.83,19.17
Children and Young Peoples Services,Head of Early Help Inclusion & Vulnerable Children.,074000,TTF-Attachment and Results,Transfer Payments,525033,Other,07-Jul-2019,000006472575506,Amazon.co.uk M62T799M4,5969,Grants to individuals,23.00,3.83,19.17
Children and Young Peoples Services,Head of Early Help Inclusion & Vulnerable Children.,074000,TTF-Attachment and Results,Transfer Payments,525033,Other,07-Jul-2019,000006472575510,Amazon.co.uk M63FU29T4,5969,Grants to individuals,23.00,3.83,19.17
Children and Young Peoples Services,Head of Early Help Inclusion & Vulnerable Children.,074000,TTF-Attachment and Results,Transfer Payments,525033,Other,07-Jul-2019,000006472575514,Amazon.co.uk M63KF09Z4,5969,Grants to individuals,23.00,3.83,19.17
Children and Young Peoples Services,Head of Early Help Inclusion & Vulnerable Children.,074000,TTF-Attachment and Results,Transfer Payments,525033,Other,07-Jul-2019,000006472575518,Amazon.co.uk M63KU49M4,5969,Grants to individuals,23.00,3.83,19.17
Children and Young Peoples Services,Head of Early Help Inclusion & Vulnerable Children.,074000,TTF-Attachment and Results,Transfer Payments,525033,Other,07-Jul-2019,000006472575522,Amazon.co.uk M63RU69O4,5969,Grants to individuals,23.00,3.83,19.17
Children and Young Peoples Services,Head of Early Help Inclusion & Vulnerable Children.,074000,TTF-Attachment and Results,Transfer Payments,525033,Other,07-Jul-2019,000006472575528,Amazon.co.uk M63RX7924,5969,Grants to individuals,23.00,3.83,19.17
Children and Young Peoples Services,Head of Early Help Inclusion & Vulnerable Children.,074000,TTF-Attachment and Results,Transfer Payments,525033,Other,07-Jul-2019,000006472575534,Amazon.co.uk M64K989V4,5969,Grants to individuals,23.00,3.83,19.17
Children and Young Peoples Services,Head of Early Help Inclusion & Vulnerable Children.,074000,TTF-Attachment and Results,Transfer Payments,525033,Other,07-Jul-2019,000006472575540,Amazon.co.uk M64OW99U4,5969,Grants to individuals,23.00,3.83,19.17
Children and Young Peoples Services,Head of Early Help Inclusion & Vulnerable Children.,074000,TTF-Attachment and Results,Transfer Payments,525033,Other,07-Jul-2019,000006472575544,Amazon.co.uk M64O709O4,5969,Grants to individuals,23.00,3.83,19.17
Children and Young Peoples Services,Head of Early Help Inclusion & Vulnerable Children.,074000,TTF-Attachment and Results,Transfer Payments,525033,Other,07-Jul-2019,000006472575550,Amazon.co.uk M64UZ2914,5969,Grants to individuals,23.00,3.83,19.17
Children and Young Peoples Services,Head of Early Help Inclusion & Vulnerable Children.,074000,TTF-Attachment and Results,Transfer Payments,525033,Other,07-Jul-2019,000006472575554,Amazon.co.uk M64ZO0U84,5969,Grants to individuals,23.00,3.83,19.17
Children and Young Peoples Services,Head of Early Help Inclusion & Vulnerable Children.,074000,TTF-Attachment and Results,Transfer Payments,525033,Other,07-Jul-2019,000006472575558,Amazon.co.uk M65FU29H4,5969,Grants to individuals,23.00,3.83,19.17
Children and Young Peoples Services,Head of Early Help Inclusion & Vulnerable Children.,074000,TTF-Attachment and Results,Transfer Payments,525033,Other,07-Jul-2019,000006472575564,Amazon.co.uk M65K679S4,5969,Grants to individuals,23.00,3.83,19.17
Children and Young Peoples Services,Head of Early Help Inclusion & Vulnerable Children.,074000,TTF-Attachment and Results,Transfer Payments,525033,Other,07-Jul-2019,000006472575566,Amazon.co.uk M67OL19O4,5969,Grants to individuals,23.00,3.83,19.17
Children and Young Peoples Services,Head of Early Help Inclusion & Vulnerable Children.,074000,TTF-Attachment and Results,Transfer Payments,525033,Other,07-Jul-2019,000006472575570,Amazon.co.uk M68K649Y4,5969,Grants to individuals,23.00,3.83,19.17
Children and Young Peoples Services,Head of Early Help Inclusion & Vulnerable Children.,074000,TTF-Attachment and Results,Transfer Payments,525033,Other,07-Jul-2019,000006472575576,Amazon.co.uk M68RX99J4,5969,Grants to individuals,23.00,3.83,19.17
Regeneration and Local Services,Technical Services CM0300,010984,Training and Development,Supplies and Services,312011,Newspapers books and periodicals E312,07-Jul-2019,000006472575794,Amazon.co.uk M606S3U74,5969,Books-school library,35.44,0.00,35.44
Regeneration and Local Services,Culture Sport and Tourism,054820,Gala Theatre - Overheads,Supplies and Services,312011,Newspapers books and periodicals E312,07-Jul-2019,000006472575808,Amazon.co.uk M66TG0944,5969,Books-school library,254.00,0.00,254.00
Children and Young Peoples Services,Head of Childrens Social Care,085332,Middlestone Moor CU,Premises,115125,Repairs to Grounds,07-Jul-2019,000006472575832,B & Q 1120,5211,General maintenance,64.94,0.00,64.94
Children and Young Peoples Services,Head of Childrens Social Care,085332,Middlestone Moor CU,Supplies and Services,384871,Miscellaneous Expenses,07-Jul-2019,000006472575838,WWW.MILLETS.CO.UK,5941,Training-other activities,202.99,0.00,202.99
Regeneration and Local Services,Development and Housing,030552,ATLAS Regional Network,Supplies and Services,384926,Miscellaneous Expenses,07-Jul-2019,000006472576064,Burg Hohenzollern,7991,International visits,238.96,0.00,238.96
Children and Young Peoples Services,Head of Childrens Social Care,085333,Coxhoe Satelite Home,Supplies and Services,328041,Clothing uniforms and laundry E328,07-Jul-2019,000006477605230,PRIMARK 670 GATESHEAD,5651,Clothing uniforms and laundry,45.10,0.00,45.10
Children and Young Peoples Services,Head of Early Help Inclusion & Vulnerable Children.,085954,Walworth,Supplies and Services,324117,Provisions E324,07-Jul-2019,000006477605680,TESCO STORES 6329,5411,Catering costs - provisions,80.42,0.00,80.42
Children and Young Peoples Services,Head of Education and Skills,054640,Durham Learning Resources 054640,Supplies and Services,304245,Equipment and Materials,08-Jul-2019,000006472573928,AMZNMktplace,5999,Materials,4.99,0.83,4.16
Regeneration and Local Services,Development and Housing,030554,International Relations 030554,Supplies and Services,348037,Subsistence E348,08-Jul-2019,000006472575096,FISCHERS BRAUHAUS,5812,Subsistence,2.25,0.00,2.25
Regeneration and Local Services,Development and Housing,030552,ATLAS Regional Network,Supplies and Services,384926,Miscellaneous Expenses,08-Jul-2019,000006472576068,Jugendherberge Tuebing,7011,International visits,38.72,0.00,38.72
Regeneration and Local Services,Development and Housing,030552,ATLAS Regional Network,Supplies and Services,384926,Miscellaneous Expenses,08-Jul-2019,000006472576070,Burg Hohenzollern,7991,International visits,6.57,0.00,6.57
Children and Young Peoples Services,Head of Education and Skills,071801,Selby Cottage Childcare Centre,Supplies and Services,304999,Equipment and Materials,08-Jul-2019,000006477605032,Amazon Prime M63KA3UO4,5968,Misc equipment tools and materials,7.99,0.00,7.99
Children and Young Peoples Services,Head of Education and Skills,054640,Durham Learning Resources 054640,Supplies and Services,304245,Equipment and Materials,08-Jul-2019,000006477605042,Amazon.co.uk M67ZB0IC4,5969,Materials,6.36,1.06,5.30
Resources BK0010,Digital and Customer Services,065487,ICT Telephony Recharges,Supplies and Services,344033,Telephones,08-Jul-2019,000006477605050,AMZNMktplace,5999,Telephones general-all costs,5.99,1.00,4.99
Resources BK0010,Digital and Customer Services,065487,ICT Telephony Recharges,Supplies and Services,344033,Telephones,08-Jul-2019,000006477605054,AMZNMktplace,5999,Telephones general-all costs,204.84,34.20,170.64
Adult and Health Services,Commissioning inc Supporting People,052100,Supporting the Provider Market,Supplies and Services,338057,Services,08-Jul-2019,000006477605060,WWW.WESSEX-MEDICAL.COM,5047,Medical fees 338057,60.00,10.00,50.00
Adult and Health Services,Commissioning inc Supporting People,052100,Supporting the Provider Market,Supplies and Services,338057,Services,08-Jul-2019,000006477605064,WWW.WESSEX-MEDICAL.COM,5047,Medical fees 338057,492.00,82.00,410.00
Children and Young Peoples Services,Head of Education and Skills,075021,Youth Employment Initiative,Supplies and Services,384999,Miscellaneous Expenses,08-Jul-2019,000006477605108,Amazon.co.uk M61GY9IO4,5969,Other expenses,43.50,7.25,36.25
Children and Young Peoples Services,Head of Education and Skills,075021,Youth Employment Initiative,Supplies and Services,384199,Miscellaneous Expenses,08-Jul-2019,000006477605116,STOCKTON BOROUGH COUNC,9399,Other hired and contracted services,11.00,0.00,11.00
Regeneration and Local Services,Business Durham CL0850,030699,Business Growth and Innovation General,Supplies and Services,304999,Equipment and Materials,08-Jul-2019,000006477605160,WWW.PARAGON.NET.UK RT,5968,Misc equipment tools and materials,7.49,0.00,7.49
Regeneration and Local Services,Culture Sport and Tourism,011263,Louisa Centre 011263,Supplies and Services,324117,Provisions E324,08-Jul-2019,000006477605170,JR HOLLAND FOODSERVICE,5499,Catering costs - provisions,16.19,0.00,16.19
Regeneration and Local Services,Culture Sport and Tourism,011263,Louisa Centre 011263,Supplies and Services,324117,Provisions E324,08-Jul-2019,000006477605174,JR HOLLAND FOODSERVICE,5499,Catering costs - provisions,27.42,0.00,27.42
Regeneration and Local Services,Environmental Services,010367,C&G - South Grounds Maintenance,Supplies and Services,304221,Equipment and Materials,08-Jul-2019,000006477605238,MKM PETERLEE,5211,Direct materials,122.76,20.46,102.30
Regeneration and Local Services,Environmental Services,010367,C&G - South Grounds Maintenance,Supplies and Services,304221,Equipment and Materials,08-Jul-2019,000006477605244,SCREWFIX PETERLEE,5211,Direct materials,39.98,6.66,33.32
Regeneration and Local Services,Development and Housing,030544,Rural Employability - Client Engagement,Supplies and Services,384700,Miscellaneous Expenses,08-Jul-2019,000006477605302,GO NORTH EAST LIMITED,4131,Miscellaneous grants,40.20,0.00,40.20
Regeneration and Local Services,Corporate Property and Land,021242,Catering - County Hall,Supplies and Services,324117,Provisions E324,08-Jul-2019,000006477605310,FREEMAN CATERING BUTCH,5422,Catering costs - provisions,246.62,0.00,246.62
Regeneration and Local Services,Corporate Property and Land,021242,Catering - County Hall,Supplies and Services,324117,Provisions E324,08-Jul-2019,000006477605316,JR HOLLAND FOODSERVICE,5499,Catering costs - provisions,146.02,0.00,146.02
Regeneration and Local Services,Corporate Property and Land,021242,Catering - County Hall,Supplies and Services,324117,Provisions E324,08-Jul-2019,000006477605326,WWW.ADELIEFOODS.CO.UK,5499,Catering costs - provisions,41.52,0.00,41.52
Regeneration and Local Services,Corporate Property and Land,021242,Catering - County Hall,Supplies and Services,324117,Provisions E324,08-Jul-2019,000006477605330,WWW.ADELIEFOODS.CO.UK,5499,Catering costs - provisions,65.70,0.00,65.70
Regeneration and Local Services,Corporate Property and Land,021242,Catering - County Hall,Supplies and Services,324117,Provisions E324,08-Jul-2019,000006477605334,WWW.ADELIEFOODS.CO.UK,5499,Catering costs - provisions,41.52,0.00,41.52
Regeneration and Local Services,Corporate Property and Land,021242,Catering - County Hall,Supplies and Services,324117,Provisions E324,08-Jul-2019,000006477605338,WWW.ADELIEFOODS.CO.UK,5499,Catering costs - provisions,57.80,0.00,57.80
Regeneration and Local Services,Culture Sport and Tourism,054233,Bishop Auckland Town Hall Library,Supplies and Services,304259,Equipment and Materials,08-Jul-2019,000006477605342,WILKO RETAIL LIMIT,5722,Equipment-purchase and rental,21.25,0.00,21.25
Resources BK0010,Digital and Customer Services,065481,Technical Services 065481,Supplies and Services,372009,Subscriptions E372,08-Jul-2019,000006477605362,NOMINET UK,7392,Subscriptions 372009,13.50,2.25,11.25
Transformation and Partnerships,Business Support,065461,Business Support 065461,Supplies and Services,372009,Subscriptions E372,08-Jul-2019,000006477605368,NOMINET UK,7392,Subscriptions 372009,36.00,0.00,36.00
Regeneration and Local Services,Development and Housing,030544,Rural Employability - Client Engagement,Supplies and Services,384700,Miscellaneous Expenses,08-Jul-2019,000006477605394,GO NORTH EAST LIMITED,4131,Miscellaneous grants,6.70,0.00,6.70
Regeneration and Local Services,Culture Sport and Tourism,054812,Gala Theatre - Catering etc,Supplies and Services,324117,Provisions E324,08-Jul-2019,000006477605400,JR HOLLAND FOODSERVICE,5499,Catering costs - provisions,21.98,0.00,21.98
Regeneration and Local Services,Development and Housing,031576,B& B - Temp Accom,Supplies and Services,364320,Grants to Voluntary Organisations,08-Jul-2019,000006477605406,HAYAT HOTEL,7011,Accommodation assistance,178.00,29.67,148.33
Children and Young Peoples Services,Head of Childrens Social Care,085361,LAC & Permanence Team 1,Supplies and Services,384999,Miscellaneous Expenses,08-Jul-2019,000006477605438,HM PASSPORT OFFICE,9399,Other expenses,49.00,0.00,49.00
Children and Young Peoples Services,Head of Childrens Social Care,085361,LAC & Permanence Team 1,Supplies and Services,384999,Miscellaneous Expenses,08-Jul-2019,000006477605444,HM PASSPORT OFFICE,9399,Other expenses,49.00,0.00,49.00
Children and Young Peoples Services,Head of Childrens Social Care,085361,LAC & Permanence Team 1,Supplies and Services,384999,Miscellaneous Expenses,08-Jul-2019,000006477605450,GEN REGISTER OFFICE,9399,Other expenses,14.00,0.00,14.00
Children and Young Peoples Services,Head of Childrens Social Care,085333,Coxhoe Satelite Home,Supplies and Services,312011,Newspapers books and periodicals E312,08-Jul-2019,000006477605456,PAYPAL PAYPALGIFTS,4816,Books-school library,30.00,0.00,30.00
Regeneration and Local Services,Culture Sport and Tourism,011217,Commercial Management 011217,Supplies and Services,342033,Computers and Communications,08-Jul-2019,000006477605460,iStock.com,7333,Computer hardware,24.00,0.00,24.00
Children and Young Peoples Services,Head of Childrens Social Care,085334,West Rainton Satelite Home,Supplies and Services,324117,Provisions E324,08-Jul-2019,000006477605488,TESCO STORES 2371,5411,Catering costs - provisions,132.89,0.00,132.89
Children and Young Peoples Services,Head of Childrens Social Care,085334,West Rainton Satelite Home,Supplies and Services,312011,Newspapers books and periodicals E312,08-Jul-2019,000006477605494,HOME BARGAINS,5251,Books-school library,43.87,0.00,43.87
Children and Young Peoples Services,Head of Education and Skills,071732,Dean Bank Childcare,Supplies and Services,324117,Provisions E324,08-Jul-2019,000006477605534,ASDA GROCERIES ONLINE,5411,Catering costs - provisions,56.06,0.00,56.06
Children and Young Peoples Services,Head of Education and Skills,071732,Dean Bank Childcare,Supplies and Services,328041,Clothing uniforms and laundry E328,08-Jul-2019,000006477605540,B & M RETAIL,5310,Clothing uniforms and laundry,34.34,0.00,34.34
Children and Young Peoples Services,Head of Education and Skills,071732,Dean Bank Childcare,Supplies and Services,324117,Provisions E324,08-Jul-2019,000006477605542,ASDA GROCERIES ONLINE,5411,Catering costs - provisions,-4.80,0.00,-4.80
Regeneration and Local Services,Culture Sport and Tourism,054813,Gala Theatre - Technical,Supplies and Services,342053,Computers and Communications,08-Jul-2019,000006477605552,STORMFRONT DURHAM,5045,Computer software,269.85,0.00,269.85
Regeneration and Local Services,Development and Housing,030771,Durham Advance Flexible Fund,Supplies and Services,304259,Equipment and Materials,08-Jul-2019,000006477605564,GEN REGISTER OFFICE,9399,Equipment-purchase and rental,14.00,0.00,14.00
Children and Young Peoples Services,Head of Childrens Social Care,085334,West Rainton Satelite Home,Supplies and Services,384999,Miscellaneous Expenses,08-Jul-2019,000006477605572,HETTON POOL,7997,Other expenses,60.50,0.00,60.50
Regeneration and Local Services,Culture Sport and Tourism,010991,County-wide FISCH,Supplies and Services,324117,Provisions E324,08-Jul-2019,000006477605648,WM MORRISONS STORE,5411,Catering costs - provisions,15.98,0.00,15.98
Children and Young Peoples Services,Head of Early Help Inclusion & Vulnerable Children.,085952,Secure Education,Supplies and Services,324117,Provisions E324,08-Jul-2019,000006477605686,TESCO STORES 6329,5411,Catering costs - provisions,213.31,0.00,213.31
Regeneration and Local Services,Culture Sport and Tourism,054813,Gala Theatre - Technical,Supplies and Services,304403,Equipment and Materials,08-Jul-2019,000006477605698,AMZNMktplace,5999,Other consumables,39.99,0.00,39.99
Regeneration and Local Services,Environmental Services,011060,C&G - Hardwick Park Catering,Supplies and Services,304259,Equipment and Materials,08-Jul-2019,000006477605712,WWW.CATERINGEQUIPMENTS,5999,Equipment-purchase and rental,25.92,4.32,21.60
Regeneration and Local Services,Environmental Services,010367,C&G - South Grounds Maintenance,Supplies and Services,304221,Equipment and Materials,08-Jul-2019,000006477605720,ARBOR TIMBER AND BUILD,5211,Direct materials,17.00,0.00,17.00
Regeneration and Local Services,Environmental Services,011060,C&G - Hardwick Park Catering,Supplies and Services,324117,Provisions E324,08-Jul-2019,000006477605754,FREEMAN CATERING BUTCH,5422,Catering costs - provisions,43.82,0.00,43.82
Regeneration and Local Services,Environmental Services,011060,C&G - Hardwick Park Catering,Supplies and Services,324117,Provisions E324,08-Jul-2019,000006477605758,FREEMAN CATERING BUTCH,5422,Catering costs - provisions,150.00,0.00,150.00
Regeneration and Local Services,Environmental Services,011060,C&G - Hardwick Park Catering,Supplies and Services,324117,Provisions E324,08-Jul-2019,000006477605764,FREEMAN CATERING BUTCH,5422,Catering costs - provisions,18.11,0.00,18.11
Regeneration and Local Services,Environmental Services,011060,C&G - Hardwick Park Catering,Supplies and Services,324117,Provisions E324,08-Jul-2019,000006477605772,JR HOLLAND FOODSERVICE,5499,Catering costs - provisions,87.95,0.00,87.95
Regeneration and Local Services,Environmental Services,011060,C&G - Hardwick Park Catering,Supplies and Services,324117,Provisions E324,08-Jul-2019,000006477605774,JR HOLLAND FOODSERVICE,5499,Catering costs - provisions,76.40,0.00,76.40
Regeneration and Local Services,Corporate Property and Land,021234,Catering - Locomotion,Supplies and Services,324117,Provisions E324,08-Jul-2019,000006477605804,FREEMAN CATERING BUTCH,5422,Catering costs - provisions,79.78,0.00,79.78
Regeneration and Local Services,Corporate Property and Land,021234,Catering - Locomotion,Supplies and Services,324117,Provisions E324,08-Jul-2019,000006477605808,JR HOLLAND FOODSERVICE,5499,Catering costs - provisions,54.79,0.00,54.79
Regeneration and Local Services,Corporate Property and Land,021234,Catering - Locomotion,Supplies and Services,324117,Provisions E324,08-Jul-2019,000006477605814,WWW.ADELIEFOODS.CO.UK,5499,Catering costs - provisions,70.89,0.00,70.89
Regeneration and Local Services,Corporate Property and Land,021234,Catering - Locomotion,Supplies and Services,324117,Provisions E324,08-Jul-2019,000006477605818,WWW.ADELIEFOODS.CO.UK,5499,Catering costs - provisions,50.56,0.00,50.56
Regeneration and Local Services,Corporate Property and Land,021234,Catering - Locomotion,Supplies and Services,324117,Provisions E324,08-Jul-2019,000006477605824,WWW.ADELIEFOODS.CO.UK,5499,Catering costs - provisions,89.04,0.00,89.04
Regeneration and Local Services,Corporate Property and Land,010525,Catering - Green Lane,Supplies and Services,324117,Provisions E324,08-Jul-2019,000006477605934,FREEMAN CATERING BUTCH,5422,Catering costs - provisions,55.20,0.00,55.20
Regeneration and Local Services,Corporate Property and Land,010525,Catering - Green Lane,Supplies and Services,324117,Provisions E324,08-Jul-2019,000006477605944,FREEMAN CATERING BUTCH,5422,Catering costs - provisions,36.45,0.00,36.45
Regeneration and Local Services,Corporate Property and Land,010525,Catering - Green Lane,Supplies and Services,324117,Provisions E324,08-Jul-2019,000006477605954,WWW.ADELIEFOODS.CO.UK,5499,Catering costs - provisions,34.60,0.00,34.60
Regeneration and Local Services,Corporate Property and Land,010525,Catering - Green Lane,Supplies and Services,324117,Provisions E324,08-Jul-2019,000006477605968,WWW.ADELIEFOODS.CO.UK,5499,Catering costs - provisions,115.90,0.00,115.90
Regeneration and Local Services,Development and Housing,030554,International Relations 030554,Supplies and Services,372009,Subscriptions E372,08-Jul-2019,000006477606012,BEAMISH HALL,7299,Subscriptions 372009,84.90,14.15,70.75
Regeneration and Local Services,Development and Housing,030554,International Relations 030554,Transport,235057,Public Transport,08-Jul-2019,000006477606016,NEWCASTLE PARK AND FLY,7523,Staff travelling,4.00,0.00,4.00
Children and Young Peoples Services,Head of Childrens Social Care,085333,Coxhoe Satelite Home,Supplies and Services,324117,Provisions E324,08-Jul-2019,000006477606168,TESCO STORES 2371,5411,Catering costs - provisions,7.00,0.00,7.00
Children and Young Peoples Services,Head of Childrens Social Care,085333,Coxhoe Satelite Home,Supplies and Services,324117,Provisions E324,08-Jul-2019,000006477606174,SAINSBURYS SACAT 0774,5411,Catering costs - provisions,6.00,0.00,6.00
Children and Young Peoples Services,Head of Childrens Social Care,085333,Coxhoe Satelite Home,Supplies and Services,304999,Equipment and Materials,08-Jul-2019,000006477606178,VISION EXPRESS,8043,Misc equipment tools and materials,95.70,0.00,95.70
Adult and Health Services,Head of Adults,055301,Stanley Pathways,Supplies and Services,324117,Provisions E324,08-Jul-2019,000006477606212,SAINSBURYS SACAT 0776,5411,Catering costs - provisions,9.10,0.00,9.10
Regeneration and Local Services,Culture Sport and Tourism,011214,Volunteer & Skills 011214,Employees,040149,Recruitment Instruction and Training,08-Jul-2019,000006477606230,TYNE AND WEAR SPORT,8299,Training-all costs,42.00,0.00,42.00
Regeneration and Local Services,Corporate Property and Land,030691,Catering - Durham Dales Centre,Supplies and Services,324117,Provisions E324,08-Jul-2019,000006477606258,FREEMAN CATERING BUTCH,5422,Catering costs - provisions,93.94,0.00,93.94
Regeneration and Local Services,Corporate Property and Land,030691,Catering - Durham Dales Centre,Supplies and Services,324117,Provisions E324,08-Jul-2019,000006477606264,FREEMAN CATERING BUTCH,5422,Catering costs - provisions,75.22,0.00,75.22
Regeneration and Local Services,Corporate Property and Land,030691,Catering - Durham Dales Centre,Supplies and Services,324117,Provisions E324,08-Jul-2019,000006477606272,JR HOLLAND FOODSERVICE,5499,Catering costs - provisions,148.93,0.00,148.93
Regeneration and Local Services,Corporate Property and Land,030691,Catering - Durham Dales Centre,Supplies and Services,324117,Provisions E324,08-Jul-2019,000006477606278,JR HOLLAND FOODSERVICE,5499,Catering costs - provisions,85.01,0.00,85.01
Regeneration and Local Services,Corporate Property and Land,030691,Catering - Durham Dales Centre,Supplies and Services,324117,Provisions E324,08-Jul-2019,000006477606282,WWW.ADELIEFOODS.CO.UK,5499,Catering costs - provisions,54.06,0.00,54.06
Regeneration and Local Services,Corporate Property and Land,030691,Catering - Durham Dales Centre,Supplies and Services,324117,Provisions E324,08-Jul-2019,000006477606288,WWW.ADELIEFOODS.CO.UK,5499,Catering costs - provisions,56.39,0.00,56.39
Regeneration and Local Services,Corporate Property and Land,030691,Catering - Durham Dales Centre,Supplies and Services,324117,Provisions E324,08-Jul-2019,000006477606294,WWW.ADELIEFOODS.CO.UK,5499,Catering costs - provisions,36.72,0.00,36.72
Regeneration and Local Services,Corporate Property and Land,030691,Catering - Durham Dales Centre,Supplies and Services,324117,Provisions E324,08-Jul-2019,000006477606298,WWW.ADELIEFOODS.CO.UK,5499,Catering costs - provisions,54.06,0.00,54.06
Regeneration and Local Services,Corporate Property and Land,030691,Catering - Durham Dales Centre,Supplies and Services,324117,Provisions E324,08-Jul-2019,000006477606304,WWW.ADELIEFOODS.CO.UK,5499,Catering costs - provisions,35.40,0.00,35.40
Adult and Health Services,Head of Adults,055643,Hawthorn House LD Respite Unit,Supplies and Services,324117,Provisions E324,08-Jul-2019,000006477606354,FREEMAN CATERING BUTCH,5422,Catering costs - provisions,29.64,0.00,29.64
Adult and Health Services,Head of Adults,055643,Hawthorn House LD Respite Unit,Supplies and Services,324117,Provisions E324,08-Jul-2019,000006477606360,JR HOLLAND FOODSERVICE,5499,Catering costs - provisions,22.41,0.00,22.41
Adult and Health Services,Head of Adults,055643,Hawthorn House LD Respite Unit,Supplies and Services,324117,Provisions E324,08-Jul-2019,000006477606364,JR HOLLAND FOODSERVICE,5499,Catering costs - provisions,20.28,0.00,20.28
Regeneration and Local Services,Environmental Services,010301,C&G - North Grounds Maintenance,Supplies and Services,328041,Clothing uniforms and laundry E328,08-Jul-2019,000006477606392,THE NURSERIES,5992,Clothing uniforms and laundry,225.00,0.00,225.00
Children and Young Peoples Services,Head of Childrens Social Care,085342,9 Cedar Drive Aycliffe,Supplies and Services,324117,Provisions E324,08-Jul-2019,000006477606408,TESCO STORES 2916,5411,Catering costs - provisions,8.33,0.00,8.33
Children and Young Peoples Services,Head of Early Help Inclusion & Vulnerable Children.,085957,Secure Management,Supplies and Services,304403,Equipment and Materials,08-Jul-2019,000006477606432,AMZNMktplace,5999,Other consumables,55.74,9.30,46.44
Children and Young Peoples Services,Head of Early Help Inclusion & Vulnerable Children.,085956,Lumley,Supplies and Services,304405,Equipment and Materials,08-Jul-2019,000006477606438,DOMICILARY,8043,Medical supplies,13.92,2.32,11.60
Children and Young Peoples Services,Head of Early Help Inclusion & Vulnerable Children.,085956,Lumley,Supplies and Services,304405,Equipment and Materials,08-Jul-2019,000006477606438 - 1,DOMICILARY,8043,Medical supplies,31.08,,31.08
Transformation and Partnerships,Business Support,069010,Administration 069010,Supplies and Services,340001,Postages E340,08-Jul-2019,000006477606462,WWW.NEOPOST.CO.UK,5111,Postages,500.00,0.00,500.00
Regeneration and Local Services,Community Protection,010827,Health Protection 010827,Supplies and Services,352001,Conference Expenses,08-Jul-2019,000006477606466,THE STANWELL HEATHROW,7011,Conferencesseminars fees etc,450.00,75.00,375.00
Children and Young Peoples Services,Head of Education and Skills,071903,EYDCP-Sustainability EDS,Employees,040149,Recruitment Instruction and Training,08-Jul-2019,000006477606484,PRE-SCHOOL LEARNING AL,8398,Training-all costs,619.75,0.00,619.75
Children and Young Peoples Services,Head of Education and Skills,071903,EYDCP-Sustainability EDS,Employees,040149,Recruitment Instruction and Training,08-Jul-2019,000006477606490,WWW.PRE-SCHOOL.ORG.UK,8299,Training-all costs,210.00,0.00,210.00
Regeneration and Local Services,Culture Sport and Tourism,054235,Bishop Auckland Town Hall Cafe,Supplies and Services,324117,Provisions E324,08-Jul-2019,000006477606498,JR HOLLAND FOODSERVICE,5499,Catering costs - provisions,17.40,0.00,17.40
Regeneration and Local Services,Corporate Property and Land,021324,Catering - Meadowfield,Supplies and Services,324117,Provisions E324,08-Jul-2019,000006477606508,FREEMAN CATERING BUTCH,5422,Catering costs - provisions,77.84,0.00,77.84
Regeneration and Local Services,Corporate Property and Land,021324,Catering - Meadowfield,Supplies and Services,324117,Provisions E324,08-Jul-2019,000006477606514,FREEMAN CATERING BUTCH,5422,Catering costs - provisions,50.79,0.00,50.79
Regeneration and Local Services,Corporate Property and Land,021324,Catering - Meadowfield,Supplies and Services,324117,Provisions E324,08-Jul-2019,000006477606520,WWW.ADELIEFOODS.CO.UK,5499,Catering costs - provisions,41.67,0.00,41.67
Children and Young Peoples Services,Head of Early Help Inclusion & Vulnerable Children.,085801,CDYJS - Support,Supplies and Services,324117,Provisions E324,08-Jul-2019,000006477606526,ASDA GROCERIES ONLINE,5411,Catering costs - provisions,57.19,0.00,57.19
Children and Young Peoples Services,Head of Childrens Social Care,085333,Coxhoe Satelite Home,Supplies and Services,324117,Provisions E324,08-Jul-2019,000006477606600,TESCO STORES 2916,5411,Catering costs - provisions,69.87,0.00,69.87
Children and Young Peoples Services,Head of Childrens Social Care,085333,Coxhoe Satelite Home,Supplies and Services,324117,Provisions E324,08-Jul-2019,000006477606604,TESCO STORES 2916,5411,Catering costs - provisions,39.40,0.00,39.40
Regeneration and Local Services,Culture Sport and Tourism,054820,Gala Theatre - Overheads,Supplies and Services,304403,Equipment and Materials,08-Jul-2019,000006477606644,AMZNMktplace,5999,Other consumables,7.99,0.00,7.99
Regeneration and Local Services,Culture Sport and Tourism,054820,Gala Theatre - Overheads,Supplies and Services,308011,Furniture,08-Jul-2019,000006477606650,FESTIVE LIGHTS LTD,5719,Furniture repair and replacement,129.99,0.00,129.99
Regeneration and Local Services,Development and Housing,031500,Housing Solutions - Core Team,Transport,235057,Public Transport,08-Jul-2019,000006477606694,Trainline.com,4112,Staff travelling,50.60,0.00,50.60
Adult and Health Services,Head of Adults,055310,Positive Journeys (Tudhoe),Supplies and Services,324117,Provisions E324,08-Jul-2019,000006477606758,ASDA SUPERSTORE 4987,5411,Catering costs - provisions,3.74,0.00,3.74
Adult and Health Services,Head of Adults,055310,Positive Journeys (Tudhoe),Supplies and Services,324117,Provisions E324,08-Jul-2019,000006477606762,ASDA SUPERSTORE 4987,5411,Catering costs - provisions,0.55,0.00,0.55
Regeneration and Local Services,Corporate Property and Land,021235,Catering - Wharton Park,Supplies and Services,324117,Provisions E324,08-Jul-2019,000006477606778,JR HOLLAND FOODSERVICE,5499,Catering costs - provisions,35.91,0.00,35.91
Regeneration and Local Services,Corporate Property and Land,021235,Catering - Wharton Park,Supplies and Services,324117,Provisions E324,08-Jul-2019,000006477606784,WWW.ADELIEFOODS.CO.UK,5499,Catering costs - provisions,20.76,0.00,20.76
Adult and Health Services,Head of Adults,055309,Peterlee Pathways,Supplies and Services,328041,Clothing uniforms and laundry E328,08-Jul-2019,000006477606814,POUNDSTRETCHER 396,5331,Clothing uniforms and laundry,1.99,0.00,1.99
Regeneration and Local Services,Culture Sport and Tourism,054812,Gala Theatre - Catering etc,Supplies and Services,324117,Provisions E324,08-Jul-2019,000006481432268,BATLEYS PERTH,5300,Catering costs - provisions,56.70,9.45,47.25
Regeneration and Local Services,Culture Sport and Tourism,054812,Gala Theatre - Catering etc,Supplies and Services,324117,Provisions E324,08-Jul-2019,000006481432268 - 1,BATLEYS PERTH,5300,Catering costs - provisions,51.28,,51.28
Regeneration and Local Services,Environmental Services,011060,C&G - Hardwick Park Catering,Supplies and Services,324117,Provisions E324,08-Jul-2019,000006481432774,BATLEYS PERTH,5300,Catering costs - provisions,-55.16,0.00,-55.16
Regeneration and Local Services,Corporate Property and Land,030691,Catering - Durham Dales Centre,Supplies and Services,324117,Provisions E324,08-Jul-2019,000006481433100,BATLEYS PERTH,5300,Catering costs - provisions,72.24,12.04,60.20
Regeneration and Local Services,Corporate Property and Land,030691,Catering - Durham Dales Centre,Supplies and Services,324117,Provisions E324,08-Jul-2019,000006481433100 - 1,BATLEYS PERTH,5300,Catering costs - provisions,154.66,,154.66
Regeneration and Local Services,Culture Sport and Tourism,054820,Gala Theatre - Overheads,Third Party Payments 4THIRD,430100,Rendered by Private Contractors,08-Jul-2019,000006481433320,CATERSPEED,7399,Payments to sub-contractors,12.13,0.00,12.13
Children and Young Peoples Services,Head of Childrens Social Care,085332,Middlestone Moor CU,Supplies and Services,312009,Newspapers books and periodicals E312,08-Jul-2019,000006481433336,SNAPFISH UK,7395,Newspapers books and periodicals,26.17,0.00,26.17
Regeneration and Local Services,Development and Housing,031500,Housing Solutions - Core Team,Employees,040149,Recruitment Instruction and Training,08-Jul-2019,000006481433348,PREMIER INN,3811,Training-all costs,104.00,0.00,104.00
Regeneration and Local Services,Corporate Property and Land,021235,Catering - Wharton Park,Supplies and Services,324117,Provisions E324,08-Jul-2019,000006481433396,BATLEYS PERTH,5300,Catering costs - provisions,82.08,13.68,68.40
Regeneration and Local Services,Corporate Property and Land,021235,Catering - Wharton Park,Supplies and Services,324117,Provisions E324,08-Jul-2019,000006481433396 - 1,BATLEYS PERTH,5300,Catering costs - provisions,40.36,,40.36
Children and Young Peoples Services,Head of Education and Skills,054640,Durham Learning Resources 054640,Supplies and Services,304245,Equipment and Materials,09-Jul-2019,000006481432058,Amazon.co.uk M650Y0I44,5969,Materials,2.64,0.44,2.20
Children and Young Peoples Services,Head of Education and Skills,054640,Durham Learning Resources 054640,Supplies and Services,304245,Equipment and Materials,09-Jul-2019,000006481432058 - 1,Amazon.co.uk M650Y0I44,5969,Materials,3.36,,3.36
Children and Young Peoples Services,Head of Education and Skills,054640,Durham Learning Resources 054640,Supplies and Services,304245,Equipment and Materials,09-Jul-2019,000006481432062,Amazon.co.uk M68WY4RJ4,5969,Materials,5.91,0.99,4.92
Resources BK0010,Digital and Customer Services,065487,ICT Telephony Recharges,Supplies and Services,344033,Telephones,09-Jul-2019,000006481432070,AMZNMktplace,5999,Telephones general-all costs,69.72,11.62,58.10
Resources BK0010,Digital and Customer Services,065487,ICT Telephony Recharges,Supplies and Services,344033,Telephones,09-Jul-2019,000006481432070 - 1,AMZNMktplace,5999,Telephones general-all costs,0.14,,0.14
Regeneration and Local Services,Development and Housing,030773,CLLD North,Supplies and Services,304259,Equipment and Materials,09-Jul-2019,000006481432094,CITY OF NEWCASTLE INTE,9399,Equipment-purchase and rental,11.00,0.00,11.00
Adult and Health Services,Commissioning inc Supporting People,052103,Strat.Comm. Manager OP / PDSI 052103,Supplies and Services,352001,Conference Expenses,09-Jul-2019,000006481432106,CARERS UK,8398,Conferencesseminars fees etc,264.00,44.00,220.00
Adult and Health Services,Head of Adults,055302,Durham Pathways,Supplies and Services,324117,Provisions E324,09-Jul-2019,000006481432126,ASDA SUPERSTORE,5411,Catering costs - provisions,24.77,0.00,24.77
Adult and Health Services,Head of Adults,055302,Durham Pathways,Supplies and Services,324117,Provisions E324,09-Jul-2019,000006481432130,ASDA SUPERSTORE,5411,Catering costs - provisions,7.30,0.00,7.30
Adult and Health Services,Head of Adults,055302,Durham Pathways,Supplies and Services,324117,Provisions E324,09-Jul-2019,000006481432136,ASDA SUPERSTORE,5411,Catering costs - provisions,6.00,0.00,6.00
Dedicated Schools Grant BG0015,DSG High Needs Block,079050,SENSS-Sensory,Supplies and Services,324117,Provisions E324,09-Jul-2019,000006481432146,MARKS&SPENCER PLC SACA,5411,Catering costs - provisions,29.35,0.00,29.35
Children and Young Peoples Services,Head of Childrens Social Care,085332,Middlestone Moor CU,Supplies and Services,324117,Provisions E324,09-Jul-2019,000006481432152,TESCO STORES 2916,5411,Catering costs - provisions,4.40,0.00,4.40
Children and Young Peoples Services,Head of Childrens Social Care,085332,Middlestone Moor CU,Supplies and Services,324117,Provisions E324,09-Jul-2019,000006481432156,ALDI 74 774,5411,Catering costs - provisions,4.98,0.00,4.98
Regeneration and Local Services,Business Durham CL0850,030699,Business Growth and Innovation General,Supplies and Services,304999,Equipment and Materials,09-Jul-2019,000006481432164,MAILCHIMP MONTHLY,5968,Misc equipment tools and materials,64.30,0.00,64.30
Regeneration and Local Services,Business Durham CL0850,030699,Business Growth and Innovation General,Supplies and Services,342033,Computers and Communications,09-Jul-2019,000006481432168,SLICKPLAN.COM,7372,Computer hardware,8.03,0.00,8.03
Regeneration and Local Services,Environmental Services,010367,C&G - South Grounds Maintenance,Supplies and Services,304221,Equipment and Materials,09-Jul-2019,000006481432194,HORNS GARDEN CENTR,5261,Direct materials,20.00,0.00,20.00
Children and Young Peoples Services,Head of Early Help Inclusion & Vulnerable Children.,088105,BA/BC/Crook 0-19 Community Family Hub,Supplies and Services,308011,Furniture,09-Jul-2019,000006481432228,ARGOS RETAIL GROUP,5310,Furniture repair and replacement,35.98,0.00,35.98
Children and Young Peoples Services,Head of Early Help Inclusion & Vulnerable Children.,088104,BA/BC/Crook 0-19 Targeted Family Support,Supplies and Services,308011,Furniture,09-Jul-2019,000006481432234,ARGOS RETAIL GROUP,5310,Furniture repair and replacement,0.01,0.00,0.01
Children and Young Peoples Services,Head of Early Help Inclusion & Vulnerable Children.,088105,BA/BC/Crook 0-19 Community Family Hub,Supplies and Services,308011,Furniture,09-Jul-2019,000006481432238,WWW.ARGOS.CO.UK,5310,Furniture repair and replacement,87.43,0.00,87.43
Regeneration and Local Services,Corporate Property and Land,021242,Catering - County Hall,Premises,145009,Cleaning and Domestic Supplies,09-Jul-2019,000006481432252,ALLIANCE DISPOSABLES L,2842,Other cleaning and domestic costs,84.37,14.06,70.31
Regeneration and Local Services,Corporate Property and Land,021242,Catering - County Hall,Supplies and Services,324117,Provisions E324,09-Jul-2019,000006481432256,JR HOLLAND FOODSERVICE,5499,Catering costs - provisions,31.51,0.00,31.51
Regeneration and Local Services,Corporate Property and Land,021242,Catering - County Hall,Supplies and Services,324117,Provisions E324,09-Jul-2019,000006481432260,JR HOLLAND FOODSERVICE,5499,Catering costs - provisions,187.62,0.00,187.62
Regeneration and Local Services,Corporate Property and Land,021242,Catering - County Hall,Supplies and Services,324117,Provisions E324,09-Jul-2019,000006481432264,JR HOLLAND FOODSERVICE,5499,Catering costs - provisions,137.00,0.00,137.00
Children and Young Peoples Services,Head of Childrens Social Care,085361,LAC & Permanence Team 1,Supplies and Services,384999,Miscellaneous Expenses,09-Jul-2019,000006481432316,HM PASSPORT OFFICE,9399,Other expenses,49.00,0.00,49.00
Regeneration and Local Services,Environmental Services,010900,Fleet - Meadowfield Fleet,Transport,215013,Running Costs of Vehicles,09-Jul-2019,000006481432358,DVLA VEHICLE TAX,9399,Vehicle Excise Duty (VED),167.50,0.00,167.50
Regeneration and Local Services,Environmental Services,010561,Fleet - Morrison Busty Fleet,Transport,215013,Running Costs of Vehicles,09-Jul-2019,000006481432362,DVLA VEHICLE TAX,9399,Vehicle Excise Duty (VED),167.50,0.00,167.50
Regeneration and Local Services,Environmental Services,010864,Fleet - Hackworth Road Fleet,Transport,215013,Running Costs of Vehicles,09-Jul-2019,000006481432368,DVLA VEHICLE TAX,9399,Vehicle Excise Duty (VED),167.50,0.00,167.50
Regeneration and Local Services,Environmental Services,010551,Fleet - Chilton Fleet,Transport,215013,Running Costs of Vehicles,09-Jul-2019,000006481432374,DVLA VEHICLE TAX,9399,Vehicle Excise Duty (VED),262.50,0.00,262.50
Regeneration and Local Services,Environmental Services,010900,Fleet - Meadowfield Fleet,Transport,215013,Running Costs of Vehicles,09-Jul-2019,000006481432380,DVLA VEHICLE TAX,9399,Vehicle Excise Duty (VED),262.50,0.00,262.50
Regeneration and Local Services,Environmental Services,010900,Fleet - Meadowfield Fleet,Transport,215013,Running Costs of Vehicles,09-Jul-2019,000006481432384,DVLA VEHICLE TAX,9399,Vehicle Excise Duty (VED),167.50,0.00,167.50
Regeneration and Local Services,Environmental Services,010561,Fleet - Morrison Busty Fleet,Transport,215013,Running Costs of Vehicles,09-Jul-2019,000006481432390,DVLA VEHICLE TAX,9399,Vehicle Excise Duty (VED),262.50,0.00,262.50
Regeneration and Local Services,Environmental Services,010900,Fleet - Meadowfield Fleet,Transport,215013,Running Costs of Vehicles,09-Jul-2019,000006481432396,DVLA VEHICLE TAX,9399,Vehicle Excise Duty (VED),262.50,0.00,262.50
Regeneration and Local Services,Environmental Services,010561,Fleet - Morrison Busty Fleet,Transport,215013,Running Costs of Vehicles,09-Jul-2019,000006481432402,DVLA VEHICLE TAX,9399,Vehicle Excise Duty (VED),262.50,0.00,262.50
Regeneration and Local Services,Environmental Services,010561,Fleet - Morrison Busty Fleet,Transport,215013,Running Costs of Vehicles,09-Jul-2019,000006481432408,DVLA VEHICLE TAX,9399,Vehicle Excise Duty (VED),167.50,0.00,167.50
Regeneration and Local Services,Environmental Services,010561,Fleet - Morrison Busty Fleet,Transport,215013,Running Costs of Vehicles,09-Jul-2019,000006481432410,DVLA VEHICLE TAX,9399,Vehicle Excise Duty (VED),192.00,0.00,192.00
Regeneration and Local Services,Environmental Services,010551,Fleet - Chilton Fleet,Transport,215013,Running Costs of Vehicles,09-Jul-2019,000006481432414,DVLA VEHICLE TAX,9399,Vehicle Excise Duty (VED),167.50,0.00,167.50
Regeneration and Local Services,Environmental Services,010864,Fleet - Hackworth Road Fleet,Transport,215013,Running Costs of Vehicles,09-Jul-2019,000006481432418,DVLA VEHICLE TAX,9399,Vehicle Excise Duty (VED),167.50,0.00,167.50
Regeneration and Local Services,Environmental Services,010551,Fleet - Chilton Fleet,Transport,215013,Running Costs of Vehicles,09-Jul-2019,000006481432422,DVLA VEHICLE TAX,9399,Vehicle Excise Duty (VED),262.50,0.00,262.50
Regeneration and Local Services,Environmental Services,010561,Fleet - Morrison Busty Fleet,Transport,215013,Running Costs of Vehicles,09-Jul-2019,000006481432426,DVLA VEHICLE TAX,9399,Vehicle Excise Duty (VED),262.50,0.00,262.50
Regeneration and Local Services,Environmental Services,010864,Fleet - Hackworth Road Fleet,Transport,215013,Running Costs of Vehicles,09-Jul-2019,000006481432432,DVLA VEHICLE TAX,9399,Vehicle Excise Duty (VED),167.50,0.00,167.50
Regeneration and Local Services,Environmental Services,010900,Fleet - Meadowfield Fleet,Transport,215013,Running Costs of Vehicles,09-Jul-2019,000006481432436,DVLA VEHICLE TAX,9399,Vehicle Excise Duty (VED),262.50,0.00,262.50
Regeneration and Local Services,Environmental Services,010561,Fleet - Morrison Busty Fleet,Transport,215013,Running Costs of Vehicles,09-Jul-2019,000006481432442,DVLA VEHICLE TAX,9399,Vehicle Excise Duty (VED),262.50,0.00,262.50
Regeneration and Local Services,Environmental Services,010900,Fleet - Meadowfield Fleet,Transport,215013,Running Costs of Vehicles,09-Jul-2019,000006481432450,DVLA VEHICLE TAX,9399,Vehicle Excise Duty (VED),262.50,0.00,262.50
Regeneration and Local Services,Environmental Services,010900,Fleet - Meadowfield Fleet,Transport,215013,Running Costs of Vehicles,09-Jul-2019,000006481432454,DVLA VEHICLE TAX,9399,Vehicle Excise Duty (VED),167.50,0.00,167.50
Regeneration and Local Services,Environmental Services,010900,Fleet - Meadowfield Fleet,Transport,215013,Running Costs of Vehicles,09-Jul-2019,000006481432458,DVLA VEHICLE TAX,9399,Vehicle Excise Duty (VED),262.50,0.00,262.50
Regeneration and Local Services,Environmental Services,010900,Fleet - Meadowfield Fleet,Transport,215013,Running Costs of Vehicles,09-Jul-2019,000006481432464,DVLA VEHICLE TAX,9399,Vehicle Excise Duty (VED),262.50,0.00,262.50
Regeneration and Local Services,Environmental Services,010900,Fleet - Meadowfield Fleet,Transport,215013,Running Costs of Vehicles,09-Jul-2019,000006481432468,DVLA VEHICLE TAX,9399,Vehicle Excise Duty (VED),262.50,0.00,262.50
Regeneration and Local Services,Environmental Services,010900,Fleet - Meadowfield Fleet,Transport,215013,Running Costs of Vehicles,09-Jul-2019,000006481432472,DVLA VEHICLE TAX,9399,Vehicle Excise Duty (VED),262.50,0.00,262.50
Children and Young Peoples Services,Head of Education and Skills,071732,Dean Bank Childcare,Supplies and Services,328041,Clothing uniforms and laundry E328,09-Jul-2019,000006481432516,B & M RETAIL,5310,Clothing uniforms and laundry,33.14,0.00,33.14
Regeneration and Local Services,Culture Sport and Tourism,010601,Spennymoor Leisure Cr - General,Supplies and Services,304259,Equipment and Materials,09-Jul-2019,000006481432524,CHARLES DICKENS (SPENN,5251,Equipment-purchase and rental,59.93,9.99,49.94
Regeneration and Local Services,Culture Sport and Tourism,010599,Newton Aycliffe Leisure Ctr-General,Supplies and Services,304259,Equipment and Materials,09-Jul-2019,000006481432528,ARGOS RETAIL GROUP,5310,Equipment-purchase and rental,16.00,0.00,16.00
Children and Young Peoples Services,Head of Childrens Social Care,085334,West Rainton Satelite Home,Supplies and Services,332047,Printing Stationery and Gen Off Exps,09-Jul-2019,000006481432584,RYMAN,5943,Stationery,94.99,0.00,94.99
Regeneration and Local Services,Environmental Services,010314,Nei.Prot - Bereavement Services,Supplies and Services,304259,Equipment and Materials,09-Jul-2019,000006481432588,Durham County CNCL,9399,Equipment-purchase and rental,11.00,0.00,11.00
Regeneration and Local Services,Culture Sport and Tourism,010991,County-wide FISCH,Supplies and Services,324117,Provisions E324,09-Jul-2019,000006481432634,SAINSBURYS SACAT 2199,5411,Catering costs - provisions,6.60,0.00,6.60
Regeneration and Local Services,Culture Sport and Tourism,010991,County-wide FISCH,Supplies and Services,324117,Provisions E324,09-Jul-2019,000006481432652,WM MORRISONS STORE,5411,Catering costs - provisions,7.41,0.00,7.41
Children and Young Peoples Services,Head of Early Help Inclusion & Vulnerable Children.,071445,Chester le Street One Point Hub,Transport,235057,Public Transport,09-Jul-2019,000006481432668,Eurolines SA,4131,Staff travelling,639.08,0.00,639.08
Children and Young Peoples Services,Head of Early Help Inclusion & Vulnerable Children.,071445,Chester le Street One Point Hub,Supplies and Services,304403,Equipment and Materials,09-Jul-2019,000006481432674,AMZNMKTPLACE AMAZON.CO,5999,Other consumables,30.44,0.00,30.44
Children and Young Peoples Services,Head of Early Help Inclusion & Vulnerable Children.,071445,Chester le Street One Point Hub,Supplies and Services,304403,Equipment and Materials,09-Jul-2019,000006481432678,AMZNMKTPLACE AMAZON.CO,5999,Other consumables,19.52,0.00,19.52
Children and Young Peoples Services,Head of Early Help Inclusion & Vulnerable Children.,071445,Chester le Street One Point Hub,Supplies and Services,304403,Equipment and Materials,09-Jul-2019,000006481432682,AMZNMKTPLACE AMAZON.CO,5999,Other consumables,59.75,0.00,59.75
Children and Young Peoples Services,Head of Early Help Inclusion & Vulnerable Children.,085952,Secure Education,Supplies and Services,312011,Newspapers books and periodicals E312,09-Jul-2019,000006481432694,Amazon.co.uk M685J9RK4,5969,Books-school library,49.95,8.35,41.60
Children and Young Peoples Services,Head of Early Help Inclusion & Vulnerable Children.,085962,Aycliffe Secure - Durham,Supplies and Services,304403,Equipment and Materials,09-Jul-2019,000006481432700,AMZNMktplace,5999,Other consumables,19.98,3.34,16.64
Children and Young Peoples Services,Head of Early Help Inclusion & Vulnerable Children.,085956,Lumley,Supplies and Services,304649,Equipment and Materials,09-Jul-2019,000006481432706,AMZNMktplace,5999,Toys,22.88,0.00,22.88
Children and Young Peoples Services,Head of Early Help Inclusion & Vulnerable Children.,085962,Aycliffe Secure - Durham,Supplies and Services,304259,Equipment and Materials,09-Jul-2019,000006481432710,AMZNMktplace,5999,Equipment-purchase and rental,9.99,1.67,8.32
Children and Young Peoples Services,Head of Early Help Inclusion & Vulnerable Children.,085962,Aycliffe Secure - Durham,Supplies and Services,304403,Equipment and Materials,09-Jul-2019,000006481432716,AMZNMktplace,5999,Other consumables,65.96,11.00,54.96
Children and Young Peoples Services,Head of Early Help Inclusion & Vulnerable Children.,085955,Auckland,Supplies and Services,304403,Equipment and Materials,09-Jul-2019,000006481432722,AMZNMktplace,5999,Other consumables,64.95,0.00,64.95
Children and Young Peoples Services,Head of Early Help Inclusion & Vulnerable Children.,085955,Auckland,Supplies and Services,304403,Equipment and Materials,09-Jul-2019,000006481432724,AMZNMktplace,5999,Other consumables,61.95,0.00,61.95
Children and Young Peoples Services,Head of Early Help Inclusion & Vulnerable Children.,085955,Auckland,Supplies and Services,304259,Equipment and Materials,09-Jul-2019,000006481432730,CURRYS ONLINE,5732,Equipment-purchase and rental,41.49,6.92,34.57
Children and Young Peoples Services,Head of Early Help Inclusion & Vulnerable Children.,085954,Walworth,Supplies and Services,384999,Miscellaneous Expenses,09-Jul-2019,000006481432736,WWW.ARGOS.CO.UK,5310,Other expenses,23.94,0.00,23.94
Regeneration and Local Services,Environmental Services,010367,C&G - South Grounds Maintenance,Supplies and Services,304221,Equipment and Materials,09-Jul-2019,000006481432750,SCREWFIX PETERLEE,5211,Direct materials,5.19,0.87,4.32
Regeneration and Local Services,Environmental Services,010301,C&G - North Grounds Maintenance,Supplies and Services,304221,Equipment and Materials,09-Jul-2019,000006481432758,WWW.ARCO.CO.UK,5085,Direct materials,140.76,0.00,140.76
Regeneration and Local Services,Environmental Services,011060,C&G - Hardwick Park Catering,Premises,145009,Cleaning and Domestic Supplies,09-Jul-2019,000006481432764,ALLIANCE DISPOSABLES L,2842,Other cleaning and domestic costs,214.13,35.69,178.44
Regeneration and Local Services,Environmental Services,011060,C&G - Hardwick Park Catering,Supplies and Services,324117,Provisions E324,09-Jul-2019,000006481432770,JR HOLLAND FOODSERVICE,5499,Catering costs - provisions,39.88,0.00,39.88
Regeneration and Local Services,Environmental Services,011060,C&G - Hardwick Park Catering,Supplies and Services,324117,Provisions E324,09-Jul-2019,000006481432778,JR HOLLAND FOODSERVICE,5499,Catering costs - provisions,-9.66,0.00,-9.66
Regeneration and Local Services,Corporate Property and Land,010525,Catering - Green Lane,Premises,145009,Cleaning and Domestic Supplies,09-Jul-2019,000006481432914,ALLIANCE DISPOSABLES L,2842,Other cleaning and domestic costs,41.59,6.93,34.66
Regeneration and Local Services,Corporate Property and Land,010525,Catering - Green Lane,Supplies and Services,324117,Provisions E324,09-Jul-2019,000006481432920,JR HOLLAND FOODSERVICE,5499,Catering costs - provisions,89.26,0.00,89.26
Regeneration and Local Services,Development and Housing,030771,Durham Advance Flexible Fund,Supplies and Services,304259,Equipment and Materials,09-Jul-2019,000006481432926,DURHAM TEA ROOM,9399,Equipment-purchase and rental,5.00,0.00,5.00
Children and Young Peoples Services,Head of Childrens Social Care,085551,Short Break Services-Park Hse Sher,Supplies and Services,324117,Provisions E324,09-Jul-2019,000006481432934,ALDI 12 774,5411,Catering costs - provisions,108.11,0.00,108.11
Regeneration and Local Services,Environmental Services,010367,C&G - South Grounds Maintenance,Supplies and Services,324117,Provisions E324,09-Jul-2019,000006481433026,J M RAINE,5399,Catering costs - provisions,94.67,15.78,78.89
Children and Young Peoples Services,Head of Childrens Social Care,085333,Coxhoe Satelite Home,Supplies and Services,324117,Provisions E324,09-Jul-2019,000006481433044,TESCO STORES 2371,5411,Catering costs - provisions,74.65,0.00,74.65
Children and Young Peoples Services,Head of Childrens Social Care,085333,Coxhoe Satelite Home,Supplies and Services,304221,Equipment and Materials,09-Jul-2019,000006481433052,B & Q 1343,5211,Direct materials,47.00,0.00,47.00
Resources BK0010,Resources Management CK0450,069000,Resources Management 069000,Supplies and Services,324117,Provisions E324,09-Jul-2019,000006481433058,SAINSBURYS (2303),5411,Catering costs - provisions,3.30,0.00,3.30
Regeneration and Local Services,Corporate Property and Land,030691,Catering - Durham Dales Centre,Premises,145009,Cleaning and Domestic Supplies,09-Jul-2019,000006481433110,ALLIANCE DISPOSABLES L,2842,Other cleaning and domestic costs,133.08,22.18,110.90
Regeneration and Local Services,Corporate Property and Land,030691,Catering - Durham Dales Centre,Premises,145009,Cleaning and Domestic Supplies,09-Jul-2019,000006481433110 - 1,ALLIANCE DISPOSABLES L,2842,Other cleaning and domestic costs,12.69,,12.69
Regeneration and Local Services,Corporate Property and Land,030691,Catering - Durham Dales Centre,Supplies and Services,324117,Provisions E324,09-Jul-2019,000006481433114,JR HOLLAND FOODSERVICE,5499,Catering costs - provisions,93.26,0.00,93.26
Adult and Health Services,Head of Adults,055643,Hawthorn House LD Respite Unit,Supplies and Services,324117,Provisions E324,09-Jul-2019,000006481433134,JR HOLLAND FOODSERVICE,5499,Catering costs - provisions,17.38,0.00,17.38
Regeneration and Local Services,Environmental Services,010301,C&G - North Grounds Maintenance,Supplies and Services,304403,Equipment and Materials,09-Jul-2019,000006481433162,TIMPSON LTD,7251,Other consumables,10.00,0.00,10.00
Regeneration and Local Services,Environmental Services,010301,C&G - North Grounds Maintenance,Supplies and Services,304221,Equipment and Materials,09-Jul-2019,000006481433168,WWW.ARCO.CO.UK,5085,Direct materials,-81.59,0.00,-81.59
Children and Young Peoples Services,Head of Childrens Social Care,085342,9 Cedar Drive Aycliffe,Supplies and Services,304403,Equipment and Materials,09-Jul-2019,000006481433182,AMZNMktplace,5999,Other consumables,12.99,0.00,12.99
Children and Young Peoples Services,Head of Childrens Social Care,085342,9 Cedar Drive Aycliffe,Supplies and Services,304403,Equipment and Materials,09-Jul-2019,000006481433188,AMZNMktplace,5999,Other consumables,18.00,3.00,15.00
Children and Young Peoples Services,Head of Childrens Social Care,085342,9 Cedar Drive Aycliffe,Supplies and Services,304403,Equipment and Materials,09-Jul-2019,000006481433188 - 1,AMZNMktplace,5999,Other consumables,8.97,,8.97
Children and Young Peoples Services,Head of Early Help Inclusion & Vulnerable Children.,085957,Secure Management,Supplies and Services,304245,Equipment and Materials,09-Jul-2019,000006481433194,SCREWFIX DIRECT,5200,Materials,51.67,8.61,43.06
Children and Young Peoples Services,Head of Early Help Inclusion & Vulnerable Children.,085954,Walworth,Supplies and Services,304649,Equipment and Materials,09-Jul-2019,000006481433200,ARGOS RETAIL GROUP,5310,Toys,12.99,0.00,12.99
Regeneration and Local Services,Culture Sport and Tourism,054235,Bishop Auckland Town Hall Cafe,Premises,145009,Cleaning and Domestic Supplies,09-Jul-2019,000006481433228,ALLIANCE DISPOSABLES L,2842,Other cleaning and domestic costs,42.36,7.06,35.30
Regeneration and Local Services,Culture Sport and Tourism,054235,Bishop Auckland Town Hall Cafe,Supplies and Services,324117,Provisions E324,09-Jul-2019,000006481433234,JR HOLLAND FOODSERVICE,5499,Catering costs - provisions,50.18,0.00,50.18
Regeneration and Local Services,Culture Sport and Tourism,011204,Festival and Events,Supplies and Services,304403,Equipment and Materials,09-Jul-2019,000006481433242,AMZNMktplace,5999,Other consumables,63.90,0.00,63.90
Regeneration and Local Services,Corporate Property and Land,021324,Catering - Meadowfield,Supplies and Services,324117,Provisions E324,09-Jul-2019,000006481433254,JR HOLLAND FOODSERVICE,5499,Catering costs - provisions,28.80,0.00,28.80
Regeneration and Local Services,Corporate Property and Land,021324,Catering - Meadowfield,Supplies and Services,324117,Provisions E324,09-Jul-2019,000006481433260,JR HOLLAND FOODSERVICE,5499,Catering costs - provisions,14.19,0.00,14.19
Children and Young Peoples Services,Head of Early Help Inclusion & Vulnerable Children.,085801,CDYJS - Support,Supplies and Services,324117,Provisions E324,09-Jul-2019,000006481433264,ASDA STORES LTD 4313,5411,Catering costs - provisions,16.00,0.00,16.00
Children and Young Peoples Services,Head of Early Help Inclusion & Vulnerable Children.,085801,CDYJS - Support,Supplies and Services,324117,Provisions E324,09-Jul-2019,000006481433270,ASDA GROCERIES ONLINE,5411,Catering costs - provisions,38.10,0.00,38.10
Children and Young Peoples Services,Head of Education and Skills,070169,Durham SSP,Supplies and Services,384199,Miscellaneous Expenses,09-Jul-2019,000006481433294,SPORTSDIRECT 264,5941,Other hired and contracted services,24.00,0.00,24.00
Resources BK0010,Corporate Finance & Commercial Services,069800,Corporate Procurement 069800,Employees,040149,Recruitment Instruction and Training,09-Jul-2019,000006481433308,WWW.CIPS.ORG,8699,Training-all costs,66.95,0.00,66.95
Resources BK0010,Corporate Finance & Commercial Services,069800,Corporate Procurement 069800,Employees,040149,Recruitment Instruction and Training,09-Jul-2019,000006481433314,WWW.CIPS.ORG,8699,Training-all costs,137.00,0.00,137.00
Regeneration and Local Services,Culture Sport and Tourism,054820,Gala Theatre - Overheads,Supplies and Services,304403,Equipment and Materials,09-Jul-2019,000006481433324,AMZNMktplace,5999,Other consumables,19.99,0.00,19.99
Regeneration and Local Services,Culture Sport and Tourism,054820,Gala Theatre - Overheads,Supplies and Services,304403,Equipment and Materials,09-Jul-2019,000006481433330,AMZNMktplace,5999,Other consumables,24.98,0.00,24.98
Regeneration and Local Services,Environmental Services,031200,North Pennines Core,Supplies and Services,340001,Postages E340,09-Jul-2019,000006481433342,THE POST OFFICE,9402,Postages,1.60,0.00,1.60
Transformation and Partnerships,Communications Management,060270,Communications and Marketing,Supplies and Services,336005,Advertising E336,09-Jul-2019,000006481433374,FACEBK 5S9FVKA5B2,7311,Advertising other than for staff,500.00,0.00,500.00
Adult and Health Services,Head of Adults,055309,Peterlee Pathways,Supplies and Services,328041,Clothing uniforms and laundry E328,09-Jul-2019,000006481433420,POUNDSTRETCHER 396,5331,Clothing uniforms and laundry,1.99,0.00,1.99
Children and Young Peoples Services,Head of Childrens Social Care,085363,LAC & Permanence Team 3,Supplies and Services,304259,Equipment and Materials,09-Jul-2019,000006481433426,HM PASSPORT OFFICE,9399,Equipment-purchase and rental,49.00,0.00,49.00
Children and Young Peoples Services,Head of Childrens Social Care,085363,LAC & Permanence Team 3,Supplies and Services,304259,Equipment and Materials,09-Jul-2019,000006481433428,WWW.DURHAM.GOV.UK,9399,Equipment-purchase and rental,22.00,0.00,22.00
Regeneration and Local Services,Environmental Services,031201,Earthworks,Supplies and Services,304221,Equipment and Materials,09-Jul-2019,000006481433450,AXIONMATIC TECHNOLOGY,8911,Direct materials,466.74,77.79,388.95
Regeneration and Local Services,Development and Housing,030771,Durham Advance Flexible Fund,Supplies and Services,304403,Equipment and Materials,09-Jul-2019,000006486372656,PARTICIPANT UK LIMITED,5734,Other consumables,25.00,0.00,25.00
Regeneration and Local Services,Development and Housing,030771,Durham Advance Flexible Fund,Employees,040149,Recruitment Instruction and Training,09-Jul-2019,000006486372666,PARTICIPANT UK LIMITED,5734,Training-all costs,25.00,0.00,25.00
Regeneration and Local Services,Development and Housing,030771,Durham Advance Flexible Fund,Employees,040149,Recruitment Instruction and Training,09-Jul-2019,000006486372674,PARTICIPANT UK LIMITED,5734,Training-all costs,25.00,0.00,25.00
Regeneration and Local Services,Corporate Property and Land,021242,Catering - County Hall,Supplies and Services,324117,Provisions E324,09-Jul-2019,000006486372908,BATLEYS PERTH,5300,Catering costs - provisions,573.84,95.64,478.20
Regeneration and Local Services,Corporate Property and Land,021242,Catering - County Hall,Supplies and Services,324117,Provisions E324,09-Jul-2019,000006486372908 - 1,BATLEYS PERTH,5300,Catering costs - provisions,176.92,,176.92
Regeneration and Local Services,Corporate Property and Land,021242,Catering - County Hall,Supplies and Services,324117,Provisions E324,09-Jul-2019,000006486372914,BATLEYS PERTH,5300,Catering costs - provisions,73.20,12.20,61.00
Regeneration and Local Services,Corporate Property and Land,021242,Catering - County Hall,Supplies and Services,324117,Provisions E324,09-Jul-2019,000006486372914 - 1,BATLEYS PERTH,5300,Catering costs - provisions,51.87,,51.87
Children and Young Peoples Services,Head of Early Help Inclusion & Vulnerable Children.,071445,Chester le Street One Point Hub,Supplies and Services,304403,Equipment and Materials,09-Jul-2019,000006486373310,AMZNMKTPLACE AMAZON.CO,5999,Other consumables,13.68,0.00,13.68
Children and Young Peoples Services,Head of Early Help Inclusion & Vulnerable Children.,071445,Chester le Street One Point Hub,Supplies and Services,304403,Equipment and Materials,09-Jul-2019,000006486373316,AMZNMKTPLACE AMAZON.CO,5999,Other consumables,34.31,0.00,34.31
Regeneration and Local Services,Environmental Services,011060,C&G - Hardwick Park Catering,Supplies and Services,324117,Provisions E324,09-Jul-2019,000006486373398,BATLEYS PERTH,5300,Catering costs - provisions,-0.16,0.00,-0.16
Regeneration and Local Services,Corporate Property and Land,021234,Catering - Locomotion,Supplies and Services,324117,Provisions E324,09-Jul-2019,000006486373420,BATLEYS PERTH,5300,Catering costs - provisions,348.48,58.08,290.40
Regeneration and Local Services,Corporate Property and Land,021234,Catering - Locomotion,Supplies and Services,324117,Provisions E324,09-Jul-2019,000006486373420 - 1,BATLEYS PERTH,5300,Catering costs - provisions,47.13,,47.13
Regeneration and Local Services,Corporate Property and Land,021234,Catering - Locomotion,Supplies and Services,324117,Provisions E324,09-Jul-2019,000006486373430,BATLEYS PERTH,5300,Catering costs - provisions,10.00,0.00,10.00
Children and Young Peoples Services,Head of Childrens Social Care,085342,9 Cedar Drive Aycliffe,Supplies and Services,304403,Equipment and Materials,09-Jul-2019,000006486373744,AMZNMKTPLACE AMAZON.CO,5999,Other consumables,16.79,2.80,13.99
Regeneration and Local Services,Culture Sport and Tourism,054235,Bishop Auckland Town Hall Cafe,Supplies and Services,324117,Provisions E324,09-Jul-2019,000006486373836,BATLEYS PERTH,5300,Catering costs - provisions,82.80,13.80,69.00
Regeneration and Local Services,Culture Sport and Tourism,054235,Bishop Auckland Town Hall Cafe,Supplies and Services,324117,Provisions E324,09-Jul-2019,000006486373836 - 1,BATLEYS PERTH,5300,Catering costs - provisions,16.44,,16.44
Regeneration and Local Services,Corporate Property and Land,021324,Catering - Meadowfield,Supplies and Services,324117,Provisions E324,09-Jul-2019,000006486373858,BATLEYS PERTH,5300,Catering costs - provisions,177.00,29.50,147.50
Regeneration and Local Services,Corporate Property and Land,021324,Catering - Meadowfield,Supplies and Services,324117,Provisions E324,09-Jul-2019,000006486373858 - 1,BATLEYS PERTH,5300,Catering costs - provisions,19.01,,19.01
Regeneration and Local Services,Development and Housing,031500,Housing Solutions - Core Team,Employees,040149,Recruitment Instruction and Training,09-Jul-2019,000006486374090,PREMIER INN,3811,Training-all costs,94.00,0.00,94.00
Regeneration and Local Services,Development and Housing,031500,Housing Solutions - Core Team,Employees,040149,Recruitment Instruction and Training,09-Jul-2019,000006486374092,PREMIER INN,3811,Training-all costs,94.00,0.00,94.00
Regeneration and Local Services,Business Durham CL0850,030699,Business Growth and Innovation General,Supplies and Services,304999,Equipment and Materials,10-Jul-2019,000006481432172,MAILCHIMP MONTHLY,5968,Misc equipment tools and materials,1.77,0.00,1.77
Regeneration and Local Services,Business Durham CL0850,030699,Business Growth and Innovation General,Supplies and Services,342033,Computers and Communications,10-Jul-2019,000006481432178,SLICKPLAN.COM,7372,Computer hardware,0.22,0.00,0.22
Children and Young Peoples Services,Head of Early Help Inclusion & Vulnerable Children.,071445,Chester le Street One Point Hub,Transport,235057,Public Transport,10-Jul-2019,000006481432686,Eurolines SA,4131,Staff travelling,17.57,0.00,17.57
Children and Young Peoples Services,Head of Childrens Social Care,085341,High Etherley Satelite Home,Supplies and Services,384999,Miscellaneous Expenses,10-Jul-2019,000006486372460,4MOTION DARLINGTON,7997,Other expenses,7.50,0.00,7.50
Children and Young Peoples Services,Head of Education and Skills,071801,Selby Cottage Childcare Centre,Supplies and Services,324117,Provisions E324,10-Jul-2019,000006486372548,TESCO STORES 2278,5411,Catering costs - provisions,25.96,0.00,25.96
Resources BK0010,Finance & Transactional Services,065134,Payments Income & Support Management,Supplies and Services,304335,Equipment and Materials,10-Jul-2019,000006486372586,PAYPAL AC-ADAPTER,5732,ICT supplies etc,31.67,0.00,31.67
Resources BK0010,Digital and Customer Services,065481,Technical Services 065481,Supplies and Services,304335,Equipment and Materials,10-Jul-2019,000006486372596,Amazon.co.uk M68TN7RV4,5969,ICT supplies etc,12.48,2.08,10.40
Resources BK0010,Digital and Customer Services,065487,ICT Telephony Recharges,Supplies and Services,344033,Telephones,10-Jul-2019,000006486372600,AMZNMktplace,5999,Telephones general-all costs,23.47,3.92,19.55
Resources BK0010,Digital and Customer Services,065481,Technical Services 065481,Supplies and Services,304335,Equipment and Materials,10-Jul-2019,000006486372604,AMZNMKTPLACE AMAZON.CO,5999,ICT supplies etc,41.97,7.01,34.96
Resources BK0010,Digital and Customer Services,065481,Technical Services 065481,Supplies and Services,304335,Equipment and Materials,10-Jul-2019,000006486372610,AMZNMKTPLACE AMAZON.CO,5999,ICT supplies etc,5.98,1.00,4.98
Resources BK0010,Digital and Customer Services,065303,Design & Print - Design,Supplies and Services,304335,Equipment and Materials,10-Jul-2019,000006486372616,XL DISPLAYS LTD,5099,ICT supplies etc,160.80,26.80,134.00
Regeneration and Local Services,Development and Housing,031030,Development Management 031030,Supplies and Services,332047,Printing Stationery and Gen Off Exps,10-Jul-2019,000006486372622,SCREWFIX DIRECT,5200,Stationery,13.49,2.25,11.24
Transformation and Partnerships,Partnerships & Community Engagement Div.,052707,Partnership Team,Supplies and Services,304649,Equipment and Materials,10-Jul-2019,000006486372636,WWW.ARGOS.CO.UK,5310,Toys,26.93,0.00,26.93
Regeneration and Local Services,Development and Housing,030771,Durham Advance Flexible Fund,Supplies and Services,344033,Telephones,10-Jul-2019,000006486372676,CO-OP GROUP 310023,5411,Telephones general-all costs,15.00,0.00,15.00
Children and Young Peoples Services,Head of Education and Skills,075021,Youth Employment Initiative,Supplies and Services,384199,Miscellaneous Expenses,10-Jul-2019,000006486372712,HARTLEPOOL BC CNP,9399,Other hired and contracted services,11.00,0.00,11.00
Children and Young Peoples Services,Head of Education and Skills,075021,Youth Employment Initiative,Supplies and Services,384199,Miscellaneous Expenses,10-Jul-2019,000006486372718,WWW.DURHAM.GOV.UK,9399,Other hired and contracted services,11.00,0.00,11.00
Children and Young Peoples Services,Head of Early Help Inclusion & Vulnerable Children.,071746,Newton Aycliffe Childrens Centre,Supplies and Services,308011,Furniture,10-Jul-2019,000006486372804,ARGOS RETAIL GROUP,5310,Furniture repair and replacement,39.98,0.00,39.98
Children and Young Peoples Services,Head of Childrens Social Care,085332,Middlestone Moor CU,Supplies and Services,324117,Provisions E324,10-Jul-2019,000006486372812,TESCO STORES 2371,5411,Catering costs - provisions,93.83,0.00,93.83
Children and Young Peoples Services,Head of Childrens Social Care,085332,Middlestone Moor CU,Supplies and Services,324117,Provisions E324,10-Jul-2019,000006486372820,TESCO STORES 2371,5411,Catering costs - provisions,-2.00,0.00,-2.00
Children and Young Peoples Services,Head of Early Help Inclusion & Vulnerable Children.,088104,BA/BC/Crook 0-19 Targeted Family Support,Supplies and Services,338045,Services,10-Jul-2019,000006486372900,DARLINGTON BC INTERNET,9399,Legal expenses 338045,11.00,0.00,11.00
Regeneration and Local Services,Corporate Property and Land,021242,Catering - County Hall,Supplies and Services,324117,Provisions E324,10-Jul-2019,000006486372920,JR HOLLAND FOODSERVICE,5499,Catering costs - provisions,106.58,0.00,106.58
Regeneration and Local Services,Corporate Property and Land,021242,Catering - County Hall,Supplies and Services,324117,Provisions E324,10-Jul-2019,000006486372930,JR HOLLAND FOODSERVICE,5499,Catering costs - provisions,13.80,0.00,13.80
Regeneration and Local Services,Culture Sport and Tourism,054812,Gala Theatre - Catering etc,Supplies and Services,324117,Provisions E324,10-Jul-2019,000006486372946,JR HOLLAND FOODSERVICE,5499,Catering costs - provisions,55.68,0.00,55.68
Regeneration and Local Services,Culture Sport and Tourism,054812,Gala Theatre - Catering etc,Supplies and Services,324117,Provisions E324,10-Jul-2019,000006486372948,JR HOLLAND FOODSERVICE,5499,Catering costs - provisions,0.92,0.00,0.92
Regeneration and Local Services,Development and Housing,031576,B& B - Temp Accom,Supplies and Services,364320,Grants to Voluntary Organisations,10-Jul-2019,000006486372954,HAYAT HOTEL,7011,Accommodation assistance,178.00,29.67,148.33
Regeneration and Local Services,Development and Housing,031576,B& B - Temp Accom,Supplies and Services,364320,Grants to Voluntary Organisations,10-Jul-2019,000006486372992,HAYAT HOTEL,7011,Accommodation assistance,445.00,0.00,445.00
Regeneration and Local Services,Development and Housing,031576,B& B - Temp Accom,Supplies and Services,364320,Grants to Voluntary Organisations,10-Jul-2019,000006486372994,HAYAT HOTEL,7011,Accommodation assistance,445.00,0.00,445.00
Children and Young Peoples Services,Head of Childrens Social Care,085334,West Rainton Satelite Home,Supplies and Services,324117,Provisions E324,10-Jul-2019,000006486373004,GEORGE BOLAM (FOODS) L,5499,Catering costs - provisions,116.08,0.00,116.08
Children and Young Peoples Services,Head of Childrens Social Care,085334,West Rainton Satelite Home,Supplies and Services,304221,Equipment and Materials,10-Jul-2019,000006486373010,B & Q 1343,5211,Direct materials,65.87,0.00,65.87
Regeneration and Local Services,Environmental Services,010900,Fleet - Meadowfield Fleet,Transport,215013,Running Costs of Vehicles,10-Jul-2019,000006486373032,DVLA VEHICLE TAX,9399,Vehicle Excise Duty (VED),262.50,0.00,262.50
Regeneration and Local Services,Environmental Services,010900,Fleet - Meadowfield Fleet,Transport,215013,Running Costs of Vehicles,10-Jul-2019,000006486373036,DVLA VEHICLE TAX,9399,Vehicle Excise Duty (VED),262.50,0.00,262.50
Regeneration and Local Services,Environmental Services,010864,Fleet - Hackworth Road Fleet,Transport,215013,Running Costs of Vehicles,10-Jul-2019,000006486373040,DVLA VEHICLE TAX,9399,Vehicle Excise Duty (VED),617.50,0.00,617.50
Regeneration and Local Services,Environmental Services,010900,Fleet - Meadowfield Fleet,Transport,215013,Running Costs of Vehicles,10-Jul-2019,000006486373044,DVLA VEHICLE TAX,9399,Vehicle Excise Duty (VED),262.50,0.00,262.50
Regeneration and Local Services,Environmental Services,010864,Fleet - Hackworth Road Fleet,Transport,215013,Running Costs of Vehicles,10-Jul-2019,000006486373052,DVLA VEHICLE TAX,9399,Vehicle Excise Duty (VED),722.50,0.00,722.50
Regeneration and Local Services,Environmental Services,010900,Fleet - Meadowfield Fleet,Transport,215013,Running Costs of Vehicles,10-Jul-2019,000006486373056,DVLA VEHICLE TAX,9399,Vehicle Excise Duty (VED),262.50,0.00,262.50
Regeneration and Local Services,Environmental Services,010900,Fleet - Meadowfield Fleet,Transport,215013,Running Costs of Vehicles,10-Jul-2019,000006486373060,DVLA VEHICLE TAX,9399,Vehicle Excise Duty (VED),262.50,0.00,262.50
Regeneration and Local Services,Environmental Services,010864,Fleet - Hackworth Road Fleet,Transport,215013,Running Costs of Vehicles,10-Jul-2019,000006486373064,DVLA VEHICLE TAX,9399,Vehicle Excise Duty (VED),617.50,0.00,617.50
Regeneration and Local Services,Environmental Services,010900,Fleet - Meadowfield Fleet,Transport,215013,Running Costs of Vehicles,10-Jul-2019,000006486373066,DVLA VEHICLE TAX,9399,Vehicle Excise Duty (VED),262.50,0.00,262.50
Regeneration and Local Services,Environmental Services,010900,Fleet - Meadowfield Fleet,Transport,215013,Running Costs of Vehicles,10-Jul-2019,000006486373072,DVLA VEHICLE TAX,9399,Vehicle Excise Duty (VED),262.50,0.00,262.50
Regeneration and Local Services,Environmental Services,010561,Fleet - Morrison Busty Fleet,Transport,215013,Running Costs of Vehicles,10-Jul-2019,000006486373074,DVLA VEHICLE TAX,9399,Vehicle Excise Duty (VED),352.50,0.00,352.50
Regeneration and Local Services,Environmental Services,010900,Fleet - Meadowfield Fleet,Transport,215013,Running Costs of Vehicles,10-Jul-2019,000006486373076,DVLA VEHICLE TAX,9399,Vehicle Excise Duty (VED),617.50,0.00,617.50
Regeneration and Local Services,Environmental Services,010900,Fleet - Meadowfield Fleet,Transport,215013,Running Costs of Vehicles,10-Jul-2019,000006486373080,DVLA VEHICLE TAX,9399,Vehicle Excise Duty (VED),617.50,0.00,617.50
Regeneration and Local Services,Environmental Services,010900,Fleet - Meadowfield Fleet,Transport,215013,Running Costs of Vehicles,10-Jul-2019,000006486373084,DVLA VEHICLE TAX,9399,Vehicle Excise Duty (VED),262.50,0.00,262.50
Regeneration and Local Services,Environmental Services,010561,Fleet - Morrison Busty Fleet,Transport,215013,Running Costs of Vehicles,10-Jul-2019,000006486373088,DVLA VEHICLE TAX,9399,Vehicle Excise Duty (VED),617.50,0.00,617.50
Regeneration and Local Services,Environmental Services,010900,Fleet - Meadowfield Fleet,Transport,215013,Running Costs of Vehicles,10-Jul-2019,000006486373092,DVLA VEHICLE TAX,9399,Vehicle Excise Duty (VED),262.50,0.00,262.50
Regeneration and Local Services,Environmental Services,010561,Fleet - Morrison Busty Fleet,Transport,215013,Running Costs of Vehicles,10-Jul-2019,000006486373094,DVLA VEHICLE TAX,9399,Vehicle Excise Duty (VED),352.50,0.00,352.50
Children and Young Peoples Services,Head of Education and Skills,071732,Dean Bank Childcare,Supplies and Services,304403,Equipment and Materials,10-Jul-2019,000006486373126,AMZNMktplace,5999,Other consumables,5.56,0.93,4.63
Regeneration and Local Services,Corporate Property and Land,020074,Bldg Serv - R&M Div 74 - Mechanical,Supplies and Services,312011,Newspapers books and periodicals E312,10-Jul-2019,000006486373130,WBK SHOP INTERNET,5942,Books-school library,21.20,0.00,21.20
Resources BK0010,Legal & Democratic Services,067910,Democratic Representation 067910,Supplies and Services,384965,Miscellaneous Expenses,10-Jul-2019,000006486373190,TESCO STORES 6029,5411,Civic Functions,9.00,0.00,9.00
Regeneration and Local Services,Culture Sport and Tourism,010991,County-wide FISCH,Supplies and Services,324117,Provisions E324,10-Jul-2019,000006486373214,SAINSBURYS SACAT 2199,5411,Catering costs - provisions,14.00,0.00,14.00
Regeneration and Local Services,Development and Housing,030771,Durham Advance Flexible Fund,Transport,235057,Public Transport,10-Jul-2019,000006486373252,WALKERGATE CAR PAR,7523,Staff travelling,3.00,0.00,3.00
Children and Young Peoples Services,Head of Early Help Inclusion & Vulnerable Children.,085956,Lumley,Supplies and Services,304649,Equipment and Materials,10-Jul-2019,000006486373322,AMZNMktplace,5999,Toys,121.50,0.00,121.50
Children and Young Peoples Services,Head of Early Help Inclusion & Vulnerable Children.,085965,Barnard,Supplies and Services,304403,Equipment and Materials,10-Jul-2019,000006486373330,AMZNMktplace,5999,Other consumables,15.84,2.64,13.20
Children and Young Peoples Services,Head of Early Help Inclusion & Vulnerable Children.,085965,Barnard,Supplies and Services,304403,Equipment and Materials,10-Jul-2019,000006486373330 - 1,AMZNMktplace,5999,Other consumables,0.08,,0.08
Children and Young Peoples Services,Head of Early Help Inclusion & Vulnerable Children.,085956,Lumley,Supplies and Services,328041,Clothing uniforms and laundry E328,10-Jul-2019,000006486373336,M and M Direct Ltd,5941,Clothing uniforms and laundry,5.99,0.00,5.99
Children and Young Peoples Services,Head of Early Help Inclusion & Vulnerable Children.,085955,Auckland,Supplies and Services,328041,Clothing uniforms and laundry E328,10-Jul-2019,000006486373342,FOOTASYLUM PLC,5691,Clothing uniforms and laundry,15.99,0.00,15.99
Children and Young Peoples Services,Head of Early Help Inclusion & Vulnerable Children.,085956,Lumley,Supplies and Services,328041,Clothing uniforms and laundry E328,10-Jul-2019,000006486373346,PRETTYLITTLETHING.COM,5691,Clothing uniforms and laundry,36.99,0.00,36.99
Children and Young Peoples Services,Head of Early Help Inclusion & Vulnerable Children.,085962,Aycliffe Secure - Durham,Supplies and Services,324117,Provisions E324,10-Jul-2019,000006486373352,TESCO STORES 6329,5411,Catering costs - provisions,91.78,0.00,91.78
Children and Young Peoples Services,Head of Early Help Inclusion & Vulnerable Children.,085954,Walworth,Supplies and Services,328041,Clothing uniforms and laundry E328,10-Jul-2019,000006486373358,VERY,5964,Clothing uniforms and laundry,41.99,0.00,41.99
Children and Young Peoples Services,Head of Early Help Inclusion & Vulnerable Children.,085955,Auckland,Supplies and Services,328041,Clothing uniforms and laundry E328,10-Jul-2019,000006486373364,NEXT DIRECTORY,5965,Clothing uniforms and laundry,15.99,0.00,15.99
Children and Young Peoples Services,Head of Early Help Inclusion & Vulnerable Children.,085954,Walworth,Supplies and Services,304649,Equipment and Materials,10-Jul-2019,000006486373370,WEBUY.COM,5065,Toys,23.50,0.00,23.50
Regeneration and Local Services,Culture Sport and Tourism,054813,Gala Theatre - Technical,Supplies and Services,324117,Provisions E324,10-Jul-2019,000006486373374,TESCO STORES 2971,5411,Catering costs - provisions,77.25,0.00,77.25
Regeneration and Local Services,Culture Sport and Tourism,054813,Gala Theatre - Technical,Supplies and Services,304403,Equipment and Materials,10-Jul-2019,000006486373380,AMZNMKTPLACE AMAZON.CO,5999,Other consumables,12.95,0.00,12.95
